Workbook

Sheet Contact Information
A1: Georgia Department of Community Health
A2: Office of Information Technology
A3: Health Information Technology (HIT) Unit
A4: Medicaid Promoting Interoperability (PI) program (formerly EHR Incentive Program) for Meaningful Use
A5: Program Year 2018
A7: IF YOU SEE A SECURITY WARNING ABOVE THE COLUMN LETTERS, SELECT "OPTIONS" AND ENABLE ALL CONTENT BEFORE PROCEEDING
A9: Note: Prepayment validation procedures are applied to this calculator prior to an EP's attestation in MAPIR. Therefore, please allow time for DCH to complete the prepayment validation procedures.
A11: Eligible Professional Contact Information
A13: Eligible Professional National Provider ID (NPI): | G13: If applying with Group Encounter Volume or FQHC Group Encounter Volume, do not enter information on these three rows.
A14: Eligible Professional Rendering Medicaid ID:
A15: Eligible Professional Name:
A17: Contact Person Completing This Workbook
A18: Contact Person Phone Number | G18: Format: 4045555555
A19: Contact Person Email Address
A21: Date Completed:
A26: Select the Calculator you will be completing.
A47: Complete the following steps:
A49: 1) Please enter your contact information above, then select the Instructions tab for further instructions to complete the Eligible Professional Patient Volume Calculator. Also, read the Background Information tab for additional information needed to complete the Eligible Professional Patient Volume Calculator.
A50: 2) Complete the Individual/CSB-Individual Encounter Volume Calculator.
A51: Calculation - Individual
A52: Select the calculator you will be completing.
A53: 3) Review the Individual/CSB-Individual Encounter Volume Calculator Example.
A54: Example - Individual
A55: Select the calculator you will be completing.

Sheet Instructions
A1: Georgia Department of Community Health
A2: Office of Information Technology
A3: Health Information Technology (HIT) Unit
A4: Medicaid Promoting Interoperability (PI) program (formerly EHR Incentive Program) for Meaningful Use
A5: Program Year 2018
A7: Eligible Professional Patient Volume Calculator
A10: 1 | B10: The calculations in this model are derived from the Centers for Medicare and Medicaid Services (CMS) final rule regarding the Medicaid Promoting Interoperability (PI) program (formerly EHR Incentive Program) (72 FR 44314 and 42 C.F.R. 495).
A12: 2 | B12: This patient volume calculation model is intended to assist Eligible Professionals in determining the patient volume threshold required for participation in the Medicaid PI incentive program. The completion of the calculation worksheet should not be construed as an indication or guarantee that the State will provide incentive payments.
A14: 3 | B14: Eligible Professionals are required to attest to the accuracy of the information that is reported for the actual calculation, and such information may be subject to additional review and/or audit by the Department of Community Health (DCH) or its audit contractor.
A16: 4 | B16: Eligible Professionals can attest to eligibility using their individual encounter volume or by using the encounter volume of the group practice/clinic. Eligible Professionals practicing predominantly in a Federally Qualified Health Center (FQHC) or Rural Health Clinic (RHC) can attest to eligibility using their individual encounter volume or by using the encounter volume of the group practice/clinic. If applying using the group practice/clinic proxy, the encounter volume from all group practice/clinic members performed as part of the group practice/clinic must be included.
B17: Data should be entered into the highlighted cells of the applicable calculation template.
A19: 5 | B19: Before completing the specific calculation tab, information specific to the individual, group practice, FQHC/RHC, or CSB/CMH should be entered in the Contact Information tab. This information will automatically transfer to the calculation worksheet's drop down menu. If using Individual encounter volume, enter your Medicaid Rendering ID and your National Provider ID (NPI). If using the group practice proxy, enter the Medicaid Payee ID or Group NPI for the group practice or clinic.

Sheet Background Information
A1: Georgia Department of Community Health
A2: Office of Information Technology
A3: Health Information Technology (HIT) Unit
A4: Medicaid Promoting Interoperability (PI) program (formerly EHR Incentive Program) for Meaningful Use
A5: Program Year 2018
A7: General Requirements and Background Information
A9: 1 | B9: Eligible Professionals include:
B10: • Physicians
B11: • Dentists
B12: • Certified Nurse-Midwives
B13: • Nurse Practitioners
B14: • Physician Assistants practicing in Federally Qualified Health Centers (FQHC) or Rural Health Clinics (RHC) led by a physician assistant
B15: (Note: If you are an Obstetrician or pediatrician, you will be asked on the calculator to specify Obstetrician or pediatrician instead of Physician)
A17: 2 | B17: Patient Volume Requirements:
B18: • Eligible Professionals must have at least a 30% patient volume attributable to Medicaid (Title XIX). This includes Eligible Professionals practicing at a Community Service Board (CSB) or Community Mental Health (CMH). Unless otherwise specified, Children’s Health Insurance Program (CHIP, Title XXI) patients are excluded from the patient volume calculations. The CHIP in Georgia is PeachCare for Kids®.
C19: • It will be necessary to adjust the reported Medicaid patient volume by a CHIP factor, which is based on the Georgia County in which the majority of your Medicaid and CHIP services are provided. For individual proxy, a CHIP factor for each provider type in each county was calculated based on historical claims data for CHIP services rendered by provider type in the individual counties. To utilize a CHIP factor, you will select from a drop-down menu the county in which the majority of your Medicaid and CHIP services are rendered. Based on the provider type and Georgia County selected, the CHIP patient volume factor will adjust your total Medicaid patient volume to account for CHIP patients. For group proxy, a CHIP factor for each county was calculated based on the historical claims data for CHIP services rendered in the individual counties. To utilize a CHIP factor, you will select from a drop-down menu the county in which the majority of the group's Medicaid and CHIP services are rendered. Based on the Georgia County selected, the CHIP patient volume factor will adjust the group's total Medicaid patient volume to account for CHIP patients. Further details on the CHIP patient volume factor are provided on the website at https://dch.georgia.gov/medicaid-promoting-interoperability-program.
B21: • Pediatricians will be considered eligible with a Medicaid (Title XIX) patient volume of 20% but receive 2/3 of the incentive amounts specified unless their Medicaid patient volume is 30% or higher. To qualify as a pediatrician, a provider must be classified in Georgia's Medicaid Management Information System (MMIS) as a pediatrician or a pediatric specialist (with NPI taxonomy codes within the 208000000X region).
B22: • Eligible Professionals practicing predominantly in a FQHC or RHC must have at least 30% patient volume attributable to Needy Individuals.
C23: • “Practicing predominantly” means that more than 50% of the Eligible Professional’s clinical services were provided in an FQHC or RHC in a six-month period in the most recent year.
C24: • Needy individuals are those receiving medical assistance from Medicaid (Title XIX) or CHIP (Title XXI), individuals who are furnished uncompensated care by the provider, or individuals furnished services at either no cost or reduced cost based on a sliding scale determined by the individual's ability to pay.
B25: • Eligible Professionals may attest to patient volume under the individual calculation or the clinic/practice group practice calculation in any participation year.
A27: 3 | B27: Hospital-based Professionals:
B28: Professionals who provide 90% or more of their services in a hospital-based setting (i.e., inpatient and emergency room settings) are not eligible for the Medicaid PI Incentive Program.
A30: 4 | B30: Patient Volume Calculations:
B31: Eligible Professionals must meet patient volume thresholds based on a ratio where the numerator is the total number of Medicaid (Title XIX) patient encounters (or Needy Individuals) treated in any 90-day period in the previous calendar year and the denominator is all patient encounters during the same period.
C32: • If an Eligible Professional has patient encounters paid by a border State's (i.e., a state contiguous to Georgia) Medicaid Program, the Out-of-State Medicaid patient volume from that location(s) may be included in your patient volume calculations. However, only include Out-of State Medicaid Encounter volume if it is required to meet the Medicaid PI Incentive Program Patient Volume Requirement. If you aggregate Medicaid patient volume across states, DCH may audit any out-of-state encounter data before making an incentive payment.
A34: 5 | B34: Definition of Patient Encounter:
B35: An "encounter," for the purposes of calculating an Eligible Professional's patient volume, is defined as:
B36: a) Services rendered on any one day to an individual enrolled in a Medicaid or a Medicaid demonstration project under section 1115 of the Act at the time the billable service was provided.
B37: b) Managed care claims should be included in the Medicaid patient encounter volume calculation.
B38: c) Eligible Professionals may also include out-of-state Medicaid patient volume for Medicaid patients in border states.
A40: 6 | B40: Group Practice Patient Volume Calculation:
B41: Incentive payments are for individual providers based on the provider's NPI. However, eligible professionals practicing in clinics and group practices (including FQHCs and RHCs) are allowed to use the group practice or clinic Medicaid patient volume (or Needy Individual patient volume, insofar as it applies) and apply the practice or clinic volume calculation to all Eligible Professionals in the practice under the following conditions:
B43: (a) The clinic or group practice’s patient volume is appropriate as a patient volume methodology calculation for the Eligible Professional. For example, if the Eligible Professional only sees Medicare, commercial or private pay patients, this is not an appropriate calculation. Georgia will deem a group practice’s patient volume as appropriate for an Eligible Professional only if Medicaid (Title XIX) patients were served by the Eligible Professional prior to attesting.
B45: (b) There is an auditable data source to support the clinic or group practice’s patient volume determination.
B47: (c) All Eligible Professionals in the clinic or group practice must use the same methodology for the payment year. In other words, clinics or group practices could not have some Eligible Professionals using individual patient volume for patients seen at the clinic or group practice, while others use the clinic- or group practice-level data.
B49: (d) The clinic or group practice must use the entire practice’s patient volume and not limit it in any way. When electing to use group practice patient volume, the entire practice's patient volume must be included. This includes the services rendered for all providers within the group practice, regardless of provider type or eligibility status. The group practice is defined by tax identification number (TIN). The encounter volume for all providers billing under the TIN should be included in the volume.
B51: (e) If the Eligible Professional works in a clinic or group practice, as well as outside the clinic or group practice, then the patient volume calculation includes only those encounters associated with the clinic or group practice, and not the Eligible Professional’s outside encounters.
B53: (f) CMS allows providers who were with a group from between the first date of the 90-day period and the date of attestation to be eligible for an incentive payment provided there is at least one paid Medicaid claim during that time period.
C55: Group Volume Example
C56: Clinic A | D56: Clinic B | E56: Individual
C57: EP1 - Full Time | D57: EP3 - Part Time | E57: EP4
C58: EP2 - Full Time | D58: EP5 - Full Time
C59: EP3 - Part Time | D59: EP6 - Full Time
C60: EP4 - Part Time | D60: EP7 -Part Time
C61: All Volume counted when applying as group. No EP can be excluded from the calculation. | D61: All volume counted for group. EP3 is prohibited from counting volume in Clinic A. | E61: Allowed to apply for incentive based on individual volume. EP4 is prohibited from counting volume in Clinic A
C66: In the example above, EP3 may count volume only in each clinic. EP3 is prohibited from counting encounters from Clinic A in Clinic's B volume Calculation
C68: In the example above, EP4 is allowed to apply for the incentive for their individual practice. EP4 is prohibited from using the encounter volume from Clinic A.

Sheet Calculation - Individual (hidden)
A1: Georgia Department of Community Health | W1: =IF(U1<>"","x","") ->  | AA1: Tennessee | AF1: lookup | AG1: chip_factor
A2: Office of Information Technology | AA2: Florida | AF2: NULL | AG2: 0
A3: Health Information Technology (HIT) Unit
A4: Medicaid Promoting Interoperability (PI) program (formerly EHR Incentive Program) for Meaningful Use | AA4: North Carolina | AF4: NULL | AG4: 0
A5: Program Year 2018 | AA5: South Carolina | AF5: NULL | AG5: 0
AA6: Alabama | AF6: NULL | AG6: 0
A7: Calculation: Individual Encounter Volume | AF7: NULL | AG7: 0
AF8: All County-Certified Nurse-Midwife | AG8: 0
A9: Contact Information: (This information populates from the information entered on the Contact Information tab.) | AF9: All County-Nurse Practitioner | AG9: 0
A10: Eligible Professional National Provider ID (NPI): | C10: =_npi1 -> 0 | AF10: All County-Pediatrician | AG10: 0.1233
A11: Eligible Professional Rendering Medicaid ID: | C11: =_cid1 -> 0 | U11: =IF(OR(C10="Please enter your NPI.",C11="Please enter your Rendering Medicaid ID.",C12="Please enter your Eligible Professional Name",C13="Please enter the name of the person completing this workbook.",C14="Please enter the phone number of the person completing this workbook.",C15="Please enter the email address of the person completing this workbook",C16="Please enter the date this workbook was completed."),"Please complete the Contact Information tab of this workbook.","") ->  | W11: =IF(U11<>"","x","") ->  | AF11: All County-Physician | AG11: 0.0075
A12: Eligible Professional Name: | C12: =cname1 -> 0 | AF12: Appling-Dentist | AG12: 1
A13: Contact Person Completing This Workbook | C13: =_cwb1 -> 0 | AF13: Appling-Mental | AG13: 0.0089
A14: Contact Person Phone Number | C14: =_cph1 -> 0 | AF14: Appling-Nurse Practitioner | AG14: 0.033
A15: Contact Person Email Address | C15: =_cem1 -> 0 | AF15: Appling-Pediatrician | AG15: 0.0241
A16: Date Completed: | C16: =date1 -> 00:00:00 | AF16: Appling-Physician | AG16: 0.0074
AF17: Atkinson-Dentist | AG17: 0.0814
A18: Eligible Professional Patient Volume Calculation Template | AF18: Atkinson-Nurse Practitioner | AG18: 1
AF19: Atkinson-Pediatrician | AG19: 0.0047
A20: Purple Shaded Cells Represent Data Entry | D20: For detailed information to assist in completing the Eligible Professional Patient Volume Calculation, see the Background Information tab. | AF20: Atkinson-Physician | AG20: 0.0159
D21: Background Information | AF21: Bacon-Dentist | AG21: 0
A22: Instructions | AF22: Bacon-Mental | AG22: 0.0409
A23: Step 1A: | B23: Enter the patient volume methodology being used for the 90-day period. | D23: * Medicaid patient volume can be calculated using one of the two following methods: | U23: =IF(R23="","Select a patient volume methodology.","") -> Select a patient volume methodology. | AF23: Bacon-Nurse Practitioner | AG23: 0.0465
AF24: Bacon-Pediatrician | AG24: 0.0408
D25: 1) Patient volume can be determined using a consecutive 90-day period within the prior calendar year 2017 (01/01/2017-12/31/2017); | AF25: Bacon-Physician | AG25: 0.0135
AF26: Baker-Pediatrician | AG26: 0.0417
D27: OR | AF27: Baker-Physician | AG27: 0
AF28: Baldwin-Dentist | AG28: 0.0572
D29: 2) Patient volume can be determined across a consecutive 90-day period in the last 12 months preceding the provider's attestation. | AF29: Baldwin-Mental | AG29: 0.0044
R30: Start 90-day period | T30: End 90-day period | AF30: Baldwin-Nurse Practitioner | AG30: 0.0134
A31: Step 1B: | B31: Enter the beginning date (mm/dd/yyyy) of a continuous 90-day period for your Medicaid Encounter Volume. | D31: (Note the 90-day period must be entirely in the previous calendar year and cannot overlap into the current year. The Medicaid encounter volume should include encounters with dates of service during the 90-day period.) | T31: =IF(R31>0,R31+89,"") ->  | U31: Option 1: Calendar Year - Program Year 2018 Calculations, the 90 days starting date must fall on or after January 1, 2017. | AF31: Baldwin-Pediatrician | AG31: 0.0567
AF32: Baldwin-Physician | AG32: 0.011
U33: =IF(AND(R23="Prior Calendar Year",R31=""),"Please select a 90-day period.","") ->  | AF33: Banks-Dentist | AG33: 0.1047
A34: Step 1C: | B34: Enter the date of attestation. | D34: * This is the date the provider intends to electronically certify that the information entered on this calculator and any uploaded supporting documentation is true, accurate, and complete. | AF34: Banks-Nurse Practitioner | AG34: 0.0897
U35: =IF(AND(R23="Recent 12 Months",R35=""),"Please enter the date of attestation.","") ->  | AF35: Banks-Physician | AG35: 0.0374
AF36: Barrow-Certified Nurse-Midwife | AG36: 0.0415
R37: Start 90-day period | T37: End 90-day period | AF37: Barrow-Dentist | AG37: 0.1708
A38: Step 1D: | B38: Enter the beginning date (mm/dd/yyyy) of a continuous 90-day period for your Medicaid Encounter Volume. | D38: (Note the 90-day period must be during the 12 months preceding the date of attestation (Step 1C). | T38: =IF(R38>0,R38+89,"") ->  | U38: Option 2: The 90 days starting date must fall on or after 12 months prior to the date of attestation. | AF38: Barrow-Mental | AG38: 0.0034
D39: Earliest Start Date of 90-day period: | J39: =IF(R23<>"Recent 12 Months","",IFERROR(EDATE(R35,-12)-1,"")) ->  | AF39: Barrow-Nurse Practitioner | AG39: 0.073
D40: Latest Start Date of 90-day period: | J40: =IF(R23<>"Recent 12 Months","",IF(R35="","",R35-89)) ->  | U40: =IF(AND(R23="Recent 12 Months",R38=""),"Please select a 90-day period.","") ->  | AF40: Barrow-Pediatrician | AG40: 0.1133
AF41: Barrow-Physician | AG41: 0.028
AF42: Bartow-Certified Nurse-Midwife | AG42: 0.0133
A43: Step 1E: | B43: Please select your payment year. | D43: Example: If this is the second year you will receive an incentive payment then select "2nd Payment ". | U43: =IF(R43="","Please select your payment year.","") -> Please select your payment year. | W43: x | AF43: Bartow-Dentist | AG43: 0.1481
AF44: Bartow-Mental | AG44: 0.0066
AF45: Bartow-Nurse Practitioner | AG45: 0.0788
A46: Step 2: | B46: Please select your provider type: | D46: =IF(OR(R46="Obstetrician",R46="Certified Nurse-Midwife"),"For Obstetricians or CNMs, include all encounters for the 90-day period that are associated with a global code.","") ->  | U46: =IF(R46="","Please select a provider type.","") -> Please select a provider type. | W46: x | AF46: Bartow-Pediatrician | AG46: 0.074
B47: Certified Nurse-Midwife | AF47: Bartow-Physician | AG47: 0.0175
B48: Dentist | AF48: Ben Hill-Nurse Practitioner | AG48: 0.072
B49: Nurse Practitioner | AF49: Ben Hill-Pediatrician | AG49: 0.0778
B50: Obstetrician | AF50: Ben Hill-Physician | AG50: 0.0113
B51: Pediatrician | AF51: Berrien-Dentist | AG51: 0.1381
B52: Physician | W52: =IF(U52<>"","x","") ->  | AF52: Berrien-Nurse Practitioner | AG52: 0.0243
AF53: Berrien-Pediatrician | AG53: 0
A54: Step 3: | B54: Are your services performed predominantly in a hospital? | D54: An eligible professional is considered hospital-based if 90% or more of his or her services are performed in a hospital inpatient (Place Of Service code 21) or emergency room (Place Of Service code 23) setting. | U54: =IF(R54="","Please confirm you are not a hospital-based provider.",IF($R$54="Yes","Hospital-Based Eligible Professionals are NOT eligible to receive EHR Medicaid Incentive payments.","")) -> Please confirm you are not a hospital-based provider. | W54: x | AF54: Berrien-Physician | AG54: 0.0186
AF55: Bibb-Certified Nurse-Midwife | AG55: 0.0071
AF56: Bibb-Dentist | AG56: 0.0865
AF57: Bibb-Mental | AG57: 0.0067
AF58: Bibb-Nurse Practitioner | AG58: 0.0354
AF59: Bibb-Pediatrician | AG59: 0.0527
AF60: Bibb-Physician | AG60: 0.0071
A61: Step 4: | B61: Enter your Rendering Medicaid ID and National Provider ID (NPI) and enter your name. | D61: Medicaid ID | H61: NPI | L61: Medicaid Provider Name of Individual | U61: =IF(OR(D62="",H62="",L62=""),"You must complete Step 4.","") -> You must complete Step 4. | W61: x | AF61: Bleckley-Dentist | AG61: 0.0427
AF62: Bleckley-Nurse Practitioner | AG62: 0.0625
AF63: Bleckley-Pediatrician | AG63: 0.0829
V64: =R65 -> 0 | AF64: Bleckley-Physician | AG64: 0.015
A65: Step 5: | B65: Enter the number of locations for which you are reporting your Encounter Volume. | U65: =IF(R65="","Enter the number of locations you are reporting.","") -> Enter the number of locations you are reporting. | V65: =IF(R65="","x","") -> x | W65: x | AF65: Brantley-Dentist | AG65: 0.0659
V66: =IF(V64=0,"x","") -> x | AF66: Brantley-Mental | AG66: 0.0096
V67: =IF(V64=1,IF(AND(D69<>"",J69<>"",N69<>"",P69<>"",R69<>""),"","x"),"") ->  | AF67: Brantley-Nurse Practitioner | AG67: 0.0107
B68: Enter the reporting location(s) address information. | D68: Street Address | J68: City | N68: State | P68: Zip Code | R68: Rendering Medicaid ID | V68: =IF(V64=2,IF(AND(D69<>"",J69<>"",N69<>"",P69<>"",R69<>"",D71<>"",J71<>"",N71<>"",P71<>"",R71<>""),"","x"),"") ->  | AF68: Brantley-Pediatrician | AG68: 0
B69: Location 1 | U69: =IF(OR(V65="x",V66="x",V67="x",V68="x",V69="x",V71="x",V73="x"),"Enter address information for all locations.","") -> Enter address information for all locations. | V69: =IF(V64=3,IF(AND(D69<>"",J69<>"",N69<>"",P69<>"",R69<>"",D71<>"",J71<>"",N71<>"",P71<>"",R71<>"",D73<>"",J73<>"",N73<>"",P73<>"",R73<>""),"","x"),"") ->  | W69: x | AF69: Brantley-Physician | AG69: 0.0544
AF70: Brooks-Mental | AG70: 0
B71: Location 2 | V71: =IF(V64=4,IF(AND(D69<>"",J69<>"",N69<>"",P69<>"",R69<>"",D71<>"",J71<>"",N71<>"",P71<>"",R71<>"",D73<>"",J73<>"",N73<>"",P73<>"",R73<>"",D75<>"",J75<>"",N75<>"",P75<>"",R75<>""),"","x"),"") ->  | AF71: Brooks-Nurse Practitioner | AG71: 0.035
AF72: Brooks-Pediatrician | AG72: 0.0018
B73: Location 3 | V73: =IF(V64=5,IF(AND(D69<>"",J69<>"",N69<>"",P69<>"",R69<>"",D71<>"",J71<>"",N71<>"",P71<>"",R71<>"",D73<>"",J73<>"",N73<>"",P73<>"",R73<>"",D75<>"",J75<>"",N75<>"",P75<>"",R75<>"",D77<>"",J77<>"",N77<>"",P77<>"",R77<>""),"","x"),"") ->  | AF73: Brooks-Physician | AG73: 0.0115
AF74: Bryan-Dentist | AG74: 0.0588
B75: Location 4 | AF75: Bryan-Mental | AG75: 0
AF76: Bryan-Nurse Practitioner | AG76: 0.0628
B77: Location 5 | AF77: Bryan-Pediatrician | AG77: 0.1549
AF78: Bryan-Physician | AG78: 0.0269
AF79: Bulloch-Dentist | AG79: 0.1069
A80: Medicaid and CHIP Encounter Volumes: | AF80: Bulloch-Mental | AG80: 0.0158
A81: Step 6: | B81: Enter your In-State Medicaid and CHIP Encounter Volume | D81: •One Medicaid Encounter is defined as services rendered on any one day to a Medicaid-enrolled individual, regardless of payment liability. Count all Medicaid encounters during the 90-day period. | AF81: Bulloch-Nurse Practitioner | AG81: 0.0476
AF82: Bulloch-Pediatrician | AG82: 0.059
AF83: Bulloch-Physician | AG83: 0.0121
D84: • For Obstetricians, patient volume should include each individual patient encounter that occurred during the specified 90-day period when those services were provided under global codes, regardless of the date of payment. | AF84: Burke-Dentist | AG84: 0.0557
AF85: Burke-Mental | AG85: 0.0011
AF86: Burke-Nurse Practitioner | AG86: 0.0272
H87: Location 1 | J87: Location 2 | L87: Location 3 | N87: Location 4 | P87: Location 5 | V87: =IF(H88="","x","") -> x | AF87: Burke-Pediatrician | AG87: 0.0436
B88: Fee-for-Service Medicaid and CHIP Encounter Volumes | U88: =IF(OR(V87="x",V88="x",V89="x",V90="x",V91="x",V92="x",V93="x"),"You must complete Step 6. If you have no enounter volume, enter zero.","") -> You must complete Step 6. If you have no enounter volume, enter zero. | V88: =IF(V64=1,IF(AND(H88<>"",H93<>"",H94<>"",H95<>"",H96<>""),"","x"),"") ->  | W88: x | AF88: Burke-Physician | AG88: 0.0192
V89: =IF(V64=2,IF(AND(H88<>"",H93<>"",H94<>"",H95<>"",H96<>"",J88<>"",J93<>"",J94<>"",J95<>"",J96<>""),"","x"),"") ->  | AF89: Butts-Dentist | AG89: 0
B90: Total Fee-for-Service Medicaid and CHIP Encounter Volumes | R90: =SUM(H88:P88) -> 0 | V90: =IF(V64=3,IF(AND(H88<>"",H93<>"",H94<>"",H95<>"",H96<>"",J88<>"",J93<>"",J94<>"",J95<>"",J96<>"",L88<>"",L93<>"",L94<>"",L95<>"",L96<>""),"","x"),"") ->  | AF90: Butts-Mental | AG90: 0
V91: =IF(V64=4,IF(AND(H88<>"",H93<>"",H94<>"",H95<>"",H96<>"",J88<>"",J93<>"",J95<>"",J96<>"",L88<>"",L93<>"",L94<>"",L95<>"",L96<>"",N88<>"",N93<>"",N94<>"",N95<>"",N96<>""),"","x"),"") ->  | AF91: Butts-Nurse Practitioner | AG91: 0
B92: Care Management Organization (CMO) Medicaid and CHIP Encounter Volumes | H92: Location 1 | J92: Location 2 | L92: Location 3 | N92: Location 4 | P92: Location 5 | V92: =IF(V64=5,IF(AND(H88<>"",H93<>"",H94<>"",H95<>"",H96<>"",J88<>"",J93<>"",J94<>"",J95<>"",J96<>"",L88<>"",L93<>"",L94<>"",L95<>"",L96<>"",N88<>"",N93<>"",N94<>"",N95<>"",N96<>"",P88<>"",P93<>"",P94<>"",P95<>"",P96<>""),"","x"),"") ->  | AF92: Butts-Pediatrician | AG92: 0.0955
B93: Amerigroup Community Care | AF93: Butts-Physician | AG93: 0.0097
B94: CareSource | AF94: Calhoun-Dentist | AG94: 0.1138
B95: Peach State Health Plan | AF95: Calhoun-Nurse Practitioner | AG95: 0.0162
B96: Wellcare Health Plans, Inc. | AF96: Calhoun-Physician | AG96: 0.0046
AF97: Camden-Certified Nurse-Midwife | AG97: 0.008
B98: Total Care Management Organization Medicaid and CHIP Encounter Volumes | H98: =SUM(H93:H96) -> 0 | J98: =SUM(J93:J96) -> 0 | L98: =SUM(L93:L96) -> 0 | N98: =SUM(N93:N96) -> 0 | P98: =SUM(P93:P96) -> 0 | R98: =SUM(H98:P98) -> 0 | AF98: Camden-Dentist | AG98: 0.0829
AF99: Camden-Mental | AG99: 0.016
B100: Total In-State Medicaid and CHIP Encounter Volumes | H100: =H88+H98 -> 0 | J100: =J88+J98 -> 0 | L100: =L88+L98 -> 0 | N100: =N88+N98 -> 0 | P100: =P88+P98 -> 0 | R100: =R90+R98 -> 0 | AF100: Camden-Nurse Practitioner | AG100: 0.0469
AF101: Camden-Pediatrician | AG101: 0.0431
AF102: Camden-Physician | AG102: 0.0215
AF103: Candler-Mental | AG103: 0.0107
A104: Step 7: | B104: Enter your Out-of-State Medicaid Encounter Volume | U104: =IF(OR(V108="x",V115="x",V116="x",V117="x",V118="x",V119="x",V120="x"),"You must complete Step 7. If you have no encounter volume, select N/A as the data source.","") -> You must complete Step 7. If you have no encounter volume, select N/A as the data source. | W104: x | AF104: Candler-Nurse Practitioner | AG104: 0.0212
W105: =IF(U105<>"","x","") ->  | AF105: Candler-Pediatrician | AG105: 0.0435
B106: Note 1: Out-of-State encounter volume includes claims that were paid by a border State's (i.e. a State contiguous to Georgia) Medicaid program to an Eligible Professional for encounters which occurred at the Eligible Professional's practice location(s). | AF106: Candler-Physician | AG106: 0.0113
AF107: Carroll-Certified Nurse-Midwife | AG107: 0
B108: Does the provider/practice need to include Out-of-State Medicaid volume in the numerator in order to meet the patient volume eligibility requirements? | V108: =IF(D108="","x","") -> x | AF108: Carroll-Dentist | AG108: 0.0969
AF109: Carroll-Mental | AG109: 0.0093
AF110: Carroll-Nurse Practitioner | AG110: 0.0475
B111: Note 2: If yes is selected, Out-of-State Medicaid encounters will be included in the numerator of the patient volume calculation. If no is selected, Out-of-State Medicaid encounters will only be included in the denominator of the patient volume calculation. | AF111: Carroll-Pediatrician | AG111: 0.0851
AF112: Carroll-Physician | AG112: 0.0242
AF113: Catoosa-Certified Nurse-Midwife | AG113: 0.0028
AF114: Catoosa-Dentist | AG114: 0.0961
B115: Out-of-State Medicaid and CHIP Encounter Volumes: | U115: =IF(OR(V115="x",V116="x",V117="x",V118="x",V119="x"),"You have entered Out-of-State Medicaid Encounter Volume. You must enter the corresponding State Name.","") ->  | V115: =IF(OR((AND(H115<>"",D115="")),(AND(H116<>"",D116="")),(AND(H117<>"",D117="")),(AND(H118<>"",D118="")),(AND(H119<>"",D119="")),(AND(H120<>"",D120="")),(AND(H121<>"",D121=""))),"x","") ->  | AF115: Catoosa-Mental | AG115: 0.0019
V116: =IF(OR((AND(J115<>"",D115="")),(AND(J116<>"",D116="")),(AND(J117<>"",D117="")),(AND(J118<>"",D118="")),(AND(J119<>"",D119="")),(AND(J120<>"",D120="")),(AND(J121<>"",D121=""))),"x","") ->  | AF116: Catoosa-Nurse Practitioner | AG116: 0.0638
V117: =IF(OR((AND(L115<>"",D115="")),(AND(L116<>"",D116="")),(AND(L117<>"",D117="")),(AND(L118<>"",D118="")),(AND(L119<>"",D119="")),(AND(L120<>"",D120="")),(AND(L121<>"",D121=""))),"x","") ->  | AF117: Catoosa-Pediatrician | AG117: 0.0737
V118: =IF(OR((AND(N115<>"",D115="")),(AND(N116<>"",D116="")),(AND(N117<>"",D117="")),(AND(N118<>"",D118="")),(AND(N119<>"",D119="")),(AND(N120<>"",D120="")),(AND(N121<>"",D121=""))),"x","") ->  | AF118: Catoosa-Physician | AG118: 0.0297
V119: =IF(OR((AND(P115<>"",D115="")),(AND(P116<>"",D116="")),(AND(P117<>"",D117="")),(AND(P118<>"",D118="")),(AND(P119<>"",D119="")),(AND(P120<>"",D120="")),(AND(P121<>"",D121=""))),"x","") ->  | AF119: Charlton-Dentist | AG119: 0
AF120: Charlton-Mental | AG120: 0.0025
AF121: Charlton-Nurse Practitioner | AG121: 0.0767
AF122: Charlton-Physician | AG122: 0.0051
B123: Total Out-of-State Medicaid and CHIP Encounter Volumes | H123: =SUM(H115:H121) -> 0 | J123: =SUM(J115:J121) -> 0 | L123: =SUM(L115:L121) -> 0 | N123: =SUM(N115:N121) -> 0 | P123: =SUM(P115:P121) -> 0 | R123: =SUM(H115:P121) -> 0 | AF123: Chatham-Certified Nurse-Midwife | AG123: 0.0071
AF124: Chatham-Dentist | AG124: 0.0898
AF125: Chatham-Mental | AG125: 0.0073
B126: Please specify the data source used to determine Out-of-State Medicaid and CHIP Encounter Volumes. The data source must be identifiable and auditable. | U126: =IF(OR(V126="x",V129="x"),"Enter Data Source. Only select N/A, if no out-of-state volume.","") -> Enter Data Source. Only select N/A, if no out-of-state volume. | V126: =IF(D126="","x","") -> x | W126: x | AF126: Chatham-Nurse Practitioner | AG126: 0.037
AF127: Chatham-Pediatrician | AG127: 0.0605
AF128: Chatham-Physician | AG128: 0.012
V129: =IF(AND(D126="Other",D129=""),"x","") ->  | AF129: Chattahooche-Dentist | AG129: 0.0836
AF130: Chattahooche-Nurse Practitioner | AG130: 0
AF131: Chattahooche-Pediatrician | AG131: 0
A132: CHIP Encounter Volume Adjustment: | AF132: Chattahooche-Physician | AG132: 0.023
A133: Step 8A: | B133: Due to the difficulty in distinguishing CHIP volume from Medicaid volume, the Georgia Department of Community Health has created a factor to adjust the Medicaid and CHIP Encounter Volumes based on the predominant Georgia county and provider type. | U133: =IF(V139="x","You must complete Step 8.","") -> You must complete Step 8. | W133: x | AF133: Chattooga-Dentist | AG133: 0.0783
AF134: Chattooga-Mental | AG134: 0.0003
AF135: Chattooga-Nurse Practitioner | AG135: 0.0396
A136: Step 8B: | B136: This calculator will prompt you to select a CHIP factor. A CHIP Factor has been calculated for each county in Georgia. If you are reporting Encounter Volume for more than one county, select the one Georgia county where the majority of your Medicaid and CHIP Encounter Volume was performed during the selected 90-day period. This CHIP factor will reduce the combined Medicaid and CHIP Encounter Volume by a percentage representative of CHIP services for that county. | AF136: Chattooga-Pediatrician | AG136: 0.0541
AF137: Chattooga-Physician | AG137: 0.0462
AF138: Cherokee-Certified Nurse-Midwife | AG138: 0.0091
H139: Select County for CHIP Factor: | V139: =IF(L138="","x","") -> x | AF139: Cherokee-Dentist | AG139: 0.1722
AF140: Cherokee-Mental | AG140: 0.0011
J141: Medicaid Encounter Volume Subtotal | P141: =IF(D108="No",R100,R100+R123) -> 0 | AE141: =IF(R46="Obstetrician","Physician",R46) -> 0 | AF141: Cherokee-Nurse Practitioner | AG141: 0.0973
B142: If the CHIP adjustment is less than 0.01%, no CHIP factor will be shown. | L142: CHIP Factor | P142: =IF(ISNA(VLOOKUP(AE142,AF:AG,2,0))=TRUE,0,VLOOKUP(AE142,AF:AG,2,0)) -> 0 | AE142: =IF(AE141="Physician",L138&"-"&"Physician",L138&"-"&TRIM(R46)) -> - | AF142: Cherokee-Pediatrician | AG142: 0.1354
AF143: Cherokee-Physician | AG143: 0.0263
AF144: Clarke-Certified Nurse-Midwife | AG144: 0.0023
H145: Location 1 | J145: Location 2 | L145: Location 3 | N145: Location 4 | P145: Location 5 | AF145: Clarke-Dentist | AG145: 0.0934
B146: CHIP Encounter Volume Adjustment | H146: =ROUNDDOWN(IF(D108="No",H100,H100+H123)*$P$142,0) -> 0 | J146: =ROUNDDOWN(IF(D108="No",J100,J100+J123)*$P$142,0) -> 0 | L146: =ROUNDDOWN(IF(D108="No",L100,L100+L123)*$P$142,0) -> 0 | N146: =ROUNDDOWN(IF(F108="No",N100,N100+N123)*$P$142,0) -> 0 | P146: =ROUNDDOWN(IF(H108="No",P100,P100+P123)*$P$142,0) -> 0 | R146: =SUM(H146:P146) -> 0 | AF146: Clarke-Mental | AG146: 0.016
AF147: Clarke-Nurse Practitioner | AG147: 0.033
A148: Total Adjusted Medicaid Encounter Volume | H148: =IF(D108="No",H100-H146,H100+H123-H146) -> 0 | J148: =IF(D108="No",J100-J146,J100+J123-J146) -> 0 | L148: =IF(D108="No",L100-L146,L100+L123-L146) -> 0 | N148: =IF(F108="No",N100-N146,N100+N123-N146) -> 0 | P148: =IF(H108="No",P100-P146,P100+P123-P146) -> 0 | R148: =SUM(H148:P148) -> 0 | AF148: Clarke-Pediatrician | AG148: 0.0809
B149: =IF(AND(D108="No",H115<>""),"The Out-of-State Medicaid encounter volume will only be included in the denominator of the patient volume calculator.","") ->  | AF149: Clarke-Physician | AG149: 0.0103
AF150: Clay-Physician | AG150: 0.0017
A151: Step 9: | B151: Enter your Non-Medicaid Encounter Volume. | U151: =IF(OR(V151="x",V152="x",V153="x",V154="x",V155="x",V156="x",V157="x",V140="x",V141="x",V142="x",V143="x",V144="x"),"You must complete Step 9.","") -> You must complete Step 9. | V151: =IF(H152="","x","") -> x | W151: x | AF151: Clayton-Certified Nurse-Midwife | AG151: 0.0069
D152: Medicare | V152: =IF(V64=1,IF(AND(H152<>"",H153<>"",H154<>"",H156<>""),"","x"),"") ->  | AF152: Clayton-Dentist | AG152: 0.0967
D153: Private Insurance | V153: =IF(V64=2,IF(AND(H152<>"",H153<>"",H154<>"",H156<>"",J152<>"",J153<>"",J154<>"",J156<>""),"","x"),"") ->  | AF153: Clayton-Mental | AG153: 0.0027
D154: Other (i.e. cash; out-of-state) | V154: =IF(V64=3,IF(AND(H152<>"",H153<>"",H154<>"",H156<>"",J152<>"",J153<>"",J154<>"",J156<>"",L152<>"",L153<>"",L154<>"",L156<>""),"","x"),"") ->  | AF154: Clayton-Nurse Practitioner | AG154: 0.0405
D155: Out-of-State Non-Medicaid Encounter Volume | U155: =IF(V155="x","You have entered volume on the CHIP row in Step 9 and selected 'Yes' in Step 8A. Please correct this error.","") ->  | V155: =IF(V64=4,IF(AND(H152<>"",H153<>"",H154<>"",H156<>"",J152<>"",J153<>"",J154<>"",J156<>"",L152<>"",L153<>"",L154<>"",L156<>"",N152<>"",N153<>"",N154<>"",N156<>""),"","x"),"") ->  | AF155: Clayton-Pediatrician | AG155: 0.0661
AF156: Clayton-Physician | AG156: 0.0067
A157: Total Non-Medicaid Encounter Volume | H157: =SUM(H152:H154)+H156 -> 0 | J157: =SUM(J152:J154)+J156 -> 0 | L157: =SUM(L152:L154)+L156 -> 0 | N157: =SUM(N152:N154)+N156 -> 0 | P157: =SUM(P152:P154)+P156 -> 0 | R157: =SUM(H157:P157) -> 0 | V157: =IF(V64=1,IF(AND(J161=0,L161=0,N161=0,P161=0),"","x"),"") ->  | W157: =IF(U157<>"","x","") ->  | AF157: Clinch-Dentist | AG157: 0
AF158: Clinch-Mental | AG158: 0.0191
AF159: Clinch-Nurse Practitioner | AG159: 0.1
A160: Total Medicaid and Non-Medicaid Encounter Volume | H160: Location 1 | J160: Location 2 | L160: Location 3 | N160: Location 4 | P160: Location 5 | V160: =IF(V64=2,IF(AND(L161=0,N161=0,P161=0),"","x"),"") ->  | W160: =IF(U160<>"","x","") ->  | AF160: Clinch-Physician | AG160: 0.0217
B161: • This amount is the sum of Step 6, Step 7, Step 8, and Step 9. | H161: =H100+H123+H157 -> 0 | J161: =J100+J123+J157 -> 0 | L161: =L100+L123+L157 -> 0 | N161: =N100+N123+N157 -> 0 | P161: =P100+P123+P157 -> 0 | R161: =R100+R123+R157 -> 0 | V161: =IF(V64=3,IF(AND(N161=0,P161=0),"","x"),"") ->  | W161: =IF(U161<>"","x","") ->  | AF161: Cobb-Certified Nurse-Midwife | AG161: 0.003
V162: =IF(V64=4,IF(P161=0,"","x"),"") ->  | W162: =IF(U162<>"","x","") ->  | AF162: Cobb-Dentist | AG162: 0.1413
AF163: Cobb-Mental | AG163: 0.0241
H164: =IF(OR(V157="x",V160="x",V161="x",V162="x"),"Error! You have entered encounter volume for more locations than indicated in Step 5. Please correct your calculation!","") ->  | AF164: Cobb-Nurse Practitioner | AG164: 0.0582
B165: Summary: | V165: =COUNTIF(W:W,"x") -> 11 | W165: =IF(H164<>"","x","") ->  | AF165: Cobb-Pediatrician | AG165: 0.1044
B166: In-State Medicaid and CHIP Encounter Volumes | D166: =$R$100 -> 0 | AF166: Cobb-Physician | AG166: 0.0248
P167: =IF($R$54="Yes","Hospital-Based Eligible Professionals are NOT eligible to receive EHR Medicaid Incentive payments."," ") ->  | AF167: Coffee-Dentist | AG167: 0.113
B168: Out-of-State Medicaid and CHIP Encounter Volumes | D168: =$R$123 -> 0 | H168: =IF(AND(D108="No",R123<>""),"The Out-of-State Medicaid encounter volume will only be included in the denominator of the patient volume calculator.","") ->  | AF168: Coffee-Mental | AG168: 0.0132
AF169: Coffee-Nurse Practitioner | AG169: 0.0316
B170: Total Medicaid Encounter Volume Excluding CHIP | D170: =R148 -> 0 | P170: =IF(OR(AND($R$46="Pediatrician",F182>=19.4444444444445),AND($R$46<>"Pediatrician",$F$182>=29.4444444444445)),"This Percentage Does Meet the Medicaid EHR Incentive Program Patient Volume Requirement","This Percentage Does NOT Meet the Medicaid EHR Incentive Program Patient Volume Requirement") -> This Percentage Does NOT Meet the Medicaid EHR Incentive Program Patient Volume Requirement | AF170: Coffee-Pediatrician | AG170: 0.0666
AF171: Coffee-Physician | AG171: 0.0092
B172: Total Medicaid and Non-Medicaid Encounter Volume | D172: =$R$161 -> 0 | AF172: Colquitt-Certified Nurse-Midwife | AG172: 0
AF173: Colquitt-Dentist | AG173: 0.0671
P174: =IF(V165<>0,"Review Column U for error messages. You must resolve all calculator errors above.","") -> Review Column U for error messages. You must resolve all calculator errors above. | AF174: Colquitt-Mental | AG174: 0.0061
B175: Patient Volume Calculation: | AF175: Colquitt-Nurse Practitioner | AG175: 0.0095
B176: Total Medicaid Encounter Volume Excluding CHIP (Numerator) | D176: =R148 -> 0 | AF176: Colquitt-Pediatrician | AG176: 0.0469
AF177: Colquitt-Physician | AG177: 0.0109
B178: Total Medicaid and Non-Medicaid Encounter Volume (Denominator) | D178: =D172 -> 0 | AF178: Columbia-Dentist | AG178: 0.1416
AF179: Columbia-Nurse Practitioner | AG179: 0.0239
AF180: Columbia-Pediatrician | AG180: 0.0955
AF181: Columbia-Physician | AG181: 0.0509
A182: Medicaid Patient Volume: | F182: =IF(D178=0,0,(((D176)/D178)*100)) -> 0 | I182: 1 | J182: % | L182: 1 | AF182: Cook-Dentist | AG182: 0.1067
AF183: Cook-Mental | AG183: 0.0174
F184: =IF(F182>100.000000000001,"Error, Cannot be higher than 100%, please recalculate","") ->  | AF184: Cook-Nurse Practitioner | AG184: 0.0381
A185: 1 The Medicaid Patient Volume calculation is rounded up or down to the nearest whole number. Amounts less than .5 are rounded down; amounts equal to or greater than .5 are rounded up. | AF185: Cook-Pediatrician | AG185: 0.0393
AF186: Cook-Physician | AG186: 0.0347
AF187: Coweta-Certified Nurse-Midwife | AG187: 0
B188: When applying to the Georgia Medicaid Incentive Payment Program, the information below should be entered as the patient volume information in the state of Georgia's Medical Assistance Provider Incentive Repository (MAPIR) System: | AF188: Coweta-Dentist | AG188: 0.1152
AF189: Coweta-Mental | AG189: 0.0193
C190: Medicaid Only Encounter Volume2 (In State Numerator) | F190: Total Medicaid Encounter Volume3 (Total Numerator) | I190: Total Encounter Volume4 (Denominator) | N190: * The calculator must be uploaded to MAPIR in a PDF format until MAPIR has the capability to accept spreadsheets. Once MAPIR has the capability to accept spreadsheets, the calculator must be uploaded as a spreadsheet. See the instructions on the Instructions tab to properly create a PDF to upload into MAPIR. | AF190: Coweta-Nurse Practitioner | AG190: 0.0529
AF191: Coweta-Pediatrician | AG191: 0.0786
B192: Location 1 | C192: =ROUNDUP(H100*(1-$P$142),0) -> 0 | F192: =H148 -> 0 | I192: =H161 -> 0 | AF192: Coweta-Physician | AG192: 0.0077
AF193: Crawford-Dentist | AG193: 0.0263
AF194: Crawford-Mental | AG194: 0.0816
B195: Location 2 | C195: =ROUNDUP(J100*(1-$P$142),0) -> 0 | F195: =J148 -> 0 | I195: =J161 -> 0 | AF195: Crawford-Pediatrician | AG195: 0.1131
AF196: Crawford-Physician | AG196: 0.0199
AF197: Crisp-Certified Nurse-Midwife | AG197: 0
B198: Location 3 | C198: =ROUNDUP(L100*(1-$P$142),0) -> 0 | F198: =L148 -> 0 | I198: =L161 -> 0 | AF198: Crisp-Dentist | AG198: 0.0731
AF199: Crisp-Mental | AG199: 0
AF200: Crisp-Nurse Practitioner | AG200: 0.0331
... 549 more rows

Sheet Example - Individual (hidden)
A1: Georgia Department of Community Health | W1: =IF(U1<>"","x","") ->  | AF1: Lookup | AG1: CHIP Factor
A2: Office of Information Technology | AF2: NULL | AG2: 0
A3: Health Information Technology (HIT) Unit
A4: Medicaid Promoting Interoperability (PI) program (formerly EHR Incentive Program) for Meaningful Use | AF4: NULL | AG4: 0
A5: Program Year 2018 | AF5: NULL | AG5: 0
AF6: NULL | AG6: 0
A7: Calculation: Individual Encounter Volume | AF7: NULL | AG7: 0
AF8: All County-Certified Nurse-Midwife | AG8: 0
A9: Contact Information: (This information populates from the information entered on the Contact Information tab.) | AF9: All County-Nurse Practitioner | AG9: 0
A10: Eligible Professional National Provider ID (NPI): | C10: 1111111111 | AF10: All County-Pediatrician | AG10: 0.123287
A11: Eligible Professional Rendering Medicaid ID: | C11: 000000001A | U11: =IF(OR(C10="Please enter your NPI.",C11="Please enter your Rendering Medicaid ID.",C12="Please enter your Eligible Professional Name",C13="Please enter the name of the person completing this workbook.",C14="Please enter the phone number of the person completing this workbook.",C15="Please enter the email address of the person completing this workbook",C16="Please enter the date this workbook was completed."),"Please complete the Contact Information tab of this workbook.","") ->  | W11: =IF(U11<>"","x","") ->  | AF11: All County-Physician | AG11: 0.007451
A12: Eligible Professional Name: | C12: Provider A | AF12: Appling-Dentist | AG12: 1
A13: Contact Person Completing This Workbook | C13: Susie Smith | AF13: Appling-Mental | AG13: 0.008888
A14: Contact Person Phone Number | C14: 1234567890 | AF14: Appling-Nurse Practitioner | AG14: 0.032989
A15: Contact Person Email Address | C15: smith@aol.com | AF15: Appling-Pediatrician | AG15: 0.024137
A16: Date Completed: | C16: 2018-02-01 | AF16: Appling-Physician | AG16: 0.007359
AF17: Atkinson-Dentist | AG17: 0.081395
A18: Eligible Professional Patient Volume Calculation Template | AF18: Atkinson-Nurse Practitioner | AG18: 1
AF19: Atkinson-Pediatrician | AG19: 0.004702
A20: Purple Shaded Cells Represent Data Entry | D20: For detailed information to assist in completing the Eligible Professional Patient Volume Calculation, see the Background Information tab. | AF20: Atkinson-Physician | AG20: 0.015873
D21: Background Information | AF21: Bacon-Dentist | AG21: 0
A22: Instructions | AF22: Bacon-Mental | AG22: 0.040926
A23: Step 1A: | B23: Enter the patient volume methodology being used for the 90-day period. | D23: * Medicaid patient volume can be calculated using one of the two following methods: | R23: Recent 12 Months | U23: =IF(R23="","Select a patient volume methodology.","") ->  | AF23: Bacon-Nurse Practitioner | AG23: 0.04653
AF24: Bacon-Pediatrician | AG24: 0.040803
D25: 1) Patient volume can be determined using a consecutive 90-day period within the prior calendar year 2017 (01/01/2017-12/31/2017); | AF25: Bacon-Physician | AG25: 0.013475
AF26: Baker-Pediatrician | AG26: 0.041666
D27: OR | AF27: Baker-Physician | AG27: 0
AF28: Baldwin-Dentist | AG28: 0.057151
D29: 2) Patient volume can be determined across a consecutive 90-day period in the last 12 months preceding the provider's attestation. | AF29: Baldwin-Mental | AG29: 0.004411
R30: Start 90-day period | T30: End 90-day period | AF30: Baldwin-Nurse Practitioner | AG30: 0.013414
A31: Step 1B: | B31: Enter the beginning date (mm/dd/yyyy) of a continuous 90-day period for your Medicaid Encounter Volume. | D31: (Note the 90-day period must be entirely in the previous calendar year and cannot overlap into the current year. The Medicaid encounter volume should include encounters with dates of service during the 90-day period.) | T31: =IF(R31>0,R31+89,"") ->  | U31: Option 1: Calendar Year - Program Year 2018 Calculations, the 90 days starting date must fall on or after January 1, 2017. | AF31: Baldwin-Pediatrician | AG31: 0.056651
AF32: Baldwin-Physician | AG32: 0.011042
U33: =IF(AND(R23="Prior Calendar Year",R31=""),"Please select a 90-day period.","") ->  | AF33: Banks-Dentist | AG33: 0.104651
A34: Step 1C: | B34: Enter the date of attestation. | D34: * This is the date the provider intends to electronically certify that the information entered on this calculator and any uploaded supporting documentation is true, accurate, and complete. | AF34: Banks-Nurse Practitioner | AG34: 0.089686
R35: 2018-01-01 | U35: =IF(AND(R23="Recent 12 Months",R35=""),"Please enter the date of attestation.","") ->  | AF35: Banks-Physician | AG35: 0.037391
AF36: Barrow-Certified Nurse-Midwife | AG36: 0.04145
R37: Start 90-day period | T37: End 90-day period | AF37: Barrow-Dentist | AG37: 0.17079
A38: Step 1D: | B38: Enter the beginning date (mm/dd/yyyy) of a continuous 90-day period for your Medicaid Encounter Volume. | D38: (Note the 90-day period must be during the 12 months preceding the date of attestation (Step 1C). | R38: 2017-06-01 | T38: =IF(R38>0,R38+89,"") -> 2017-08-29 | U38: Option 2: The 90 days starting date must fall on or after 12 months prior to the date of attestation. | AF38: Barrow-Mental | AG38: 0.003355
D39: Earliest Start Date of 90-day period: | J39: =IF(R23<>"Recent 12 Months","",IFERROR(EDATE(R35,-12)-1,"")) -> 2016-12-31 | AF39: Barrow-Nurse Practitioner | AG39: 0.072977
D40: Latest Start Date of 90-day period: | J40: =IF(R23<>"Recent 12 Months","",IF(R35="","",R35-89)) -> 2017-10-04 | U40: =IF(AND(R23="Recent 12 Months",R38=""),"Please select a 90-day period.","") ->  | AF40: Barrow-Pediatrician | AG40: 0.11329
AF41: Barrow-Physician | AG41: 0.028008
AF42: Bartow-Certified Nurse-Midwife | AG42: 0.013289
A43: Step 1E: | B43: Please select your payment year. | D43: Example: If this is the first year you will receive an incentive payment then select "1st Payment". If you have already received an incentive payment and this is the second year you will receive an incentive payment then select "2nd Payment ". | R43: 1st Payment | U43: =IF(R43="","Please select your payment year.","") ->  | AF43: Bartow-Dentist | AG43: 0.148144
AF44: Bartow-Mental | AG44: 0.006587
AF45: Bartow-Nurse Practitioner | AG45: 0.078761
A46: Step 2: | B46: Please select your provider type: | D46: =IF(OR(R46="Obstetrician",R46="Certified Nurse-Midwife"),"For Obstetricians or CNMs, include all encounters for the 90-day period that are associated with a global code.","") ->  | R46: Physician | U46: =IF(R46="","Please select a provider type.","") ->  | AF46: Bartow-Pediatrician | AG46: 0.074014
B47: Certified Nurse-Midwife | AF47: Bartow-Physician | AG47: 0.017507
B48: Dentist | AF48: Ben Hill-Nurse Practitioner | AG48: 0.072033
B49: Nurse Practitioner | AF49: Ben Hill-Pediatrician | AG49: 0.077777
B50: Obstetrician | AF50: Ben Hill-Physician | AG50: 0.011326
B51: Pediatrician | AF51: Berrien-Dentist | AG51: 0.138114
B52: Physician | AF52: Berrien-Nurse Practitioner | AG52: 0.024303
AF53: Berrien-Pediatrician | AG53: 0
A54: Step 3: | B54: Are your services performed predominantly in a hospital? | D54: An eligible professional is considered hospital-based if 90% or more of his or her services are performed in a hospital inpatient (Place Of Service code 21) or emergency room (Place Of Service code 23) setting. | R54: No | U54: =IF(R54="","Please confirm you are not a hospital-based provider.",IF($R$54="Yes","Hospital-Based Eligible Professionals are NOT eligible to receive EHR Medicaid Incentive payments.","")) ->  | AF54: Berrien-Physician | AG54: 0.018633
AF55: Bibb-Certified Nurse-Midwife | AG55: 0.00713
AF56: Bibb-Dentist | AG56: 0.086514
AF57: Bibb-Mental | AG57: 0.0067
AF58: Bibb-Nurse Practitioner | AG58: 0.035378
AF59: Bibb-Pediatrician | AG59: 0.052713
AF60: Bibb-Physician | AG60: 0.007112
A61: Step 4: | B61: Enter your Rendering Medicaid ID and National Provider ID (NPI) and enter your name. | D61: Medicaid ID | H61: NPI | L61: Medicaid Provider Name of Individual | U61: =IF(OR(D62="",H62="",L62=""),"You must complete Step 4.","") ->  | AF61: Bleckley-Dentist | AG61: 0.042669
D62: 000000001A | H62: 1111111111 | L62: Provider A | AF62: Bleckley-Nurse Practitioner | AG62: 0.0625
AF63: Bleckley-Pediatrician | AG63: 0.082915
V64: =R65 -> 2 | AF64: Bleckley-Physician | AG64: 0.014963
A65: Step 5: | B65: Enter the number of locations for which you are reporting your Encounter Volume. | R65: 2 | U65: =IF(R65="","Enter the number of locations you are reporting.","") ->  | V65: =IF(R65="","x","") ->  | AF65: Brantley-Dentist | AG65: 0.065923
V66: =IF(V64=0,"x","") ->  | W66: =IF(U66<>"","x","") ->  | AF66: Brantley-Mental | AG66: 0.00959
V67: =IF(V64=1,IF(AND(D69<>"",J69<>"",N69<>"",P69<>"",R69<>""),"","x"),"") ->  | AF67: Brantley-Nurse Practitioner | AG67: 0.010695
B68: Enter the reporting location(s) address information. | D68: Street Address | J68: City | N68: State | P68: Zip Code | R68: Rendering Medicaid ID | V68: =IF(V64=2,IF(AND(D69<>"",J69<>"",N69<>"",P69<>"",R69<>"",D71<>"",J71<>"",N71<>"",P71<>"",R71<>""),"","x"),"") ->  | AF68: Brantley-Pediatrician | AG68: 0
B69: Location 1 | D69: 1 Street | J69: Atlanta | N69: GA | P69: 30303 | R69: 000000001A | U69: =IF(OR(V65="x",V66="x",V67="x",V68="x",V69="x",V71="x",V73="x"),"Enter address information for all locations.","") ->  | V69: =IF(V64=3,IF(AND(D69<>"",J69<>"",N69<>"",P69<>"",R69<>"",D71<>"",J71<>"",N71<>"",P71<>"",R71<>"",D73<>"",J73<>"",N73<>"",P73<>"",R73<>""),"","x"),"") ->  | AF69: Brantley-Physician | AG69: 0.054409
AF70: Brooks-Mental | AG70: 0
B71: Location 2 | D71: 2 Street | J71: Macon | N71: GA | P71: 30265 | R71: 000000001C | V71: =IF(V64=4,IF(AND(D69<>"",J69<>"",N69<>"",P69<>"",R69<>"",D71<>"",J71<>"",N71<>"",P71<>"",R71<>"",D73<>"",J73<>"",N73<>"",P73<>"",R73<>"",D75<>"",J75<>"",N75<>"",P75<>"",R75<>""),"","x"),"") ->  | AF71: Brooks-Nurse Practitioner | AG71: 0.034957
AF72: Brooks-Pediatrician | AG72: 0.001786
B73: Location 3 | V73: =IF(V64=5,IF(AND(D69<>"",J69<>"",N69<>"",P69<>"",R69<>"",D71<>"",J71<>"",N71<>"",P71<>"",R71<>"",D73<>"",J73<>"",N73<>"",P73<>"",R73<>"",D75<>"",J75<>"",N75<>"",P75<>"",R75<>"",D77<>"",J77<>"",N77<>"",P77<>"",R77<>""),"","x"),"") ->  | AF73: Brooks-Physician | AG73: 0.011475
AF74: Bryan-Dentist | AG74: 0.058823
B75: Location 4 | AF75: Bryan-Mental | AG75: 0
AF76: Bryan-Nurse Practitioner | AG76: 0.062787
B77: Location 5 | AF77: Bryan-Pediatrician | AG77: 0.154912
AF78: Bryan-Physician | AG78: 0.026925
AF79: Bulloch-Dentist | AG79: 0.106885
A80: Medicaid and CHIP Encounter Volumes: | AF80: Bulloch-Mental | AG80: 0.015845
A81: Step 6: | B81: Enter your In-State Medicaid and CHIP Encounter Volume | D81: •One Medicaid Encounter is defined as services rendered on any one day to a Medicaid-enrolled individual, regardless of payment liability. Count all Medicaid encounters during the 90-day period. | AF81: Bulloch-Nurse Practitioner | AG81: 0.047563
AF82: Bulloch-Pediatrician | AG82: 0.059023
AF83: Bulloch-Physician | AG83: 0.012087
D84: • For Obstetricians, patient volume should include each individual patient encounter that occurred during the specified 90-day period when those services were provided under global codes, regardless of the date of payment. | AF84: Burke-Dentist | AG84: 0.055715
AF85: Burke-Mental | AG85: 0.001055
AF86: Burke-Nurse Practitioner | AG86: 0.02719
H87: Location 1 | J87: Location 2 | L87: Location 3 | N87: Location 4 | P87: Location 5 | V87: =IF(H88="","x","") ->  | AF87: Burke-Pediatrician | AG87: 0.043648
B88: Fee-for-Service Medicaid and CHIP Encounter Volumes | H88: 100 | J88: 200 | U88: =IF(OR(V87="x",V88="x",V89="x",V90="x",V91="x",V92="x",V93="x"),"You must complete Step 6. If you have no enounter volume, enter zero.","") ->  | V88: =IF(V64=1,IF(AND(H88<>"",H93<>"",H95<>"",H96<>""),"","x"),"") ->  | AF88: Burke-Physician | AG88: 0.019154
V89: =IF(V64=2,IF(AND(H88<>"",H93<>"",H95<>"",H96<>"",J88<>"",J93<>"",J95<>"",J96<>""),"","x"),"") ->  | AF89: Butts-Dentist | AG89: 0
B90: Total Fee-for-Service Medicaid and CHIP Encounter Volumes | R90: =SUM(H88:P88) -> 300 | V90: =IF(V64=3,IF(AND(H88<>"",H93<>"",H95<>"",H96<>"",J88<>"",J93<>"",J95<>"",J96<>"",L88<>"",L93<>"",L95<>"",L96<>""),"","x"),"") ->  | AF90: Butts-Mental | AG90: 0
V91: =IF(V64=4,IF(AND(H88<>"",H93<>"",H95<>"",H96<>"",J88<>"",J93<>"",J95<>"",J96<>"",L88<>"",L93<>"",L95<>"",L96<>"",N88<>"",N93<>"",N95<>"",N96<>""),"","x"),"") ->  | AF91: Butts-Nurse Practitioner | AG91: 0
B92: Care Management Organization (CMO) Medicaid and CHIP Encounter Volumes | H92: Location 1 | J92: Location 2 | L92: Location 3 | N92: Location 4 | P92: Location 5 | V92: =IF(V64=5,IF(AND(H88<>"",H93<>"",H95<>"",H96<>"",J88<>"",J93<>"",J95<>"",J96<>"",L88<>"",L93<>"",L95<>"",L96<>"",N88<>"",N93<>"",N95<>"",N96<>"",P88<>"",P93<>"",P95<>"",P96<>""),"","x"),"") ->  | AF92: Butts-Pediatrician | AG92: 0.095468
B93: Amerigroup Community Care | H93: 200 | J93: 0 | AF93: Butts-Physician | AG93: 0.009689
B94: CareSource | H94: 0 | J94: 25 | AF94: Calhoun-Dentist | AG94: 0.113754
B95: Peach State Health Plan | H95: 0 | J95: 200 | AF95: Calhoun-Nurse Practitioner | AG95: 0.016216
B96: Wellcare Health Plans, Inc. | H96: 0 | J96: 0 | AF96: Calhoun-Physician | AG96: 0.004596
AF97: Camden-Certified Nurse-Midwife | AG97: 0.008009
B98: Total Care Management Organization Medicaid and CHIP Encounter Volumes | H98: =SUM(H93:H96) -> 200 | J98: =SUM(J93:J96) -> 225 | L98: =SUM(L93:L96) -> 0 | N98: =SUM(N93:N96) -> 0 | P98: =SUM(P93:P96) -> 0 | R98: =SUM(H98:P98) -> 425 | AF98: Camden-Dentist | AG98: 0.082935
AF99: Camden-Mental | AG99: 0.016026
B100: Total In-State Medicaid and CHIP Encounter Volumes | H100: =H88+H98 -> 300 | J100: =J88+J98 -> 425 | L100: =L88+L98 -> 0 | N100: =N88+N98 -> 0 | P100: =P88+P98 -> 0 | R100: =R90+R98 -> 725 | AF100: Camden-Nurse Practitioner | AG100: 0.046949
AF101: Camden-Pediatrician | AG101: 0.043099
AF102: Camden-Physician | AG102: 0.021467
AF103: Candler-Mental | AG103: 0.010733
A104: Step 7: | B104: Enter your Out-of-State Medicaid Encounter Volume | U104: =IF(OR(V108="x",V115="x",V116="x",V117="x",V118="x",V119="x",V120="x"),"You must complete Step 7. If you have no encounter volume, select N/A as the data source.","") ->  | AF104: Candler-Nurse Practitioner | AG104: 0.021206
AF105: Candler-Pediatrician | AG105: 0.043462
B106: Note 1: Out-of-State encounter volume includes claims that were paid by a border State's (i.e. a State contiguous to Georgia) Medicaid program to an Eligible Professional for encounters which occurred at the Eligible Professional's practice location(s). | AF106: Candler-Physician | AG106: 0.011273
AF107: Carroll-Certified Nurse-Midwife | AG107: 0
B108: Does the provider/practice need to include Out-of-State Medicaid volume in the numerator in order to meet the patient volume eligibility requirements? | D108: Yes | V108: =IF(D108="","x","") ->  | AF108: Carroll-Dentist | AG108: 0.096882
AF109: Carroll-Mental | AG109: 0.009321
AF110: Carroll-Nurse Practitioner | AG110: 0.047482
B111: Note 2: If yes is selected, Out-of-State Medicaid encounters will be included in the numerator of the patient volume calculation. If no is selected, Out-of-State Medicaid encounters will only be included in the denominator of the patient volume calculation. | AF111: Carroll-Pediatrician | AG111: 0.085121
AF112: Carroll-Physician | AG112: 0.024152
AF113: Catoosa-Certified Nurse-Midwife | AG113: 0.002834
D114: State Name | H114: Location 1 | J114: Location 2 | L114: Location 3 | N114: Location 4 | P114: Location 5 | AF114: Catoosa-Dentist | AG114: 0.096118
B115: Out-of-State Medicaid and CHIP Encounter Volumes: | D115: South Carolina | J115: 300 | U115: =IF(OR(V115="x",V116="x",V117="x",V118="x",V119="x"),"You have entered Out-of-State Medicaid Encounter Volume. You must enter the corresponding State Name.","") ->  | V115: =IF(OR((AND(H115<>"",D115="")),(AND(H116<>"",D116="")),(AND(H117<>"",D117="")),(AND(H118<>"",D118="")),(AND(H119<>"",D119="")),(AND(H120<>"",D120="")),(AND(H121<>"",D121=""))),"x","") ->  | AF115: Catoosa-Mental | AG115: 0.00194
V116: =IF(OR((AND(J115<>"",D115="")),(AND(J116<>"",D116="")),(AND(J117<>"",D117="")),(AND(J118<>"",D118="")),(AND(J119<>"",D119="")),(AND(J120<>"",D120="")),(AND(J121<>"",D121=""))),"x","") ->  | AF116: Catoosa-Nurse Practitioner | AG116: 0.063754
V117: =IF(OR((AND(L115<>"",D115="")),(AND(L116<>"",D116="")),(AND(L117<>"",D117="")),(AND(L118<>"",D118="")),(AND(L119<>"",D119="")),(AND(L120<>"",D120="")),(AND(L121<>"",D121=""))),"x","") ->  | AF117: Catoosa-Pediatrician | AG117: 0.07366
V118: =IF(OR((AND(N115<>"",D115="")),(AND(N116<>"",D116="")),(AND(N117<>"",D117="")),(AND(N118<>"",D118="")),(AND(N119<>"",D119="")),(AND(N120<>"",D120="")),(AND(N121<>"",D121=""))),"x","") ->  | AF118: Catoosa-Physician | AG118: 0.02966
V119: =IF(OR((AND(P115<>"",D115="")),(AND(P116<>"",D116="")),(AND(P117<>"",D117="")),(AND(P118<>"",D118="")),(AND(P119<>"",D119="")),(AND(P120<>"",D120="")),(AND(P121<>"",D121=""))),"x","") ->  | AF119: Charlton-Dentist | AG119: 0
V120: =IF(D126="","x","") ->  | AF120: Charlton-Mental | AG120: 0.002544
AF121: Charlton-Nurse Practitioner | AG121: 0.076719
AF122: Charlton-Physician | AG122: 0.005141
B123: Total Out-of-State Medicaid and CHIP Encounter Volumes | H123: =SUM(H115:H121) -> 0 | J123: =SUM(J115:J121) -> 300 | L123: =SUM(L115:L121) -> 0 | N123: =SUM(N115:N121) -> 0 | P123: =SUM(P115:P121) -> 0 | R123: =SUM(H115:P121) -> 300 | AF123: Chatham-Certified Nurse-Midwife | AG123: 0.007132
AF124: Chatham-Dentist | AG124: 0.089779
D125: Data Source | AF125: Chatham-Mental | AG125: 0.007271
B126: Please specify the data source used to determine Out-of-State Medicaid and CHIP Encounter Volumes. The data source must be identifiable and auditable. | D126: Cash Receipts journals | U126: =IF(OR(V126="x",V129="x"),"Enter Data Source. Only select N/A, if no out-of-state volume.","") ->  | V126: =IF(D126="","x","") ->  | AF126: Chatham-Nurse Practitioner | AG126: 0.037007
AF127: Chatham-Pediatrician | AG127: 0.06048
D128: If Other, specify data source not listed above. | AF128: Chatham-Physician | AG128: 0.011998
V129: =IF(AND(D126="Other",D129=""),"x","") ->  | AF129: Chattahooche-Dentist | AG129: 0.083555
AF130: Chattahooche-Nurse Practitioner | AG130: 0
W131: =IF(U131<>"","x","") ->  | AF131: Chattahooche-Pediatrician | AG131: 0
A132: CHIP Encounter Volume Adjustment: | AF132: Chattahooche-Physician | AG132: 0.022988
A133: Step 8A: | B133: Due to the difficulty in distinguishing CHIP volume from Medicaid volume, the Georgia Department of Community Health has created a factor to adjust the Medicaid and CHIP Encounter Volumes based on the predominant Georgia county and provider type. | U133: =IF(V139="x","You must complete Step 8.","") ->  | AF133: Chattooga-Dentist | AG133: 0.07825
AF134: Chattooga-Mental | AG134: 0.000333
AF135: Chattooga-Nurse Practitioner | AG135: 0.039555
A136: Step 8B: | B136: This calculator will prompt you to select a CHIP factor. A CHIP Factor has been calculated for each county in Georgia. If you are reporting Encounter Volume for more than one county, select the one Georgia county where the majority of your Medicaid and CHIP Encounter Volume was performed during the selected 90-day period. This CHIP factor will reduce the combined Medicaid and CHIP Encounter Volume by a percentage representative of CHIP services for that county. | AF136: Chattooga-Pediatrician | AG136: 0.054095
AF137: Chattooga-Physician | AG137: 0.046223
L138: FULTON | AF138: Cherokee-Certified Nurse-Midwife | AG138: 0.009132
H139: Select County for CHIP Factor: | V139: =IF(L138="","x","") ->  | AF139: Cherokee-Dentist | AG139: 0.172207
AF140: Cherokee-Mental | AG140: 0.001062
J141: Medicaid Encounter Volume Subtotal | P141: =IF(D108="No",R100,R100+R123) -> 1025 | AE141: =IF(R46="Obstetrician","Physician",R46) -> Physician | AF141: Cherokee-Nurse Practitioner | AG141: 0.097251
B142: If the CHIP adjustment is less than 0.01%, no CHIP factor will be shown. | L142: CHIP Factor | P142: =IF(ISNA(VLOOKUP(AE142,AF:AG,2,0))=TRUE,0,VLOOKUP(AE142,AF:AG,2,0)) -> 0.011149 | AE142: =IF(AE141="Physician",L138&"-"&"Physician",L138&"-"&TRIM(R46)) -> FULTON-Physician | AF142: Cherokee-Pediatrician | AG142: 0.1354
AF143: Cherokee-Physician | AG143: 0.026302
AF144: Clarke-Certified Nurse-Midwife | AG144: 0.002293
H145: Location 1 | J145: Location 2 | L145: Location 3 | N145: Location 4 | P145: Location 5 | AF145: Clarke-Dentist | AG145: 0.093425
B146: CHIP Encounter Volume Adjustment | H146: =ROUNDDOWN(IF(D108="No",H100,H100+H123)*$P$142,0) -> 3 | J146: =ROUNDDOWN(IF(D108="No",J100,J100+J123)*$P$142,0) -> 8 | L146: =ROUNDDOWN(IF(D108="No",L100,L100+L123)*$P$142,0) -> 0 | N146: =ROUNDDOWN(IF(F108="No",N100,N100+N123)*$P$142,0) -> 0 | P146: =ROUNDDOWN(IF(H108="No",P100,P100+P123)*$P$142,0) -> 0 | R146: =SUM(H146:P146) -> 11 | AF146: Clarke-Mental | AG146: 0.015973
AF147: Clarke-Nurse Practitioner | AG147: 0.032955
A148: Total Adjusted Medicaid Encounter Volume | H148: =IF(D108="No",H100-H146,H100+H123-H146) -> 297 | J148: =IF(D108="No",J100-J146,J100+J123-J146) -> 717 | L148: =IF(D108="No",L100-L146,L100+L123-L146) -> 0 | N148: =IF(F108="No",N100-N146,N100+N123-N146) -> 0 | P148: =IF(H108="No",P100-P146,P100+P123-P146) -> 0 | R148: =SUM(H148:P148) -> 1014 | AF148: Clarke-Pediatrician | AG148: 0.080946
B149: =IF(AND(D108="No",H115<>""),"The Out-of-State Medicaid encounter volume will only be included in the denominator of the patient volume calculator.","") ->  | AF149: Clarke-Physician | AG149: 0.010291
AF150: Clay-Physician | AG150: 0.00174
A151: Step 9: | B151: Enter your Non-Medicaid Encounter Volume. | H151: Location 1 | J151: Location 2 | L151: Location 3 | N151: Location 4 | P151: Location 5 | U151: =IF(OR(V151="x",V152="x",V153="x",V154="x",V155="x",V156="x",V157="x",V140="x",V141="x",V142="x",V143="x",V144="x"),"You must complete Step 9.","") ->  | V151: =IF(H152="","x","") ->  | W151: =IF(U151<>"","x","") ->  | AF151: Clayton-Certified Nurse-Midwife | AG151: 0.006869
D152: Medicare | H152: 200 | J152: 200 | V152: =IF(V64=1,IF(AND(H152<>"",H153<>"",H154<>"",H156<>""),"","x"),"") ->  | W152: =IF(U152<>"","x","") ->  | AF152: Clayton-Dentist | AG152: 0.096657
D153: Private Insurance | H153: 60 | J153: 1000 | V153: =IF(V64=2,IF(AND(H152<>"",H153<>"",H154<>"",H156<>"",J152<>"",J153<>"",J154<>"",J156<>""),"","x"),"") ->  | W153: =IF(U153<>"","x","") ->  | AF153: Clayton-Mental | AG153: 0.002698
D154: Other (i.e. cash; out-of-state) | H154: 20 | J154: 10 | V154: =IF(V64=3,IF(AND(H152<>"",H153<>"",H154<>"",H156<>"",J152<>"",J153<>"",J154<>"",J156<>"",L152<>"",L153<>"",L154<>"",L156<>""),"","x"),"") ->  | W154: =IF(U154<>"","x","") ->  | AF154: Clayton-Nurse Practitioner | AG154: 0.040516
D155: Out-of-State Non-Medicaid Encounter Volume | U155: =IF(V155="x","You have entered volume on the CHIP row in Step 9 and selected 'Yes' in Step 8A. Please correct this error.","") ->  | V155: =IF(V64=4,IF(AND(H152<>"",H153<>"",H154<>"",H156<>"",J152<>"",J153<>"",J154<>"",J156<>"",L152<>"",L153<>"",L154<>"",L156<>"",N152<>"",N153<>"",N154<>"",N156<>""),"","x"),"") ->  | W155: =IF(U155<>"","x","") ->  | AF155: Clayton-Pediatrician | AG155: 0.066054
H156: 0 | J156: 200 | AF156: Clayton-Physician | AG156: 0.006703
A157: Total Non-Medicaid Encounter Volume | H157: =SUM(H152:H154)+H156 -> 280 | J157: =SUM(J152:J154)+J156 -> 1410 | L157: =SUM(L152:L154)+L156 -> 0 | N157: =SUM(N152:N154)+N156 -> 0 | P157: =SUM(P152:P154)+P156 -> 0 | R157: =SUM(H157:P157) -> 1690 | V157: =IF(V64=1,IF(AND(J161=0,L161=0,N161=0,P161=0),"","x"),"") ->  | W157: =IF(U157<>"","x","") ->  | AF157: Clinch-Dentist | AG157: 0
AF158: Clinch-Mental | AG158: 0.019067
AF159: Clinch-Nurse Practitioner | AG159: 0.1
A160: Total Medicaid and Non-Medicaid Encounter Volume | H160: Location 1 | J160: Location 2 | L160: Location 3 | N160: Location 4 | P160: Location 5 | V160: =IF(V64=2,IF(AND(L161=0,N161=0,P161=0),"","x"),"") ->  | W160: =IF(U160<>"","x","") ->  | AF160: Clinch-Physician | AG160: 0.021735
B161: • This amount is the sum of Step 6, Step 7, Step 8, and Step 9. | H161: =H100+H123+H157 -> 580 | J161: =J100+J123+J157 -> 2135 | L161: =L100+L123+L157 -> 0 | N161: =N100+N123+N157 -> 0 | P161: =P100+P123+P157 -> 0 | R161: =R100+R123+R157 -> 2715 | V161: =IF(V64=3,IF(AND(N161=0,P161=0),"","x"),"") ->  | W161: =IF(U161<>"","x","") ->  | AF161: Cobb-Certified Nurse-Midwife | AG161: 0.002982
V162: =IF(V64=4,IF(P161=0,"","x"),"") ->  | W162: =IF(U162<>"","x","") ->  | AF162: Cobb-Dentist | AG162: 0.141254
AF163: Cobb-Mental | AG163: 0.024091
H164: =IF(OR(V157="x",V160="x",V161="x",V162="x"),"Error! You have entered encounter volume for more locations than indicated in Step 5. Please correct your calculation!","") ->  | AF164: Cobb-Nurse Practitioner | AG164: 0.058213
B165: Summary: | V165: =COUNTIF(W:W,"x") -> 0 | W165: =IF(H164<>"","x","") ->  | AF165: Cobb-Pediatrician | AG165: 0.104397
B166: In-State Medicaid and CHIP Encounter Volumes | D166: =$R$100 -> 725 | AF166: Cobb-Physician | AG166: 0.024822
P167: =IF($R$54="Yes","Hospital-Based Eligible Professionals are NOT eligible to receive EHR Medicaid Incentive payments."," ") ->  | AF167: Coffee-Dentist | AG167: 0.113049
B168: Out-of-State Medicaid and CHIP Encounter Volumes | D168: =$R$123 -> 300 | H168: =IF(AND(D108="No",H115<>""),"The Out-of-State Medicaid encounter volume will only be included in the denominator of the patient volume calculator.","") ->  | AF168: Coffee-Mental | AG168: 0.013229
AF169: Coffee-Nurse Practitioner | AG169: 0.031639
B170: Total Medicaid Encounter Volume Excluding CHIP | D170: =R148 -> 1014 | P170: =IF(OR(AND($R$46="Pediatrician",F182>=19.4444444444445),AND($R$46<>"Pediatrician",$F$182>=29.4444444444445)),"This Percentage Does Meet the Medicaid EHR Incentive Program Patient Volume Requirement","This Percentage Does NOT Meet the Medicaid EHR Incentive Program Patient Volume Requirement") -> This Percentage Does Meet the Medicaid EHR Incentive Program Patient Volume Requirement | AF170: Coffee-Pediatrician | AG170: 0.066602
AF171: Coffee-Physician | AG171: 0.009244
B172: Total Medicaid and Non-Medicaid Encounter Volume | D172: =$R$161 -> 2715 | AF172: Colquitt-Certified Nurse-Midwife | AG172: 0
AF173: Colquitt-Dentist | AG173: 0.067123
P174: =IF(V165<>0,"Review Column U for error messages. You must resolve all calculator errors above.","") ->  | AF174: Colquitt-Mental | AG174: 0.006133
B175: Patient Volume Calculation: | AF175: Colquitt-Nurse Practitioner | AG175: 0.009527
B176: Total Medicaid Encounter Volume Excluding CHIP (Numerator) | D176: =R148 -> 1014 | AF176: Colquitt-Pediatrician | AG176: 0.046886
AF177: Colquitt-Physician | AG177: 0.010858
B178: Total Medicaid and Non-Medicaid Encounter Volume (Denominator) | D178: =D172 -> 2715 | AF178: Columbia-Dentist | AG178: 0.14158
AF179: Columbia-Nurse Practitioner | AG179: 0.023887
AF180: Columbia-Pediatrician | AG180: 0.095481
AF181: Columbia-Physician | AG181: 0.050933
A182: Medicaid Patient Volume: | F182: =IF(D178=0,0,(((D176)/D178)*100)) -> 37.3480663 | I182: 1 | J182: % | L182: 1 | AF182: Cook-Dentist | AG182: 0.106746
AF183: Cook-Mental | AG183: 0.01743
F184: =IF(F182>100.000000000001,"Error, Cannot be higher than 100%, please recalculate","") ->  | AF184: Cook-Nurse Practitioner | AG184: 0.038071
A185: 1 The Medicaid Patient Volume calculation is rounded up or down to the nearest whole number. Amounts less than .5 are rounded down; amounts equal to or greater than .5 are rounded up. | AF185: Cook-Pediatrician | AG185: 0.039285
AF186: Cook-Physician | AG186: 0.034743
AF187: Coweta-Certified Nurse-Midwife | AG187: 0
B188: When applying to the Georgia Medicaid Incentive Payment Program, the information below should be entered as the patient volume information in the state of Georgia's Medical Assistance Provider Incentive Repository (MAPIR) System: | AF188: Coweta-Dentist | AG188: 0.115226
AF189: Coweta-Mental | AG189: 0.019272
C190: Medicaid Only Encounter Volume2 (In State Numerator) | F190: Total Medicaid Encounter Volume3 (Total Numerator) | I190: Total Encounter Volume4 (Denominator) | N190: * The calculator must be uploaded to MAPIR in a PDF format until MAPIR has the capability to accept spreadsheets. Once MAPIR has the capability to accept spreadsheets, the calculator must be uploaded as a spreadsheet. See the instructions on the Instructions tab to properly create a PDF to upload into MAPIR. | AF190: Coweta-Nurse Practitioner | AG190: 0.052916
AF191: Coweta-Pediatrician | AG191: 0.078632
B192: Location 1 | C192: =ROUNDUP(H100*(1-$P$142),0) -> 297 | F192: =H148 -> 297 | I192: =H161 -> 580 | AF192: Coweta-Physician | AG192: 0.007738
AF193: Crawford-Dentist | AG193: 0.026315
AF194: Crawford-Mental | AG194: 0.081632
B195: Location 2 | C195: =ROUNDUP(J100*(1-$P$142),0) -> 421 | F195: =J148 -> 717 | I195: =J161 -> 2135 | AF195: Crawford-Pediatrician | AG195: 0.113123
AF196: Crawford-Physician | AG196: 0.019937
AF197: Crisp-Certified Nurse-Midwife | AG197: 0
B198: Location 3 | C198: =ROUNDUP(L100*(1-$P$142),0) -> 0 | F198: =L148 -> 0 | I198: =L161 -> 0 | AF198: Crisp-Dentist | AG198: 0.073147
AF199: Crisp-Mental | AG199: 0
AF200: Crisp-Nurse Practitioner | AG200: 0.033131
... 549 more rows

Sheet Calculation - Group (hidden)
A1: Georgia Department of Community Health | Q1: county_name | R1: blended_chip_factor
A2: Office of Information Technology | Q2: NULL | R2: 0
A3: Health Information Technology (HIT) Unit
A4: Medicaid Promoting Interoperability (PI) program (formerly EHR Incentive Program) for Meaningful Use | Q4: All County | R4: 0.0186
A5: Program Year 2018 | Q5: Appling | R5: 0.0107
Q6: Atkinson | R6: 0.0083
A7: Calculation: Group Encounter Volume | Q7: Bacon | R7: 0.0281
Q8: Baker | R8: 0.0086
A9: Contact Information: | Q9: Baldwin | R9: 0.0185
A10: Contact Person Completing This Workbook | C10: =_cwb1 -> 0 | N10: =IF(OR(C10="Please enter the name of the person completing this workbook.",C11="Please enter the phone number of the person completing this workbook.",C12="Please enter the email addresss of the person completing this workbook.",C13="Please enter the date this workbook was completed."),"Please complete the Contact Information tab of this workbook.","") ->  | P10: =IF(N10<>"","x","") ->  | Q10: Banks | R10: 0.0433
A11: Contact Person Phone Number | C11: =_cph1 -> 0 | Q11: Barrow | R11: 0.0626
A12: Contact Person Email Address | C12: =_cem1 -> 0 | Q12: Bartow | R12: 0.0537
A13: Date Completed: | C13: =date1 -> 00:00:00 | Q13: Ben Hill | R13: 0.0349
Q14: Berrien | R14: 0.032
A15: Eligible Professional Patient Volume Calculation Template | Q15: Bibb | R15: 0.0262
Q16: Bleckley | R16: 0.0527
A17: Purple Shaded Cells Represent Data Entry | D17: For detailed information to assist in completing the Eligible Professional Patient Volume Calculation, see the Background Information tab. | Q17: Brantley | R17: 0.0466
D18: Background Information | Q18: Brooks | R18: 0.0069
A19: Instructions | Q19: Bryan | R19: 0.0491
A20: Step 1A: | B20: Enter the patient volume methodology being used for the 90-day period. | D20: * Medicaid patient volume can be calculated using one of the two following methods: | N20: =IF(K20="","Select a patient volume methodology.","") -> Select a patient volume methodology. | P20: =IF(N20<>"","x","") -> x | Q20: Bulloch | R20: 0.0295
Q21: Burke | R21: 0.0264
D22: 1) Patient volume can be determined using a consecutive 90-day period within the prior calendar year 2017 (01/01/2017-12/31/2017); | Q22: Butts | R22: 0.0285
Q23: Calhoun | R23: 0.0229
D24: OR | Q24: Camden | R24: 0.0339
Q25: Candler | R25: 0.015
D26: 2) Patient volume can be determined across a consecutive 90-day period in the last 12 months preceding the provider's attestation. | Q26: Carroll | R26: 0.0405
K27: Start 90-day period | M27: End 90-day period | N27: Option 1: Calendar Year - Program Year 2018 Calculations, the 90 days starting date must fall on or after January 1, 2017. | Q27: Catoosa | R27: 0.0476
A28: Step 1B: | B28: Enter the beginning date (mm/dd/yyyy) of a continuous 90-day period for your Medicaid Encounter Volume. | D28: (Note the 90-day period must be entirely in the previous calendar year and cannot overlap into the current year. The Medicaid encounter volume should include encounters with dates of service during the 90-day period.) | M28: =IF(K28>0,K28+89,"") ->  | Q28: Charlton | R28: 0.0102
Q29: Chatham | R29: 0.0299
N30: =IF(AND(K20="Prior Calendar Year",K28=""),"Please select a 90-day period.","") ->  | P30: =IF(N30<>"","x","") ->  | Q30: Chattahooche | R30: 0.0811
A31: Step 1C: | B31: Enter the date of attestation. | D31: * This is the date the provider intends to electronically certify that the information entered on this calculator and any uploaded supporting documentation is true, accurate, and complete. | N31: =IF(AND(K20="Recent 12 Months",K31=""),"Please enter the date of attestation.","") ->  | Q31: Chattooga | R31: 0.0451
Q32: Cherokee | R32: 0.1101
Q33: Clarke | R33: 0.0275
K34: Start 90-day period | M34: End 90-day period | N34: Option 2: The 90 days starting date must fall on or after 12 months prior to the date of attestation. | Q34: Clay | R34: 0.0017
A35: Step 1D: | B35: Enter the beginning date (mm/dd/yyyy) of a continuous 90-day period for your Medicaid Encounter Volume. | D35: (Note the 90-day period must be during the 12 months preceding the date of attestation (Step 1C). | M35: =IF(K35>0,K35+89,"") ->  | Q35: Clayton | R35: 0.0358
D36: Earliest Start Date of 90-day period: | F36: =IF(K20<>"Recent 12 Months","",IFERROR(EDATE(K31,-12)-1,"")) ->  | Q36: Clinch | R36: 0.0212
D37: Latest Start Date of 90-day period: | F37: =IF(K20<>"Recent 12 Months","",IF(K31="","",K31-89)) ->  | N37: =IF(AND(K20="Recent 12 Months",K35=""),"Please select a 90-day period.","") ->  | P37: =IF(N37<>"","x","") ->  | Q37: Cobb | R37: 0.0543
Q38: Coffee | R38: 0.0303
Q39: Colquitt | R39: 0.0201
Q40: Columbia | R40: 0.0846
A41: Step 2: | B41: Select all Eligible Professional provider types included in the group encounter volume for whom you are seeking an incentive payment. | Q41: Cook | R41: 0.0364
B42: Certified Nurse-Midwife | N42: =IF(COUNTA(C42:C47)<1,"Select Provider Types.","") -> Select Provider Types. | P42: =IF(N42<>"","x","") -> x | Q42: Coweta | R42: 0.0399
B43: Dentist | Q43: Crawford | R43: 0.0745
B44: Nurse Practitioner | Q44: Crisp | R44: 0.0215
B45: Obstetrician | Q45: Dade | R45: 0.056
B46: Pediatrician | Q46: Dawson | R46: 0.1244
B47: Physician | Q47: Decatur | R47: 0.0378
Q48: DeKalb | R48: 0.0371
A49: Step 3: | B49: An eligible professional is considered hospital-based if 90% or more of his or her services are performed in a hospital inpatient (Place Of Service code 21) or emergency room (Place Of Service code 23) setting. By confirming that Eligible Professionals for whom an incentive payment is sought are not hospital-based, you are attesting that those Eligible Professionals do not perform 90% or more of their services in a hospital setting. Are any of the providers for whom an incentive payment is sought considered hospital-based? | N49: =IF(K49="","Please confirm no hospital-based group members.",IF(K49="Yes","For any providers in the group for which encounter volume is reported, you must select 'No' when asked if an incentive payment is being requested for those providers.","")) -> Please confirm no hospital-based group members. | Q49: Dodge | R49: 0.031
P50: =IF(K49="","x","") -> x | Q50: Dooly | R50: 0.081
Q51: Dougherty | R51: 0.0203
Q52: Douglas | R52: 0.073
P53: =IF(N53<>"","x","") ->  | Q53: Early | R53: 0.0386
Q54: Echols | R54: 0.0265
Q55: Effingham | R55: 0.0451
A56: Step 4A: | B56: Enter your Medicaid Payee ID or Group NPI for the group practice/clinic. | I56: Please select the ID you will be entering. | N56: =IF(OR(COUNTIF(O56:O60,"x")>0,D85=""),"Please complete Step 4A.","") -> Please complete Step 4A. | O56: =IF(AND(K56="Medicaid Payee ID",D62=""),"x","") ->  | P56: =IF(N56<>"","x","") -> x | Q56: Elbert | R56: 0.0169
O57: =IF(AND(K56="Group NPI",F62=""),"x","") ->  | Q57: Emanuel | R57: 0.045
Q58: Evans | R58: 0.024
Q59: Fannin | R59: 0.0651
O60: =IF(K56="","x","") -> x | Q60: Fayette | R60: 0.0547
D61: Medicaid Payee ID of Group Practice/Clinic | F61: Group or Group Payee NPI | Q61: Floyd | R61: 0.0328
C62: 1. | Q62: Forsyth | R62: 0.0861
C63: 2. | Q63: Franklin | R63: 0.0263
C64: 3. | Q64: Fulton | R64: 0.03
C65: 4. | Q65: Gilmer | R65: 0.0615
C66: 5. | Q66: Glascock | R66: 0.0357
C67: 6. | Q67: Glynn | R67: 0.0268
C68: 7. | Q68: Gordon | R68: 0.0518
C69: 8. | Q69: Grady | R69: 0.0541
C70: 9. | Q70: Greene | R70: 0.0463
C71: 10. | Q71: Gwinnett | R71: 0.0853
C72: 11. | Q72: Habersham | R72: 0.0595
C73: 12. | Q73: Hall | R73: 0.0554
C74: 13. | Q74: Hancock | R74: 0.0219
C75: 14. | Q75: Haralson | R75: 0.0323
C76: 15. | Q76: Harris | R76: 0.0149
C77: 16. | Q77: Hart | R77: 0.0535
C78: 17. | Q78: Heard | R78: 0.0156
C79: 18. | Q79: Henry | R79: 0.0509
C80: 19. | Q80: Houston | R80: 0.0278
C81: 20. | Q81: Irwin | R81: 0.0443
Q82: Jackson | R82: 0.0683
Q83: Jasper | R83: 0.0416
B84: Enter the name of the group practice/clinic. | D84: Name of Group Practice/Clinic | Q84: Jeff Davis | R84: 0.0418
Q85: Jefferson | R85: 0.0507
Q86: Jenkins | R86: 0.0329
Q87: Johnson | R87: 0.0295
A88: Step 4B: | B88: Rendering Medicaid IDs and/or National Provider IDs (NPI) of the group practice/clinic members. | N88: =IF(O88>0,"Please correct all errors on the Group Members tab.","") ->  | O88: =COUNTIF('Group Members'!T:T,"x") -> 0 | P88: =IF(O88>0,"x","") ->  | Q88: Jones | R88: 0.0747
Q89: Lamar | R89: 0.0482
Q90: Lanier | R90: 0.0133
B91: Enter the names of the individuals within the group practice/clinic on the Group Members tab. Select the button to the right to direct you to this tab. | Q91: Laurens | R91: 0.0313
Q92: Lee | R92: 0.0705
Q93: Liberty | R93: 0.037
Q94: Lincoln | R94: 0.0455
Q95: Long | R95: 0.0163
Q96: Lowndes | R96: 0.0343
A97: Step 4C: | B97: Enter the Name and Provider Type of other individuals providing services to Medicaid patients during the 90-day period specified in step 1. | Q97: Lumpkin | R97: 0.039
N98: =IF(AND('Other Providers'!B14<>"",'Other Providers'!D14<>""),"","You must complete step 4C. Please enter N/A in the Name and Provider Type on line 1 if there are no other individuals with encounter volume.") -> You must complete step 4C. Please enter N/A in the Name and Provider Type on line 1 if there are no other individuals with encounter volume. | P98: =IF(N98<>"","x","") -> x | Q98: Macon | R98: 0.0177
Q99: Madison | R99: 0.0399
Q100: Marion | R100: 0.0238
Q101: McDuffie | R101: 0.0238
B102: * These individuals may not be Eligible Professionals but may include physician assistants, dieticians, registered nurses, etc., who render services billed by the group practice/clinic. | Q102: McIntosh | R102: 0.0189
Q103: Meriwether | R103: 0.0078
Q104: Miller | R104: 0.0362
Q105: Mitchell | R105: 0.0369
Q106: Monroe | R106: 0.0475
Q107: Montgomery | R107: 0.005
Q108: Morgan | R108: 0.0485
Q109: Murray | R109: 0.0427
Q110: Muscogee | R110: 0.0222
Q111: N/A | R111: 0.0832
A112: Step 5: | B112: Enter the Address Information for Step 5 on the Address and Encounter Volume tab. Select the button below to direct you to this tab. | P112: =IF(N112<>"","x","") ->  | Q112: Newton | R112: 0.0367
Q113: Oconee | R113: 0.0968
Q114: Oglethorpe | R114: 0.0186
Q115: OOS | R115: 0.0316
Q116: OOS Over50 | R116: 0.0287
Q117: OOSEmerg | R117: 0.0139
P118: =IF(N118<>"","x","") ->  | Q118: Paulding | R118: 0.0628
Q119: Peach | R119: 0.0228
Q120: Pickens | R120: 0.0303
Q121: Pierce | R121: 0.0456
Q122: Pike | R122: 0.0851
A123: Step 6: | B123: In-State Medicaid and CHIP Encounter Volumes for the Group Practice/Clinic | D123: •One Medicaid Encounter is defined as services rendered on any one day to a Medicaid-enrolled individual, regardless of payment liability. Count all Medicaid encounters during the 90-day period. | Q123: Polk | R123: 0.031
B124: Include Encounter Volume for all providers affiliated with the Medicaid Payee ID entered in step 4A. | Q124: Pulaski | R124: 0.0207
Q125: Putnam | R125: 0.0364
D126: • If your Group includes an Obstetrician who routinely provides services paid under a global code, patient volume for the Obstetrician should include each individual patient encounter that occurred during the specified 90-day period when those services were paid under global codes, regardless of the date of payment. | Q126: Quitman | R126: 0.0374
Q127: Rabun | R127: 0.0635
Q128: Randolph | R128: 0.0225
Q129: Richmond | R129: 0.0234
Q130: Rockdale | R130: 0.0511
B131: Fee-for-Service Medicaid and CHIP Encounter Volumes | F131: Totals will automatically populate when the Encounter Volume tab is completed. | Q131: Schley | R131: 0.0187
Q132: Screven | R132: 0.0166
Q133: Seminole | R133: 0.0283
B134: Total Fee-for-Service Medicaid and CHIP Encounter Volumes | F134: =SUM('Address and Encounter Volume'!L:L) -> 0 | Q134: Spalding | R134: 0.0164
Q135: Stephens | R135: 0.0445
Q136: Stewart | R136: 0.0269
B137: Care Management Organization (CMO) Medicaid and CHIP Encounter Volumes | Q137: Sumter | R137: 0.0269
B138: Amerigroup Community Care | F138: =SUM('Address and Encounter Volume'!N:N) -> 0 | Q138: Talbot | R138: 0
B139: CareSource | F139: =SUM('Address and Encounter Volume'!P:P) -> 0 | Q139: Taliaferro | R139: 0
B140: Peach State Health Plan | F140: =SUM('Address and Encounter Volume'!R:R) -> 0 | Q140: Tattnall | R140: 0.0195
B141: Wellcare Health Plans, Inc. | F141: =SUM('Address and Encounter Volume'!T:T) -> 0 | Q141: Taylor | R141: 0.0139
Q142: Telfair | R142: 0.0438
B143: Total Care Management Organization Encounter Volumes | F143: =SUM(F138:F141) -> 0 | Q143: Terrell | R143: 0.022
Q144: Thomas | R144: 0.024
B145: Total In-State Medicaid and CHIP Encounter Volumes | F145: =F134+F143 -> 0 | Q145: Tift | R145: 0.03
Q146: Toombs | R146: 0.0308
Q147: Towns | R147: 0.0449
A148: Step 7: | B148: Out-of-State Medicaid Encounter Volume | N148: =IF(F152="","Please complete Step 7.","") -> Please complete Step 7. | O148: =IF(F152="","x","") -> x | P148: =IF(O148="x","x","") -> x | Q148: Treutlen | R148: 0.1383
Q149: Troup | R149: 0.0302
B150: Note 1: Out-of-State encounter volume includes claims that were paid by a border State's (i.e. a state contiguous to Georgia) Medicaid program to an Eligible Professional for encounters which occurred at the Eligible Professional's practice location(s). | Q150: Turner | R150: 0.063
Q151: Twiggs | R151: 0.0141
B152: Does the provider/practice need to include Out-of-State Medicaid volume in the numerator in order to patient volume eligibility requirements? | Q152: Union | R152: 0.0414
Q153: Upson | R153: 0.0305
Q154: Walker | R154: 0.0189
B155: Note 2: If yes is selected, Out-of-State Medicaid encounters will be included in the numerator of the patient volume calculation. | Q155: Walton | R155: 0.0537
Q156: Ware | R156: 0.0258
B157: Total Out-of-State Medicaid and CHIP Encounter Volumes | F157: =SUM('Address and Encounter Volume'!AB:AB) -> 0 | Q157: Warren | R157: 0.0045
Q158: Washington | R158: 0.0372
Q159: Wayne | R159: 0.0316
A160: CHIP Encounter Volume Adjustment: | Q160: Webster | R160: 0
A161: Step 8A: | B161: Due to the difficulty in distinguishing CHIP volume from Medicaid volume, the Georgia Department of Community Health has created a factor to adjust the Medicaid and CHIP Encounter Volumes based on the predominant Georgia county. | N161: =IF(OR(O161="x",O162="x"),"Please complete Step 8B.","") -> Please complete Step 8B. | P161: =IF(N161<>"","x","") -> x | Q161: Wheeler | R161: 0.0183
O162: =IF(K167="","x","") -> x | Q162: White | R162: 0.1039
Q163: Whitfield | R163: 0.073
Q164: Wilcox | R164: 0.0688
A165: Step 8B: | B165: This calculator will prompt you to select a CHIP factor. A CHIP Factor has been calculated for each county in Georgia. If you are reporting Encounter Volume for more than one county, select the one Georgia county where the majority of your Medicaid and CHIP Encounter Volume was performed during the selected 90-day period. This CHIP factor will reduce the combined Medicaid and CHIP Encounter Volume by a percentage representative of CHIP services for that county. | Q165: Wilkes | R165: 0.0265
Q166: Wilkinson | R166: 0.0282
I167: Select the Predominant County for CHIP Factor: | Q167: Worth | R167: 0.041
D170: Medicaid and CHIP Encounter Volume Subtotal | F170: =IF(F152="No",F145,F145+F157) -> 0
D171: CHIP Factor | F171: =IF(ISNA(VLOOKUP(K167,Q:R,2,0))=TRUE,0,VLOOKUP(K167,Q:R,2,0)) -> 0 | H171: If the CHIP adjustment is less than 0.01%, no CHIP factor will be shown.
B173: CHIP Encounter Volume Adjustment | F173: =ROUNDDOWN(F170*F171,0) -> 0
A176: Total Adjusted Medicaid Encounter Volume | F176: =F170-F173 -> 0
B177: =IF(AND(F152="No",F157<>""),"The Out-of-State Medicaid encounter volume will only be included in the denominator of the patient volume calculator.","") -> 
F180: Totals will automatically populate when the Encounter Volume tab is completed.
A184: Step 9: | B184: Non-Medicaid Encounter Volume. | D184: Medicare | F184: =SUM('Address and Encounter Volume'!AI:AI) -> 0
D185: Private Insurance | F185: =SUM('Address and Encounter Volume'!AK:AK) -> 0
B186: This section will show the Encounter Volume for all providers affiliated with the Medicaid Payee ID entered in step 4B. | D186: Other (i.e. cash; uncompensated care)
F187: =SUM('Address and Encounter Volume'!AM:AM) -> 0
D192: Out-of-State Non-Medicaid Encounter Volume | F192: =SUM('Address and Encounter Volume'!AO:AO) -> 0
B196: Total Non-Medicaid Encounter Volume | F196: =SUM(F184:F187)+F192 -> 0
A199: Total Medicaid and Non-Medicaid Encounter Volume
B200: • This amount is the sum of Step 6, Step 7, Step 8, and Step 9. | F200: =F145+F157+F196 -> 0
B204: Summary: | O204: =COUNTIF(P:P,"x") -> 7
B205: In-State Medicaid and CHIP Encounter Volumes | D205: =F145 -> 0 | I205: =IF(K49="Yes","Note: This group contains some hospital-based providers. For any of these providers in the group for which encounter volume is reported, you must select 'No' when asked if an incentive payment is being requested for those providers.","") -> 
B207: Out-of-State Medicaid and CHIP Encounter Volumes | D207: =F157 -> 0 | E207: =IF(AND(F152="No",F157<>""),"The Out-of-State Medicaid encounter volume will only be included in the denominator of the patient volume calculator.","") -> 
B209: Total Medicaid Encounter Volume Excluding CHIP | D209: =F176 -> 0 | I209: =IF(AND(D221>=19.4444444444445,$D221<29.4444444444445),"This Percentage Does Meet the Medicaid EHR Incentive Program Patient Volume Requirement for Pediatricians but does NOT Meet the Requirement for the other provider types.",IF($D221>=29.4444444444445,"This Percentage Does Meet the Medicaid EHR Incentive Program Patient Volume Requirement","This Percentage Does NOT Meet the Medicaid EHR Incentive Program Patient Volume Requirement")) -> This Percentage Does NOT Meet the Medicaid EHR Incentive Program Patient Volume Requirement
B211: Total Medicaid and Non-Medicaid Encounter Volume | D211: =F200 -> 0
D212: =IF(D221>100.000000000001,"Error, Cannot be higher than 100%, please recalculate","") -> 
B214: Patient Volume Calculation: | I214: =IF(O204<>0,"Review Column N for error messages. You must resolve all calculator errors above.","") -> Review Column N for error messages. You must resolve all calculator errors above.
B215: Total Medicaid Encounter Volume Excluding CHIP (Numerator) | D215: =D209 -> 0
B217: Total Medicaid and Non-Medicaid Encounter Volume (Denominator) | D217: =F200 -> 0
A221: Medicaid Patient Volume: | D221: =IF(D217=0,0,(((D215)/D217)*100)) -> 0 | E221: % | F221: 1
A224: 1 The Medicaid Patient Volume calculation is rounded up or down to the nearest whole number. Amounts less than .5 are rounded down; amounts equal to or greater than .5 are rounded up.
A227: When applying to the Georgia Medicaid Incentive Payment Program, the information below should be entered as the patient volume information in the state of Georgia's Medical Assistance Provider Incentive Repository (MAPIR) System:
B229: Medicaid Only Encounter Volume2 (In State Numerator) | D229: Medicaid Encounter Volume 3 (Total Numerator) | E229: Total Encounter Volume 4 (Denominator)
B230: =ROUNDUP(D205*(1-F171),0) -> 0 | D230: =D215 -> 0 | E230: =D217 -> 0
A234: 2 The Medicaid Only Encounter Volume is the in-state Medicaid encounter volume excluding in-state CHIP encounters.
A236: 3 The Total Medicaid Encounter Volume is the sum of the in-state and out-of-state Medicaid Encounter Volume excluding CHIP.
A238: 4 The Total Encounter Volume is the sum of all patient encounters from all payor sources.

Sheet Group Members (hidden)
A1: Georgia Department of Community Health
A2: Office of Information Technology
A3: Health Information Technology (HIT) Unit
A4: Medicaid Promoting Interoperability (PI) program (formerly EHR Incentive Program) for Meaningful Use
A5: Program Year 2018
A7: Group Practice or Clinic Members
A9: All Medicaid IDs for providers of the group who provided services during the selected 90-day period must be listed, including providers who are no longer with the group. If a provider has more than one location letter, enter all letters associated with that provider's Medicaid Enterprise ID in the Medicaid Location Identifier column. Only list Eligible Professionals on this page. Other providers, such as physician assistants, dieticians, registered nurses, should be listed in Step 4C on the Calculation-Group tab.
B11: Medicaid Enterprise ID (First nine digits of the Medicaid ID.) | D11: Medicaid ID Location Identifier (Last Letter of Medicaid ID.) | L11: Is this provider applying for an Incentive Payment? | N11: If yes, which payment year is the provider applying for?
F13: NPI | H13: Medicaid Provider Name | J13: Provider Type | P13: Error Message 1 | Q13: Error Message 2 | R13: Error Message 3 | S13: Error Message 4
A14: Example: | B14: 012345678 | D14: A,B,C | F14: 1234567890
A16: 1 | P16: =IF(AND(OR(B16<>"",D16<>"",F16<>"",H16<>""),J16=""),"Please select a provider type."," ") ->  | Q16: =IF(AND(OR(B16<>"",D16<>"",F16<>"",H16<>""),L16=""),"Please indicate if applying for incentive payment."," ") ->  | R16: =IF(OR(AND(B16<>"",D16=""),AND(B16<>"",F16=""),AND(B16<>"",H16="")),"Please enter all of the group member's information."," ") ->  | S16: =IF(AND(L16="Yes",N16=""),"Please select the payment year.","") ->  | T16: =IF(AND(P16=" ",Q16=" ",R16=" ",S16=""),"","x") -> 
A17: 2 | P17: =IF(AND(OR(B17<>"",D17<>"",F17<>"",H17<>""),J17=""),"Please select a provider type."," ") ->  | Q17: =IF(AND(OR(B17<>"",D17<>"",F17<>"",H17<>""),L17=""),"Please indicate if applying for incentive payment."," ") ->  | R17: =IF(OR(AND(B17<>"",D17=""),AND(B17<>"",F17=""),AND(B17<>"",H17="")),"Please enter all of the group member's information."," ") ->  | S17: =IF(AND(L17="Yes",N17=""),"Please select the payment year.","") ->  | T17: =IF(AND(P17=" ",Q17=" ",R17=" "),"","x") -> 
A18: 3
A19: 4
A20: 5
A21: 6
A22: 7
A23: 8
A24: 9
A25: 10
A26: 11
A27: 12
A28: 13
A29: 14
A30: 15
A31: 16
A32: 17
A33: 18
A34: 19
A35: 20
A36: 21
A37: 22
A38: 23
A39: 24
A40: 25
A41: 26
A42: 27
A43: 28
A44: 29
A45: 30
A46: 31
A47: 32
A48: 33
A49: 34
A50: 35
A51: 36
A52: 37
A53: 38
A54: 39
A55: 40
A56: 41
A57: 42
A58: 43
A59: 44
A60: 45
A61: 46
A62: 47
A63: 48
A64: 49
A65: 50
A66: 51
A67: 52
A68: 53
A69: 54
A70: 55
A71: 56
A72: 57
A73: 58
A74: 59
A75: 60
A76: 61
A77: 62
A78: 63
A79: 64
A80: 65
A81: 66 | P81: =IF(AND(OR(B81<>"",D81<>"",F81<>"",H81<>""),J81=""),"Please select a provider type."," ") ->  | Q81: =IF(AND(OR(B81<>"",D81<>"",F81<>"",H81<>""),L81=""),"Please indicate if applying for incentive payment."," ") ->  | R81: =IF(OR(AND(B81<>"",D81=""),AND(B81<>"",F81=""),AND(B81<>"",H81="")),"Please enter all of the group member's information."," ") ->  | S81: =IF(AND(L81="Yes",N81=""),"Please select the payment year.","") ->  | T81: =IF(AND(P81=" ",Q81=" ",R81=" "),"","x") -> 
A82: 67
A83: 68
A84: 69
A85: 70
A86: 71
A87: 72
A88: 73
A89: 74
A90: 75
A91: 76
A92: 77
A93: 78
A94: 79
A95: 80
A96: 81
A97: 82
A98: 83
A99: 84
A100: 85
A101: 86
A102: 87
A103: 88
A104: 89
A105: 90
A106: 91
A107: 92
A108: 93
A109: 94
A110: 95
A111: 96
A112: 97
A113: 98
A114: 99
A115: 100
A116: 101
A117: 102
A118: 103
A119: 104
A120: 105
A121: 106
A122: 107
A123: 108
A124: 109
A125: 110
A126: 111
A127: 112
A128: 113
A129: 114
A130: 115
A131: 116
A132: 117
A133: 118
A134: 119
A135: 120
A136: 121
A137: 122
A138: 123
A139: 124
A140: 125
A141: 126
A142: 127
A143: 128
A144: 129
A145: 130 | P145: =IF(AND(OR(B145<>"",D145<>"",F145<>"",H145<>""),J145=""),"Please select a provider type."," ") ->  | Q145: =IF(AND(OR(B145<>"",D145<>"",F145<>"",H145<>""),L145=""),"Please indicate if applying for incentive payment."," ") ->  | R145: =IF(OR(AND(B145<>"",D145=""),AND(B145<>"",F145=""),AND(B145<>"",H145="")),"Please enter all of the group member's information."," ") ->  | S145: =IF(AND(L145="Yes",N145=""),"Please select the payment year.","") ->  | T145: =IF(AND(P145=" ",Q145=" ",R145=" "),"","x") -> 
A146: 131
A147: 132
A148: 133
A149: 134
A150: 135
A151: 136
A152: 137
A153: 138
A154: 139
A155: 140
A156: 141
A157: 142
A158: 143
A159: 144
A160: 145
A161: 146
A162: 147
A163: 148
A164: 149
A165: 150
A166: 151
A167: 152
A168: 153
A169: 154
A170: 155
A171: 156
A172: 157
A173: 158
A174: 159
A175: 160
A176: 161
A177: 162
A178: 163
A179: 164
A180: 165
A181: 166
A182: 167
A183: 168
A184: 169
A185: 170
A186: 171
A187: 172
A188: 173
A189: 174
A190: 175
A191: 176
A192: 177
A193: 178
A194: 179
A195: 180
A196: 181
A197: 182
A198: 183
A199: 184
A200: 185
A201: 186
A202: 187
A203: 188
A204: 189
A205: 190
... 1560 more rows

Sheet Other Providers (hidden)
A1: Georgia Department of Community Health | J1: ='Calculation - Group'!K56 -> 0
A2: Office of Information Technology
A3: Health Information Technology (HIT) Unit
A4: Medicaid Promoting Interoperability (PI) program (formerly EHR Incentive Program) for Meaningful Use
A5: Program Year 2018
A7: Group Members who are not Eligible Professionals
B10: Provider Name | D10: Provider Type
A13: Example: | B13: Bob Smith | D13: Physician Assistant
A14: 1
A15: 2
A16: 3
A17: 4
A18: 5
A19: 6
A20: 7
A21: 8
A22: 9
A23: 10
A24: 11
A25: 12
A26: 13
A27: 14
A28: 15
A29: 16
A30: 17
A31: 18
A32: 19
A33: 20
A34: 21
A35: 22
A36: 23
A37: 24
A38: 25
A39: 26
A40: 27
A41: 28
A42: 29
A43: 30
A44: 31
A45: 32
A46: 33
A47: 34
A48: 35
A49: 36
A50: 37
A51: 38
A52: 39
A53: 40
A54: 41
A55: 42
A56: 43
A57: 44
A58: 45
A59: 46
A60: 47
A61: 48
A62: 49
A63: 50
A64: 51
A65: 52
A66: 53
A67: 54
A68: 55
A69: 56
A70: 57
A71: 58
A72: 59
A73: 60
A74: 61
A75: 62
A76: 63
A77: 64
A78: 65
A79: 66
A80: 67
A81: 68
A82: 69
A83: 70
A84: 71
A85: 72
A86: 73
A87: 74
A88: 75
A89: 76
A90: 77
A91: 78
A92: 79
A93: 80
A94: 81
A95: 82
A96: 83
A97: 84
A98: 85
A99: 86
A100: 87
A101: 88
A102: 89
A103: 90
A104: 91
A105: 92
A106: 93
A107: 94
A108: 95
A109: 96
A110: 97
A111: 98
A112: 99
A113: 100
A114: 101
A115: 102
A116: 103
A117: 104
A118: 105
A119: 106
A120: 107
A121: 108
A122: 109
A123: 110
A124: 111
A125: 112
A126: 113
A127: 114
A128: 115
A129: 116
A130: 117
A131: 118
A132: 119
A133: 120
A134: 121
A135: 122
A136: 123
A137: 124
A138: 125
A139: 126
A140: 127
A141: 128
A142: 129
A143: 130
A144: 131
A145: 132
A146: 133
A147: 134
A148: 135
A149: 136
A150: 137
A151: 138
A152: 139
A153: 140
A154: 141
A155: 142
A156: 143
A157: 144
A158: 145
A159: 146
A160: 147
A161: 148
A162: 149
A163: 150
A164: 151
A165: 152
A166: 153
A167: 154
A168: 155
A169: 156
A170: 157
A171: 158
A172: 159
A173: 160
A174: 161
A175: 162
A176: 163
A177: 164
A178: 165
A179: 166
A180: 167
A181: 168
A182: 169
A183: 170
A184: 171
A185: 172
A186: 173
A187: 174
A188: 175
A189: 176
A190: 177
A191: 178
A192: 179
A193: 180
A194: 181
A195: 182
A196: 183
A197: 184
A198: 185
A199: 186
A200: 187
A201: 188
A202: 189
A203: 190
A204: 191
A205: 192
... 1558 more rows

Sheet Address and Encounter Volume (hidden)
A1: Georgia Department of Community Health
A2: Office of Information Technology
A3: Health Information Technology (HIT) Unit
A4: Medicaid Incentive Program for Adoption, Implementation, Upgrade, or Meaningful Use of EHR | B4: Medicaid Promoting Interoperability (PI) program (formerly EHR Incentive Program) for Meaningful Use
A5: Program Year 2018
A7: Group Practice or Clinic Locations and Encounter Volume
D9: Step 5: Enter the address information for the additional locations for which you are reporting your Encounter Volume. | L9: Step 6: Enter your In-State Medicaid and CHIP Encounter Volumes for the Group Practice/Clinic | Z9: Step 7: Enter your Out-of-State Medicaid and CHIP Encounter Volumes associated with each GA location listed | AI9: Step 9: Enter your Non-Medicaid Encounter Volume.
L10: Fee-for-Service Medicaid and CHIP Encounter Volumes | N10: Care Management Organization (CMO) Medicaid and CHIP Encounter Volumes | V10: Total Care Management Organization Encounter Volumes | X10: Total In-State Medicaid and CHIP Encounter Volumes | Z10: Out-of-State Medicaid and CHIP Encounter Volumes | AE10: Please specify the data source used to determine Out-of-State Medicaid Encounter Volume. The data source must be identifiable and auditable. | AL10: =IF('Calculation - Group'!K161="No","x","") ->  | AQ10: Total Non-Medicaid Encounter Volume
D11: Street Address | F11: City | H11: State | J11: Zip Code | N11: Amerigroup Community Care | P11: CareSource | R11: Peach State Health Plan | T11: Wellcare Health Plans, Inc. | Z11: State Name | AB11: Out-of-State Medicaid and CHIP Encounter Volumes | AE11: Data Source | AG11: Other Data Source | AI11: Medicare | AK11: Private Insurance | AL11: =IF('Calculation - Group'!K161="Yes","x","") ->  | AM11: Other (i.e. cash; uncompensated care) | AO11: Out-of-State Non-Medicaid Encounter Volume | AS11: Error Message 1 | AT11: Error Message 2 | AU11: Error Message 3
B13: Location 1 | V13: =SUM(N13:T13) -> 0 | X13: =L13+V13 -> 0 | AQ13: =SUM(AI13:AO13) -> 0 | AS13: =IF(AND(OR(D13<>"",F13<>"",H13<>"",J13<>""),OR(L13="",N13="",R13="",P13="",T13="",AI13="",AK13="",AM13="",AO13="")),"Please complete all steps. Enter zero if no volume.","") ->  | AT13: =IF(AND(AE13="Other",AG13=""),"Please enter Other Data Source.","") ->  | AU13: =IF(AND(AB13>0,Z13="",AE13=""),"Enter the State Name and select a Data Source for Step 7.","") ->  | AW13: =IF(OR(AS13<>"",AT13<>""),"x","") -> 
B14: Location 2 | V14: =SUM(N14:T14) -> 0 | X14: =L14+V14 -> 0 | AQ14: 0 | AS14: =IF(AND(OR(D14<>"",F14<>"",H14<>"",J14<>""),OR(L14="",N14="",R14="",P14="",T14="",AI14="",AK14="",AM14="",AO14="")),"Please complete all steps. Enter zero if no volume.","") ->  | AT14: =IF(AND(AE14="Other",AG14=""),"Please enter Other Data Source.","") ->  | AW14: =IF(OR(AS14<>"",AT14<>"",AU14<>""),"x","") -> 
B15: Location 3 | V15: =SUM(N15:T15) -> 0 | X15: 0 | AQ15: 0 | AW15: =IF(OR(AS15<>"",AT15<>"",AU15<>""),"x","") -> 
B16: Location 4 | V16: =SUM(N16:T16) -> 0 | X16: 0 | AQ16: 0
B17: Location 5 | V17: =SUM(N17:T17) -> 0 | X17: 0 | AQ17: 0
B18: Location 6 | V18: =SUM(N18:T18) -> 0 | X18: 0 | AQ18: 0
B19: Location 7 | V19: 0 | X19: 0 | AQ19: 0
B20: Location 8 | V20: 0 | X20: 0 | AQ20: 0
B21: Location 9 | V21: 0 | X21: 0 | AQ21: 0
B22: Location 10 | V22: 0 | X22: 0 | AQ22: 0
B23: Location 11 | V23: 0 | X23: 0 | AQ23: 0
B24: Location 12 | V24: 0 | X24: 0 | AQ24: 0
B25: Location 13 | V25: 0 | X25: 0 | AQ25: 0
B26: Location 14 | V26: 0 | X26: 0 | AQ26: 0
B27: Location 15 | V27: 0 | X27: 0 | AQ27: 0
B28: Location 16 | V28: 0 | X28: 0 | AQ28: 0
B29: Location 17 | V29: 0 | X29: 0 | AQ29: 0
B30: Location 18 | V30: 0 | X30: 0 | AQ30: 0
B31: Location 19 | V31: 0 | X31: 0 | AQ31: 0
B32: Location 20 | V32: 0 | X32: 0 | AQ32: 0
B33: Location 21 | V33: 0 | X33: 0 | AQ33: 0
B34: Location 22 | V34: 0 | X34: 0 | AQ34: 0
B35: Location 23 | V35: 0 | X35: 0 | AQ35: 0
B36: Location 24 | V36: 0 | X36: 0 | AQ36: 0
B37: Location 25 | V37: 0 | X37: 0 | AQ37: 0
B38: Location 26 | V38: 0 | X38: 0 | AQ38: 0
B39: Location 27 | V39: 0 | X39: 0 | AQ39: 0
B40: Location 28 | V40: 0 | X40: 0 | AQ40: 0
B41: Location 29 | V41: 0 | X41: 0 | AQ41: 0
B42: Location 30 | V42: 0 | X42: 0 | AQ42: 0
B43: Location 31 | V43: 0 | X43: 0 | AQ43: 0
B44: Location 32 | V44: 0 | X44: 0 | AQ44: 0
B45: Location 33 | V45: 0 | X45: 0 | AQ45: 0 | AU45: =IF(AND(AB45>0,Z45="",AE45=""),"Enter the State Name and select a Data Source for Step 7.","") -> 
B46: Location 34 | V46: 0 | X46: 0 | AQ46: 0
B47: Location 35 | V47: 0 | X47: 0 | AQ47: 0
B48: Location 36 | V48: 0 | X48: 0 | AQ48: 0
B49: Location 37 | V49: 0 | X49: 0 | AQ49: 0
B50: Location 38 | V50: 0 | X50: 0 | AQ50: 0
B51: Location 39 | V51: 0 | X51: 0 | AQ51: 0
B52: Location 40 | V52: 0 | X52: 0 | AQ52: 0
B53: Location 41 | V53: 0 | X53: 0 | AQ53: 0
B54: Location 42 | V54: 0 | X54: 0 | AQ54: 0
B55: Location 43 | V55: 0 | X55: 0 | AQ55: 0
B56: Location 44 | V56: 0 | X56: 0 | AQ56: 0
B57: Location 45 | V57: 0 | X57: 0 | AQ57: 0
B58: Location 46 | V58: 0 | X58: 0 | AQ58: 0
B59: Location 47 | V59: 0 | X59: 0 | AQ59: 0
B60: Location 48 | V60: 0 | X60: 0 | AQ60: 0
B61: Location 49 | V61: 0 | X61: 0 | AQ61: 0
B62: Location 50 | V62: 0 | X62: 0 | AQ62: 0
B63: Location 51 | V63: 0 | X63: 0 | AQ63: 0
B64: Location 52 | V64: 0 | X64: 0 | AQ64: 0
B65: Location 53 | V65: 0 | X65: 0 | AQ65: 0
B66: Location 54 | V66: 0 | X66: 0 | AQ66: 0
B67: Location 55 | V67: 0 | X67: 0 | AQ67: 0
B68: Location 56 | V68: 0 | X68: 0 | AQ68: 0
B69: Location 57 | V69: 0 | X69: 0 | AQ69: 0
B70: Location 58 | V70: 0 | X70: 0 | AQ70: 0
B71: Location 59 | V71: 0 | X71: 0 | AQ71: 0
B72: Location 60 | V72: 0 | X72: 0 | AQ72: 0

Sheet Example - Group (hidden)
A1: Georgia Department of Community Health | Q1: county_name | R1: blended_chip_factor
A2: Office of Information Technology | Q2: NULL | R2: 0
A3: Health Information Technology (HIT) Unit
A4: Medicaid Promoting Interoperability (PI) program (formerly EHR Incentive Program) for Meaningful Use | Q4: All County | R4: 0.018567
A5: Program Year 2018 | Q5: Appling | R5: 0.010663
Q6: Atkinson | R6: 0.008301
A7: Calculation: Group Encounter Volume | Q7: Bacon | R7: 0.028123
Q8: Baker | R8: 0.00862
A9: Contact Information: | Q9: Baldwin | R9: 0.01853
A10: Contact Person Completing This Workbook | C10: Bob Smith | N10: =IF(OR(C10="Please enter the name of the person completing this workbook.",C11="Please enter the phone number of the person completing this workbook.",C12="Please enter the email addresss of the person completing this workbook.",C13="Please enter the date this workbook was completed."),"Please complete the Contact Information tab of this workbook.","") ->  | P10: =IF(N10<>"","x","") ->  | Q10: Banks | R10: 0.043331
A11: Contact Person Phone Number | C11: 1234567890 | Q11: Barrow | R11: 0.062647
A12: Contact Person Email Address | C12: XXXXX@email.com | Q12: Bartow | R12: 0.053684
A13: Date Completed: | C13: 2018-02-01 | Q13: Ben Hill | R13: 0.034879
Q14: Berrien | R14: 0.031972
A15: Eligible Professional Patient Volume Calculation Template | Q15: Bibb | R15: 0.026218
Q16: Bleckley | R16: 0.052742
A17: Purple Shaded Cells Represent Data Entry | D17: For detailed information to assist in completing the Eligible Professional Patient Volume Calculation, see the Background Information tab. | Q17: Brantley | R17: 0.04664
D18: Background Information | Q18: Brooks | R18: 0.006934
A19: Instructions | Q19: Bryan | R19: 0.049054
A20: Step 1A: | B20: Enter the patient volume methodology being used for the 90-day period. | D20: * Medicaid patient volume can be calculated using one of the two following methods: | K20: Recent 12 Months | N20: =IF(K20="","Select a patient volume methodology.","") ->  | P20: =IF(N20<>"","x","") ->  | Q20: Bulloch | R20: 0.029528
Q21: Burke | R21: 0.026371
D22: 1) Patient volume can be determined using a consecutive 90-day period within the prior calendar year 2017 (01/01/2017-12/31/2017); | Q22: Butts | R22: 0.02847
Q23: Calhoun | R23: 0.022934
D24: OR | Q24: Camden | R24: 0.033945
Q25: Candler | R25: 0.014983
D26: 2) Patient volume can be determined across a consecutive 90-day period in the last 12 months preceding the provider's attestation. | Q26: Carroll | R26: 0.04054
K27: Start 90-day period | M27: End 90-day period | N27: Option 1: Calendar Year - Program Year 2018 Calculations, the 90 days starting date must fall on or after January 1, 2017. | Q27: Catoosa | R27: 0.047554
A28: Step 1B: | B28: Enter the beginning date (mm/dd/yyyy) of a continuous 90-day period for your Medicaid Encounter Volume. | D28: (Note the 90-day period must be entirely in the previous calendar year and cannot overlap into the current year. The Medicaid encounter volume should include encounters with dates of service during the 90-day period.) | M28: =IF(K28>0,K28+89,"") ->  | Q28: Charlton | R28: 0.010197
Q29: Chatham | R29: 0.029918
N30: =IF(AND(K20="Prior Calendar Year",K28=""),"Please select a 90-day period.","") ->  | P30: =IF(N30<>"","x","") ->  | Q30: Chattahooche | R30: 0.081092
A31: Step 1C: | B31: Enter the date of attestation. | D31: * This is the date the provider intends to electronically certify that the information entered on this calculator and any uploaded supporting documentation is true, accurate, and complete. | K31: 2018-02-01 | N31: =IF(AND(K20="Recent 12 Months",K31=""),"Please enter the date of attestation.","") ->  | Q31: Chattooga | R31: 0.045058
Q32: Cherokee | R32: 0.110073
Q33: Clarke | R33: 0.027523
K34: Start 90-day period | M34: End 90-day period | N34: Option 2: The 90 days starting date must fall on or after 12 months prior to the date of attestation. | Q34: Clay | R34: 0.00174
A35: Step 1D: | B35: Enter the beginning date (mm/dd/yyyy) of a continuous 90-day period for your Medicaid Encounter Volume. | D35: (Note the 90-day period must be during the 12 months preceding the date of attestation (Step 1C). | K35: 2017-02-01 | M35: =IF(K35>0,K35+89,"") -> 2017-05-01 | Q35: Clayton | R35: 0.035828
D36: Earliest Start Date of 90-day period: | F36: =IF(K20<>"Recent 12 Months","",IFERROR(EDATE(K31,-12)-1,"")) -> 2017-01-31 | Q36: Clinch | R36: 0.021235
D37: Latest Start Date of 90-day period: | F37: =IF(K20<>"Recent 12 Months","",IF(K31="","",K31-89)) -> 2017-11-04 | N37: =IF(AND(K20="Recent 12 Months",K35=""),"Please select a 90-day period.","") ->  | P37: =IF(N37<>"","x","") ->  | Q37: Cobb | R37: 0.054262
Q38: Coffee | R38: 0.030251
Q39: Colquitt | R39: 0.020134
Q40: Columbia | R40: 0.084627
A41: Step 2: | B41: Select all Eligible Professional provider types included in the group encounter volume for whom you are seeking an incentive payment. | Q41: Cook | R41: 0.03635
B42: Certified Nurse-Midwife | N42: =IF(COUNTA(C42:C47)<1,"Select Provider Types.","") ->  | P42: =IF(N42<>"","x","") ->  | Q42: Coweta | R42: 0.039901
B43: Dentist | Q43: Crawford | R43: 0.074493
B44: Nurse Practitioner | C44: X | Q44: Crisp | R44: 0.021461
B45: Obstetrician | Q45: Dade | R45: 0.055963
B46: Pediatrician | Q46: Dawson | R46: 0.124426
B47: Physician | C47: X | Q47: Decatur | R47: 0.037765
Q48: DeKalb | R48: 0.037124
A49: Step 3: | B49: An eligible professional is considered hospital-based if 90% or more of his or her services are performed in a hospital inpatient (Place Of Service code 21) or emergency room (Place Of Service code 23) setting. By confirming that Eligible Professionals for whom an incentive payment is sought are not hospital-based, you are attesting that those Eligible Professionals do not perform 90% or more of their services in a hospital setting. Are any of the providers for whom an incentive payment is sought considered hospital-based? | K49: No | N49: =IF(K49="","Please confirm no hospital-based group members.",IF(K49="Yes","For any providers in the group for which encounter volume is reported, you must select 'No' when asked if an incentive payment is being requested for those providers.","")) ->  | Q49: Dodge | R49: 0.031009
P50: =IF(K49="","x","") ->  | Q50: Dooly | R50: 0.08104
Q51: Dougherty | R51: 0.020288
Q52: Douglas | R52: 0.072975
P53: =IF(N53<>"","x","") ->  | Q53: Early | R53: 0.038599
Q54: Echols | R54: 0.026548
Q55: Effingham | R55: 0.045148
A56: Step 4A: | B56: Enter your Medicaid Payee ID or Group NPI for the group practice/clinic. | I56: Please select the ID you will be entering. | K56: Medicaid Payee ID | N56: =IF(OR(COUNTIF(O56:O60,"x")>0,D85=""),"Please complete Step 4B.","") ->  | O56: =IF(AND(K56="Medicaid Payee ID",D62=""),"x","") ->  | P56: =IF(N56<>"","x","") ->  | Q56: Elbert | R56: 0.016868
O57: =IF(AND(K56="Group NPI",F62=""),"x","") ->  | Q57: Emanuel | R57: 0.044965
Q58: Evans | R58: 0.024017
Q59: Fannin | R59: 0.065103
O60: =IF(K56="","x","") ->  | Q60: Fayette | R60: 0.05465
D61: Medicaid Payee ID of Group Practice/Clinic | F61: Group or Group Payee NPI | Q61: Floyd | R61: 0.032775
C62: 1. | D62: 333333333A | Q62: Forsyth | R62: 0.086148
C63: 2. | Q63: Franklin | R63: 0.026275
C64: 3. | Q64: Fulton | R64: 0.029979
C65: 4. | Q65: Gilmer | R65: 0.061479
C66: 5. | Q66: Glascock | R66: 0.035714
C67: 6. | Q67: Glynn | R67: 0.026797
C68: 7. | Q68: Gordon | R68: 0.051818
C69: 8. | Q69: Grady | R69: 0.054121
C70: 9. | Q70: Greene | R70: 0.046253
C71: 10. | Q71: Gwinnett | R71: 0.085254
C72: 11. | Q72: Habersham | R72: 0.059451
C73: 12. | Q73: Hall | R73: 0.055395
C74: 13. | Q74: Hancock | R74: 0.021923
C75: 14. | Q75: Haralson | R75: 0.032264
C76: 15. | Q76: Harris | R76: 0.014909
C77: 16. | Q77: Hart | R77: 0.053526
C78: 17. | Q78: Heard | R78: 0.015613
C79: 18. | Q79: Henry | R79: 0.050888
C80: 19. | Q80: Houston | R80: 0.027762
C81: 20. | Q81: Irwin | R81: 0.044306
Q82: Jackson | R82: 0.068303
Q83: Jasper | R83: 0.041615
B84: Enter the name of the group practice/clinic. | D84: Name of Group Practice/Clinic | Q84: Jeff Davis | R84: 0.041793
D85: Group Practice Name | Q85: Jefferson | R85: 0.050681
Q86: Jenkins | R86: 0.032896
Q87: Johnson | R87: 0.029473
A88: Step 4B: | B88: Rendering Medicaid IDs and/or National Provider IDs (NPI) of the group practice/clinic members. | N88: =IF(O88>0,"Please correct all errors on the Group Members tab.","") ->  | O88: =COUNTIF('Group Members'!T:T,"x") -> 0 | P88: =IF(O88>0,"x","") ->  | Q88: Jones | R88: 0.074657
Q89: Lamar | R89: 0.048159
Q90: Lanier | R90: 0.013327
B91: Enter the names of the individuals within the group practice/clinic on the Group Members tab. Select the button to the right to direct you to this tab. | Q91: Laurens | R91: 0.031329
Q92: Lee | R92: 0.070504
Q93: Liberty | R93: 0.036977
Q94: Lincoln | R94: 0.045481
Q95: Long | R95: 0.016326
Q96: Lowndes | R96: 0.034283
A97: Step 4C: | B97: Enter the Name and Provider Type of other individuals providing services to Medicaid patients during the 90-day period specified in step 1. | Q97: Lumpkin | R97: 0.039012
N98: =IF(AND('Other Providers'!B13<>"",'Other Providers'!D13<>""),"","You must complete step 4C. Please enter N/A in the Name and Provider Type on line 1 if there are no other individuals with encounter volume.") ->  | P98: =IF(N98<>"","x","") ->  | Q98: Macon | R98: 0.017679
Q99: Madison | R99: 0.03988
Q100: Marion | R100: 0.023756
Q101: McDuffie | R101: 0.02376
B102: * These individuals may not be Eligible Professionals but may include physician assistants, dieticians, registered nurses, etc., who render services billed by the group practice/clinic. | Q102: McIntosh | R102: 0.018916
Q103: Meriwether | R103: 0.007791
Q104: Miller | R104: 0.036168
Q105: Mitchell | R105: 0.036878
Q106: Monroe | R106: 0.047535
Q107: Montgomery | R107: 0.004979
Q108: Morgan | R108: 0.048506
Q109: Murray | R109: 0.042655
Q110: Muscogee | R110: 0.02222
Q111: N/A | R111: 0.083173
A112: Step 5: | B112: Enter the Address Information for Step 5 on the Address and Encounter Volume tab. Select the button below to direct you to this tab. | P112: =IF(N112<>"","x","") ->  | Q112: Newton | R112: 0.036746
Q113: Oconee | R113: 0.096752
Q114: Oglethorpe | R114: 0.018552
Q115: OOS | R115: 0.031554
Q116: OOS Over50 | R116: 0.028668
Q117: OOSEmerg | R117: 0.0139
P118: =IF(N118<>"","x","") ->  | Q118: Paulding | R118: 0.062846
Q119: Peach | R119: 0.022753
Q120: Pickens | R120: 0.030271
Q121: Pierce | R121: 0.045578
Q122: Pike | R122: 0.085076
A123: Step 6: | B123: In-State Medicaid and CHIP Encounter Volumes for the Group Practice/Clinic | D123: •One Medicaid Encounter is defined as services rendered on any one day to a Medicaid-enrolled individual, regardless of payment liability. Count all Medicaid encounters during the 90-day period. | Q123: Polk | R123: 0.031018
B124: Include Encounter Volume for all providers affiliated with the Medicaid Payee ID entered in step 4A. | Q124: Pulaski | R124: 0.020654
Q125: Putnam | R125: 0.036385
D126: • If your Group includes an Obstetrician who routinely provides services paid under a global code, patient volume for the Obstetrician should include each individual patient encounter that occurred during the specified 90-day period when those services were paid under global codes, regardless of the date of payment. | Q126: Quitman | R126: 0.037395
Q127: Rabun | R127: 0.063482
Q128: Randolph | R128: 0.02245
Q129: Richmond | R129: 0.02339
Q130: Rockdale | R130: 0.051101
B131: Fee-for-Service Medicaid and CHIP Encounter Volumes | F131: Totals will automatically populate when the Encounter Volume tab is completed. | Q131: Schley | R131: 0.018738
Q132: Screven | R132: 0.016612
Q133: Seminole | R133: 0.028264
B134: Total Fee-for-Service Medicaid and CHIP Encounter Volumes | F134: =SUM('Example- Addr and Enc Volume'!L:L) -> 100 | Q134: Spalding | R134: 0.016359
Q135: Stephens | R135: 0.044547
Q136: Stewart | R136: 0.026851
B137: Care Management Organization (CMO) Medicaid and CHIP Encounter Volumes | Q137: Sumter | R137: 0.026941
B138: Amerigroup Community Care | F138: =SUM('Example- Addr and Enc Volume'!N:N) -> 100 | Q138: Talbot | R138: 0
B139: CareSource | F139: =SUM('Example- Addr and Enc Volume'!P:P) -> 150 | Q139: Taliaferro | R139: 0
B140: Peach State Health Plan | F140: =SUM('Example- Addr and Enc Volume'!R:R) -> 300 | Q140: Tattnall | R140: 0.019507
B141: Wellcare Health Plans, Inc. | F141: =SUM('Example- Addr and Enc Volume'!T:T) -> 100 | Q141: Taylor | R141: 0.013868
Q142: Telfair | R142: 0.04383
B143: Total Care Management Organization Encounter Volumes | F143: =SUM(F138:F141) -> 650 | Q143: Terrell | R143: 0.022018
Q144: Thomas | R144: 0.023988
B145: Total In-State Medicaid and CHIP Encounter Volumes | F145: =F134+F143 -> 750 | Q145: Tift | R145: 0.029978
Q146: Toombs | R146: 0.030755
Q147: Towns | R147: 0.044949
A148: Step 7: | B148: Out-of-State Medicaid Encounter Volume | N148: =IF(F152="","Please complete Step 7.","") ->  | O148: =IF(F152="","x","") ->  | P148: =IF(O148="x","x","") ->  | Q148: Treutlen | R148: 0.138277
Q149: Troup | R149: 0.030217
B150: Note 1: Out-of-State encounter volume includes claims that were paid by a border State's (i.e. a state contiguous to Georgia) Medicaid program to an Eligible Professional for encounters which occurred at the Eligible Professional's practice location(s). | Q150: Turner | R150: 0.063026
Q151: Twiggs | R151: 0.014051
B152: Does the provider/practice need to include Out-of-State Medicaid volume in the numerator in order to patient volume eligibility requirements? | F152: No | Q152: Union | R152: 0.041371
Q153: Upson | R153: 0.030524
Q154: Walker | R154: 0.018938
B155: Note 2: If yes is selected, Out-of-State Medicaid encounters will be included in the numerator of the patient volume calculation. | Q155: Walton | R155: 0.053707
Q156: Ware | R156: 0.02577
B157: Total Out-of-State Medicaid and CHIP Encounter Volumes | F157: =SUM('Example- Addr and Enc Volume'!AB:AB) -> 15 | Q157: Warren | R157: 0.004545
Q158: Washington | R158: 0.03718
Q159: Wayne | R159: 0.031636
A160: CHIP Encounter Volume Adjustment: | Q160: Webster | R160: 0
A161: Step 8A: | B161: Due to the difficulty in distinguishing CHIP volume from Medicaid volume, the Georgia Department of Community Health has created a factor to adjust the Medicaid and CHIP Encounter Volumes based on the predominant Georgia county. | N161: =IF(OR(O161="x",O162="x"),"Please complete Step 8B.","") ->  | P161: =IF(N161<>"","x","") ->  | Q161: Wheeler | R161: 0.018348
O162: =IF(K167="","x","") ->  | Q162: White | R162: 0.103922
Q163: Whitfield | R163: 0.072988
Q164: Wilcox | R164: 0.068839
A165: Step 8B: | B165: This calculator will prompt you to select a CHIP factor. A CHIP Factor has been calculated for each county in Georgia. If you are reporting Encounter Volume for more than one county, select the one Georgia county where the majority of your Medicaid and CHIP Encounter Volume was performed during the selected 90-day period. This CHIP factor will reduce the combined Medicaid and CHIP Encounter Volume by a percentage representative of CHIP services for that county. | Q165: Wilkes | R165: 0.026519
Q166: Wilkinson | R166: 0.028206
I167: Select the Predominant County for CHIP Factor: | K167: BARTOW | Q167: Worth | R167: 0.040963
D170: Medicaid and CHIP Encounter Volume Subtotal | F170: =IF(F152="No",F145,F145+F157) -> 750
D171: CHIP Factor | F171: =IF(ISNA(VLOOKUP(K167,Q:R,2,0))=TRUE,0,VLOOKUP(K167,Q:R,2,0)) -> 0.053684 | H171: If the CHIP adjustment is less than 0.01%, no CHIP factor will be shown.
B173: CHIP Encounter Volume Adjustment | F173: =ROUNDDOWN(F170*F171,0) -> 40
A176: Total Adjusted Medicaid Encounter Volume | F176: =F170-F173 -> 710
B177: =IF(AND(F152="No",F157<>""),"The Out-of-State Medicaid encounter volume will only be included in the denominator of the patient volume calculator.","") -> The Out-of-State Medicaid encounter volume will only be included in the denominator of the patient volume calculator.
F180: Totals will automatically populate when the Encounter Volume tab is completed.
A184: Step 9: | B184: Non-Medicaid Encounter Volume. | D184: Medicare | F184: =SUM('Example- Addr and Enc Volume'!AJ:AJ) -> 400
D185: Private Insurance | F185: =SUM('Example- Addr and Enc Volume'!AL:AL) -> 100
B186: This section will show the Encounter Volume for all providers affiliated with the Medicaid Payee ID entered in step 4B. | D186: Other (i.e. cash; uncompensated care)
F187: =SUM('Example- Addr and Enc Volume'!AN:AN) -> 500
D192: Out-of-State Non-Medicaid Encounter Volume | F192: =SUM('Example- Addr and Enc Volume'!AO:AO) -> 0
B196: Total Non-Medicaid Encounter Volume | F196: =SUM(F184:F187)+F192 -> 1000
A199: Total Medicaid and Non-Medicaid Encounter Volume
B200: • This amount is the sum of Step 6, Step 7, Step 8, and Step 9. | F200: =F145+F157+F196 -> 1765
B204: Summary: | O204: =COUNTIF(P:P,"x") -> 0
B205: In-State Medicaid and CHIP Encounter Volumes | D205: =F145 -> 750 | I205: =IF(K49="Yes","Note: This group contains some hospital-based providers. For any of these providers in the group for which encounter volume is reported, you must select 'No' when asked if an incentive payment is being requested for those providers.","") -> 
B207: Out-of-State Medicaid and CHIP Encounter Volumes | D207: =F157 -> 15
B209: Total Medicaid Encounter Volume Excluding CHIP | D209: =F176 -> 710 | I209: =IF(AND(D221>=19.4444444444445,$D221<29.4444444444445),"This Percentage Does Meet the Medicaid EHR Incentive Program Patient Volume Requirement for Pediatricians but does NOT Meet the Requirement for the other provider types.",IF($D221>=29.4444444444445,"This Percentage Does Meet the Medicaid EHR Incentive Program Patient Volume Requirement","This Percentage Does NOT Meet the Medicaid EHR Incentive Program Patient Volume Requirement")) -> This Percentage Does Meet the Medicaid EHR Incentive Program Patient Volume Requirement
B211: Total Medicaid and Non-Medicaid Encounter Volume | D211: =F200 -> 1765
D212: =IF(D221>100.000000000001,"Error, Cannot be higher than 100%, please recalculate","") -> 
B214: Patient Volume Calculation: | I214: =IF(O204<>0,"Review Column N for error messages. You must resolve all calculator errors above.","") -> 
B215: Total Medicaid Encounter Volume Excluding CHIP (Numerator) | D215: =D209 -> 710
B217: Total Medicaid and Non-Medicaid Encounter Volume (Denominator) | D217: =F200 -> 1765
A221: Medicaid Patient Volume: | D221: =IF(D217=0,0,(((D215)/D217)*100)) -> 40.2266289 | E221: % | F221: 1
A224: 1 The Medicaid Patient Volume calculation is rounded up or down to the nearest whole number. Amounts less than .5 are rounded down; amounts equal to or greater than .5 are rounded up.
A227: When applying to the Georgia Medicaid Incentive Payment Program, the information below should be entered as the patient volume information in the state of Georgia's Medical Assistance Provider Incentive Repository (MAPIR) System:
B229: Medicaid Only Encounter Volume2 (In State Numerator) | D229: Medicaid Encounter Volume 3 (Total Numerator) | E229: Total Encounter Volume 4 (Denominator)
B230: =ROUNDUP(D205*(1-F171),0) -> 710 | D230: =D215 -> 710 | E230: =D217 -> 1765
A234: 2 The Medicaid Only Encounter Volume is the in-state Medicaid encounter volume excluding in-state CHIP encounters.
A236: 3 The Total Medicaid Encounter Volume is the sum of the in-state and out-of-state Medicaid Encounter Volume excluding CHIP.
A238: 4 The Total Encounter Volume is the sum of all patient encounters from all payor sources.

Sheet Example - Group Members (hidden)
A1: Georgia Department of Community Health
A2: Office of Information Technology
A3: Health Information Technology (HIT) Unit
A4: Medicaid Promoting Interoperability (PI) program (formerly EHR Incentive Program) for Meaningful Use
A5: Program Year 2018
A7: Group Practice or Clinic Members
A9: All Medicaid IDs for providers of the group who provided services during the selected 90-day period must be listed, including providers who are no longer with the group. If a provider has more than one location letter, enter all letters associated with that provider's Medicaid Enterprise ID in the Medicaid Location Identifier column. Only list Eligible Professionals on this page. Other providers, such as physician assistants, dieticians, registered nurses, should be listed in Step 4C on the Calculation-Group tab.
B11: Medicaid Enterprise ID (First nine digits of the Medicaid ID.) | D11: Medicaid ID Location Identifier (Last Letter of Medicaid ID.) | L11: Is this provider applying for an Incentive Payment? | N11: If yes, which payment year is the provider applying for?
F13: NPI | H13: Medicaid Provider Name | J13: Provider Type | P13: Error Message 1 | Q13: Error Message 2 | R13: Error Message 3 | S13: Error Message 4
A14: Example: | B14: 012345678 | D14: A,B,C | F14: 1234567890
A16: 1 | B16: 123456789 | D16: A, C | F16: 1111111111 | H16: Provider A | J16: Physician | L16: Yes | N16: 1st Payment | P16: =IF(AND(OR(B16<>"",D16<>"",F16<>"",H16<>""),J16=""),"Please select a provider type."," ") ->  | Q16: =IF(AND(OR(B16<>"",D16<>"",F16<>"",H16<>""),L16=""),"Please indicate if applying for incentive payment."," ") ->  | R16: =IF(OR(AND(B16<>"",D16=""),AND(B16<>"",F16=""),AND(B16<>"",H16="")),"Please enter all of the group member's information."," ") ->  | S16: =IF(AND(L16="Yes",N16=""),"Please select the payment year.","") ->  | T16: =IF(AND(P16=" ",Q16=" ",R16=" ",S16=""),"","x") -> 
A17: 2 | B17: 222222222 | D17: B, D | F17: 2222222222 | H17: Provider B | J17: Physician | L17: Yes | N17: 1st Payment | P17: =IF(AND(OR(B17<>"",D17<>"",F17<>"",H17<>""),J17=""),"Please select a provider type."," ") ->  | Q17: =IF(AND(OR(B17<>"",D17<>"",F17<>"",H17<>""),L17=""),"Please indicate if applying for incentive payment."," ") ->  | R17: =IF(OR(AND(B17<>"",D17=""),AND(B17<>"",F17=""),AND(B17<>"",H17="")),"Please enter all of the group member's information."," ") ->  | S17: =IF(AND(L17="Yes",N17=""),"Please select the payment year.","") ->  | T17: =IF(AND(P17=" ",Q17=" ",R17=" "),"","x") -> 
A18: 3 | B18: 333333333 | D18: A,C | F18: 3333333333 | H18: Provider C | J18: Nurse Practitioner | L18: Yes | N18: 1st Payment
A19: 4
A20: 5
A21: 6
A22: 7
A23: 8
A24: 9
A25: 10
A26: 11
A27: 12
A28: 13
A29: 14
A30: 15
A31: 16
A32: 17
A33: 18
A34: 19
A35: 20
A36: 21
A37: 22
A38: 23
A39: 24
A40: 25
A41: 26
A42: 27
A43: 28
A44: 29
A45: 30
A46: 31
A47: 32
A48: 33
A49: 34
A50: 35
A51: 36
A52: 37
A53: 38
A54: 39
A55: 40
A56: 41
A57: 42
A58: 43
A59: 44
A60: 45
A61: 46
A62: 47
A63: 48
A64: 49
A65: 50
A66: 51
A67: 52
A68: 53
A69: 54
A70: 55
A71: 56
A72: 57
A73: 58
A74: 59
A75: 60
A76: 61
A77: 62
A78: 63
A79: 64
A80: 65
A81: 66 | P81: =IF(AND(OR(B81<>"",D81<>"",F81<>"",H81<>""),J81=""),"Please select a provider type."," ") ->  | Q81: =IF(AND(OR(B81<>"",D81<>"",F81<>"",H81<>""),L81=""),"Please indicate if applying for incentive payment."," ") ->  | R81: =IF(OR(AND(B81<>"",D81=""),AND(B81<>"",F81=""),AND(B81<>"",H81="")),"Please enter all of the group member's information."," ") ->  | S81: =IF(AND(L81="Yes",N81=""),"Please select the payment year.","") ->  | T81: =IF(AND(P81=" ",Q81=" ",R81=" "),"","x") -> 
A82: 67
A83: 68
A84: 69
A85: 70
A86: 71
A87: 72
A88: 73
A89: 74
A90: 75
A91: 76
A92: 77
A93: 78
A94: 79
A95: 80
A96: 81
A97: 82
A98: 83
A99: 84
A100: 85
A101: 86
A102: 87
A103: 88
A104: 89
A105: 90
A106: 91
A107: 92
A108: 93
A109: 94
A110: 95
A111: 96
A112: 97
A113: 98
A114: 99
A115: 100
A116: 101
A117: 102
A118: 103
A119: 104
A120: 105
A121: 106
A122: 107
A123: 108
A124: 109
A125: 110
A126: 111
A127: 112
A128: 113
A129: 114
A130: 115
A131: 116
A132: 117
A133: 118
A134: 119
A135: 120
A136: 121
A137: 122
A138: 123
A139: 124
A140: 125
A141: 126
A142: 127
A143: 128
A144: 129
A145: 130 | P145: =IF(AND(OR(B145<>"",D145<>"",F145<>"",H145<>""),J145=""),"Please select a provider type."," ") ->  | Q145: =IF(AND(OR(B145<>"",D145<>"",F145<>"",H145<>""),L145=""),"Please indicate if applying for incentive payment."," ") ->  | R145: =IF(OR(AND(B145<>"",D145=""),AND(B145<>"",F145=""),AND(B145<>"",H145="")),"Please enter all of the group member's information."," ") ->  | S145: =IF(AND(L145="Yes",N145=""),"Please select the payment year.","") ->  | T145: =IF(AND(P145=" ",Q145=" ",R145=" "),"","x") -> 
A146: 131
A147: 132
A148: 133
A149: 134
A150: 135
A151: 136
A152: 137
A153: 138
A154: 139
A155: 140
A156: 141
A157: 142
A158: 143
A159: 144
A160: 145
A161: 146
A162: 147
A163: 148
A164: 149
A165: 150
A166: 151
A167: 152
A168: 153
A169: 154
A170: 155
A171: 156
A172: 157
A173: 158
A174: 159
A175: 160
A176: 161
A177: 162
A178: 163
A179: 164
A180: 165
A181: 166
A182: 167
A183: 168
A184: 169
A185: 170
A186: 171
A187: 172
A188: 173
A189: 174
A190: 175
A191: 176
A192: 177
A193: 178
A194: 179
A195: 180
A196: 181
A197: 182
A198: 183
A199: 184
A200: 185
A201: 186
A202: 187
A203: 188
A204: 189
A205: 190
... 1560 more rows

Sheet Example- Addr and Enc Volume (hidden)
A1: Georgia Department of Community Health
A2: Office of Information Technology
A3: Health Information Technology (HIT) Unit
A4: Medicaid Promoting Interoperability (PI) program (formerly EHR Incentive Program) for Meaningful Use
A5: Program Year 2018
A7: Group Practice or Clinic Locations and Encounter Volume
D9: Step 5: Enter the address information for the additional locations for which you are reporting your Encounter Volume. | L9: Step 6: Enter your In-State Medicaid and CHIP Encounter Volumes for the Group Practice/Clinic | Z9: Step 7: Enter your Out-of-State Medicaid and CHIP Encounter Volumes associated with each GA location listed- Only include Out-of-State Medicaid Encounter Volume if it is required to meet the Medicaid EHR Incentive Program Patient Volume Requirement. | AJ9: Step 9: Enter your Non-Medicaid Encounter Volume.
L10: Fee-for-Service Medicaid and CHIP Encounter Volumes | N10: Care Management Organization (CMO) Medicaid and CHIP Encounter Volumes | V10: Total Care Management Organization Encounter Volumes | X10: Total In-State Medicaid and CHIP Encounter Volumes | Z10: Out-of-State Medicaid and CHIP Encounter Volumes | AD10: Subtotal of In-State and Out-of-State Encounter Volumes | AF10: Please specify the data source used to determine Out-of-State Medicaid Encounter Volume. The data source must be identifiable and auditable. | AM10: =IF(#REF!="No","x","") ->  | AR10: Total Non-Medicaid Encounter Volume
D11: Street Address | F11: City | H11: State | J11: Zip Code | N11: Amerigroup Community Care | P11: CareSource | R11: Peach State Health Plan | T11: Wellcare Health Plans, Inc. | Z11: State Name | AB11: Out-of-State Medicaid and CHIP Encounter Volumes | AF11: Data Source | AH11: Other Data Source | AJ11: Medicare | AL11: Private Insurance | AM11: =IF(#REF!="Yes","x","") ->  | AN11: Other (i.e. cash; uncompensated care) | AP11: Out-of-State Non-Medicaid Encounter Volume | AT11: Error Message 1 | AU11: Error Message 2 | AV11: Error Message 3
B13: Location 1 | D13: 1 Street | F13: Atlanta | H13: GA | J13: 30303 | L13: 50 | N13: 25 | P13: 50 | R13: 150 | T13: 75 | V13: =SUM(N13:T13) -> 300 | X13: =L13+V13 -> 350 | Z13: Tennessee | AB13: 15 | AD13: =X13+AB13 -> 365 | AF13: Accounts Receivable records | AJ13: 100 | AL13: 50 | AN13: 425 | AP13: 0 | AR13: =SUM(AJ13:AP13) -> 575 | AT13: =IF(AND(OR(D13<>"",F13<>"",H13<>"",J13<>""),OR(L13="",N13="",R13="",P13="",T13="",AJ13="",AL13="",AN13="",AP13="")),"Please complete all steps. Enter zero if no volume.","") ->  | AU13: =IF(AND(AF13="Other",AH13=""),"Please enter Other Data Source.","") ->  | AV13: =IF(AND(AB13>0,Z13="",AF13=""),"Enter the State Name and select a Data Source for Step 7.","") ->  | AW13: =IF(OR(AT13<>"",AU13<>""),"x","") -> 
B14: Location 2 | D14: 2 Street | F14: Atlanta | H14: GA | J14: 30303 | L14: 50 | N14: 75 | P14: 100 | R14: 150 | T14: 25 | V14: =SUM(N14:T14) -> 350 | X14: =L14+V14 -> 400 | AD14: 400 | AJ14: 300 | AL14: 50 | AN14: 75 | AP14: 0 | AR14: 425 | AT14: =IF(AND(OR(D14<>"",F14<>"",H14<>"",J14<>""),OR(L14="",N14="",R14="",P14="",T14="",AJ14="",AL14="",AN14="",AP14="")),"Please complete all steps. Enter zero if no volume.","") ->  | AU14: =IF(AND(AF14="Other",AH14=""),"Please enter Other Data Source.","") ->  | AV14: =IF(AND(AB14>0,Z14="",AF14=""),"Enter the State Name and select a Data Source for Step 7.","") ->  | AW14: =IF(OR(AT14<>"",AU14<>""),"x","") -> 
B15: Location 3 | V15: =SUM(N15:T15) -> 0 | X15: 0 | AD15: 0 | AR15: 0 | AV15: =IF(AND(AB15>0,Z15="",AF15=""),"Enter the State Name and select a Data Source for Step 7.","") -> 
B16: Location 4 | V16: =SUM(N16:T16) -> 0 | X16: 0 | AD16: 0 | AR16: 0
B17: Location 5 | V17: =SUM(N17:T17) -> 0 | X17: 0 | AD17: 0 | AR17: 0
B18: Location 6 | V18: =SUM(N18:T18) -> 0 | X18: 0 | AD18: 0 | AR18: 0
B19: Location 7 | V19: 0 | X19: 0 | AD19: 0 | AR19: 0
B20: Location 8 | V20: 0 | X20: 0 | AD20: 0 | AR20: 0
B21: Location 9 | V21: 0 | X21: 0 | AD21: 0 | AR21: 0
B22: Location 10 | V22: 0 | X22: 0 | AD22: 0 | AR22: 0
B23: Location 11 | V23: 0 | X23: 0 | AD23: 0 | AR23: 0
B24: Location 12 | V24: 0 | X24: 0 | AD24: 0 | AR24: 0
B25: Location 13 | V25: 0 | X25: 0 | AD25: 0 | AR25: 0
B26: Location 14 | V26: 0 | X26: 0 | AD26: 0 | AR26: 0
B27: Location 15 | V27: 0 | X27: 0 | AD27: 0 | AR27: 0
B28: Location 16 | V28: 0 | X28: 0 | AD28: 0 | AR28: 0
B29: Location 17 | V29: 0 | X29: 0 | AD29: 0 | AR29: 0
B30: Location 18 | V30: 0 | X30: 0 | AD30: 0 | AR30: 0
B31: Location 19 | V31: 0 | X31: 0 | AD31: 0 | AR31: 0
B32: Location 20 | V32: 0 | X32: 0 | AD32: 0 | AR32: 0
B33: Location 21 | V33: 0 | X33: 0 | AD33: 0 | AR33: 0
B34: Location 22 | V34: 0 | X34: 0 | AD34: 0 | AR34: 0
B35: Location 23 | V35: 0 | X35: 0 | AD35: 0 | AR35: 0
B36: Location 24 | V36: 0 | X36: 0 | AD36: 0 | AR36: 0
B37: Location 25 | V37: 0 | X37: 0 | AD37: 0 | AR37: 0
B38: Location 26 | V38: 0 | X38: 0 | AD38: 0 | AR38: 0
B39: Location 27 | V39: 0 | X39: 0 | AD39: 0 | AR39: 0
B40: Location 28 | V40: 0 | X40: 0 | AD40: 0 | AR40: 0
B41: Location 29 | V41: 0 | X41: 0 | AD41: 0 | AR41: 0
B42: Location 30 | V42: 0 | X42: 0 | AD42: 0 | AR42: 0
B43: Location 31 | V43: 0 | X43: 0 | AD43: 0 | AR43: 0
B44: Location 32 | V44: 0 | X44: 0 | AD44: 0 | AR44: 0
B45: Location 33 | V45: 0 | X45: 0 | AD45: 0 | AR45: 0
B46: Location 34 | V46: 0 | X46: 0 | AD46: 0 | AR46: 0
B47: Location 35 | V47: 0 | X47: 0 | AD47: 0 | AR47: 0
B48: Location 36 | V48: 0 | X48: 0 | AD48: 0 | AR48: 0
B49: Location 37 | V49: 0 | X49: 0 | AD49: 0 | AR49: 0
B50: Location 38 | V50: 0 | X50: 0 | AD50: 0 | AR50: 0
B51: Location 39 | V51: 0 | X51: 0 | AD51: 0 | AR51: 0
B52: Location 40 | V52: 0 | X52: 0 | AD52: 0 | AR52: 0
B53: Location 41 | V53: 0 | X53: 0 | AD53: 0 | AR53: 0
B54: Location 42 | V54: 0 | X54: 0 | AD54: 0 | AR54: 0
B55: Location 43 | V55: 0 | X55: 0 | AD55: 0 | AR55: 0
B56: Location 44 | V56: 0 | X56: 0 | AD56: 0 | AR56: 0
B57: Location 45 | V57: 0 | X57: 0 | AD57: 0 | AR57: 0
B58: Location 46 | V58: 0 | X58: 0 | AD58: 0 | AR58: 0
B59: Location 47 | V59: 0 | X59: 0 | AD59: 0 | AR59: 0
B60: Location 48 | V60: 0 | X60: 0 | AD60: 0 | AR60: 0
B61: Location 49 | V61: 0 | X61: 0 | AD61: 0 | AR61: 0
B62: Location 50 | V62: 0 | X62: 0 | AD62: 0 | AR62: 0
B63: Location 51 | V63: 0 | X63: 0 | AD63: 0 | AR63: 0
B64: Location 52 | V64: 0 | X64: 0 | AD64: 0 | AR64: 0
B65: Location 53 | V65: 0 | X65: 0 | AD65: 0 | AR65: 0
B66: Location 54 | V66: 0 | X66: 0 | AD66: 0 | AR66: 0
B67: Location 55 | V67: 0 | X67: 0 | AD67: 0 | AR67: 0
B68: Location 56 | V68: 0 | X68: 0 | AD68: 0 | AR68: 0
B69: Location 57 | V69: 0 | X69: 0 | AD69: 0 | AR69: 0
B70: Location 58 | V70: 0 | X70: 0 | AD70: 0 | AR70: 0
B71: Location 59 | V71: 0 | X71: 0 | AD71: 0 | AR71: 0
B72: Location 60 | V72: 0 | X72: 0 | AD72: 0 | AR72: 0

Sheet Calculation-FQHC_RHC Individual (hidden)
A1: Georgia Department of Community Health
A2: Office of Information Technology
A3: Health Information Technology (HIT) Unit
A4: Medicaid Promoting Interoperability (PI) program (formerly EHR Incentive Program) for Meaningful Use
A5: Program Year 2018
A7: Calculation: FQHC/RHC - Individual Encounter Volume
A9: Contact Information: (This information populates from the information entered on the Contact Information tab.)
A10: Eligible Professional National Provider ID (NPI): | D10: =_npi1 -> 0
A11: Eligible Professional Rendering Medicaid ID: | D11: =_cid1 -> 0 | T11: =IF(OR(D10="Please enter your NPI.",D11="Please enter your Rendering Medicaid ID.",D12="Please enter your Eligible Professional Name",D13="Please enter the name of the person completing this workbook.",D14="Please enter the phone number of the person completing this workbook.",D15="Please enter the email address of the person completing this workbook",D16="Please enter the date this workbook was completed."),"Please complete the Contact Information tab of this workbook.","") ->  | V11: =IF(T11<>"","x","") -> 
A12: Eligible Professional Name: | D12: =cname1 -> 0
A13: Contact Person Completing This Workbook | D13: =_cwb1 -> 0
A14: Contact Person Phone Number | D14: =_cph1 -> 0
A15: Contact Person Email Address | D15: =_cem1 -> 0
A16: Date Completed: | D16: =date1 -> 00:00:00
A18: Eligible Professional Patient Volume Calculation Template
A20: Purple Shaded Cells Represent Data Entry | D20: For detailed information to assist in completing the Eligible Professional Patient Volume Calculation, see the Background Information tab.
D21: Background Information
A22: Instructions
A23: Step 1A: | B23: Enter the patient volume methodology being used for the 90-day period. | D23: * Medicaid patient volume can be calculated using one of the two following methods: | T23: =IF(Q23="","Select a patient volume methodology.","") -> Select a patient volume methodology. | V23: =IF(T23<>"","x","") -> x
D25: 1) Patient volume can be determined using a consecutive 90-day period within the prior calendar year 2017 (01/01/2017-12/31/2017);
D27: OR
D29: 2) Patient volume can be determined across a consecutive 90-day period in the last 12 months preceding the provider's attestation.
Q30: Start 90-day period | S30: End 90-day period | T30: Option 1: Calendar Year - Program Year 2018 Calculations, the 90 days starting date must fall on or after January 1, 2017.
A31: Step 1B: | B31: Enter the beginning date (mm/dd/yyyy) of a continuous 90-day period for your Medicaid Encounter Volume. | D31: (Note the 90-day period must be entirely in the previous calendar year and cannot overlap into the current year. The Medicaid encounter volume should include encounters with dates of service during the 90-day period.) | S31: =IF(Q31>0,Q31+89,"") -> 
T34: =IF(AND(Q23="Prior Calendar Year",Q31=""),"Please select a 90-day period.","") ->  | V34: =IF(T34<>"","x","") -> 
A35: Step 1C: | B35: Enter the date of attestation. | D35: * This is the date the provider intends to electronically certify that the information entered on this calculator and any uploaded supporting documentation is true, accurate, and complete.
T36: =IF(AND(Q23="Recent 12 Months",Q36=""),"Please enter the date of attestation.","") ->  | V36: =IF(T36<>"","x","") -> 
Q38: Start 90-day period | S38: End 90-day period | T38: Option 2: The 90 days starting date must fall on or after 12 months prior to the date of attestation.
A39: Step 1D: | B39: Enter the beginning date (mm/dd/yyyy) of a continuous 90-day period for your Medicaid Encounter Volume. | D39: (Note the 90-day period must be during the 12 months preceding the date of attestation (Step 1C). | S39: =IF(Q39>0,Q39+89,"") -> 
D40: Earliest Start Date of 90-day period: | G40: =IF(Q23<>"Recent 12 Months","",IFERROR(EDATE(Q36,-12)-1,"")) -> 
D41: Latest Start Date of 90-day period: | G41: =IF(Q23<>"Recent 12 Months","",IF(Q36="","",Q36-89)) -> 
T42: =IF(AND(Q23="Most Recent 12 Months",Q39=""),"Please select your 90-day period.","") ->  | V42: =IF(T42<>"","x","") -> 
A45: Step 1E: | B45: Please select your payment year. | D45: Example: If this is the first year you will receive an incentive payment then select "1st Payment". If you have already received an incentive payment and this is the second year you will receive an incentive payment then select "2nd Payment ". | T45: =IF(Q45="","Please select your payment year.","") -> Please select your payment year. | V45: x
A49: Step 2: | B49: Please select your provider type: | D49: =IF(OR(Q49="Obstetrician",Q49="Certified Nurse-Midwife"),"For Obstetricians or CNMs, include all encounters for the 90-day period that are associated with a global code.","") ->  | T49: =IF(Q49="","Please select a provider type.","") -> Please select a provider type. | V49: x
B50: Certified Nurse-Midwife
B51: Dentist
B52: Nurse Practitioner
B53: Obstetrician
B54: Pediatrician
B55: Physician
B56: Physician Assistant
B57: A) Primary provider in a clinic (for example, when there is a part-time physician and full-time PA, then DCH would consider the PA as the primary provider);
B58: B) Clinical or medical director at a clinical site of practice
B59: C) Owner of the RHC
A62: Step 3: | B62: Are your services performed predominantly in a hospital? | D62: An eligible professional is considered hospital-based if 90% or more of his or her services are performed in a hospital inpatient (Place Of Service code 21) or emergency room (Place Of Service code 23) setting. | T62: =IF(Q62="","Please confirm you are not a hospital-based provider.",IF($Q$62="Yes","Hospital-Based Eligible Professionals are NOT eligible to receive EHR Medicaid Incentive payments.","")) -> Please confirm you are not a hospital-based provider. | V62: =IF(T62<>"","x","") -> x
A69: Step 4: | B69: Enter your facility's Rendering Medicaid ID and National Provider ID (NPI) and enter the name of the facility. | D69: Medicaid ID | F69: NPI | I69: Medicaid Provider Name of Facility | T69: =IF(OR(D70="",F70="",I70=""),"You must complete Step 4.","") -> You must complete Step 4. | V69: x
A73: Step 5: | B73: Enter the number of locations for which you are reporting your Encounter Volume. | T73: =IF(Q73="","You must enter the number of locations you are reporting.","") -> You must enter the number of locations you are reporting. | U73: =Q73 -> 0 | V73: =IF(T73<>"","x","") -> x
B75: Enter the reporting location(s) address information. | D75: Street Address | I75: City | M75: State | O75: Zip Code | Q75: Rendering Medicaid ID
B76: Location 1 | T76: =IF(OR(U78="x",U76="x",U80="x",U82="x",U84="x"),"Enter address information for all locations.","") ->  | U76: =IF($U$73=1,IF(AND(D76<>"",I76<>"",M76<>"",O76<>"",Q76<>""),"","x"),"") -> 
B78: Location 2 | U78: =IF($U$73=2,IF(AND(D76<>"",I76<>"",M76<>"",O76<>"",Q76<>"",D78<>"",I78<>"",M78<>"",O78<>"",Q78<>""),"","x"),"") -> 
B80: Location 3 | U80: =IF($U$73=3,IF(AND(D76<>"",I76<>"",M76<>"",O76<>"",Q76<>"",D78<>"",I78<>"",M78<>"",O78<>"",Q78<>"",D80<>"",I80<>"",M80<>"",O80<>"",Q80<>""),"","x"),"") -> 
B82: Location 4 | U82: =IF($U$73=4,IF(AND(D76<>"",I76<>"",M76<>"",O76<>"",Q76<>"",D78<>"",I78<>"",M78<>"",O78<>"",Q78<>"",D80<>"",I80<>"",M80<>"",O80<>"",Q80<>"",D82<>"",I82<>"",M82<>"",O82<>"",Q82<>""),"","x"),"") -> 
B84: Location 5 | U84: =IF($U$73=5,IF(AND(D76<>"",I76<>"",M76<>"",O76<>"",Q76<>"",D78<>"",I78<>"",M78<>"",O78<>"",Q78<>"",D80<>"",I80<>"",M80<>"",O80<>"",Q80<>"",D82<>"",I82<>"",M82<>"",O82<>"",Q82<>"",D84<>"",I84<>"",M84<>"",O84<>"",Q84<>""),"","x"),"") -> 
A88: "Needy Individual" Encounter Volume:
A89: “Needy Individual” encounter volume is comprised of claims from in-state and out-of-state Medicaid, CMO, and CHIP payor sources, individuals who were furnished uncompensated care or for those individuals who are furnished services at either no cost or reduced cost based on a sliding scale determined by the individual's ability to pay. Enter your needy individual encounter volume below in steps 6 through 8.
A93: Step 6: | B93: Enter your In-State Medicaid and CHIP Encounter Volume | D93: •One Encounter is defined as services rendered on any one day to an individual. Count all Needy Individual encounters during the 90-day period.
D95: For Obstetricians, patient volume should include each individual patient encounter that occurred during the specified 90-day period when those services were paid under global codes, regardless of the date of payment.
G99: Location 1 | I99: Location 2 | K99: Location 3 | M99: Location 4 | O99: Location 5
B100: Fee-for-Service Medicaid and CHIP Encounter Volume | T100: =IF(OR(U100="x",U101="x",U102="x",U103="x",U104="x",U105="x",U107="x"),"You must complete Step 6. If you have no enounter volume, enter zero.","") ->  | U100: =IF(U73=1,IF(AND(G100<>"",G105<>"",G106<>"",G107<>"",G108<>""),"","x"),"") -> 
U101: =IF(U73=2,IF(AND(G100<>"",G105<>"",G106<>"",G107<>"",G108<>"",I100<>"",I105<>"",I106<>"",I107<>"",I108<>""),"","x"),"") -> 
B102: Total Fee-for-Service Medicaid and CHIP Encounter Volume | Q102: =SUM(G100:O100) -> 0 | U102: =IF(U73=3,IF(AND(G100<>"",G105<>"",G106<>"",G107<>"",G108<>"",I100<>"",I105<>"",I106<>"",I107<>"",I108<>"",K100<>"",K105<>"",K106<>"",K107<>"",K108<>""),"","x"),"") -> 
U103: =IF(U73=4,IF(AND(G100<>"",G105<>"",G106<>"",G107<>"",G108<>"",I100<>"",I105<>"",I106<>"",I107<>"",I108<>"",K100<>"",K105<>"",K106<>"",K107<>"",K108<>"",M100<>"",M105<>"",M106<>"",M107<>"",M108<>""),"","x"),"") -> 
B104: Care Management Organization (CMO) Medicaid and CHIP Encounter Volume | G104: Location 1 | I104: Location 2 | K104: Location 3 | M104: Location 4 | O104: Location 5 | U104: =IF(U73=5,IF(AND(G100<>"",G105<>"",G106<>"",G107<>"",G108<>"",I100<>"",I105<>"",I106<>"",I107<>"",I108<>"",K100<>"",K105<>"",K106<>"",K107<>"",K108<>"",M100<>"",M105<>"",M106<>"",M107<>"",M108<>"",O100<>"",O105<>"",O106<>"",O107<>"",O108<>""),"","x"),"") -> 
B105: Amerigroup Community Care
B106: CareSource
B107: Peach State Health Plan
B108: Wellcare Health Plans, Inc.
B110: Total Care Management Organization Encounter Volume | G110: =SUM(G105:G108) -> 0 | I110: =SUM(I105:I108) -> 0 | K110: =SUM(K105:K108) -> 0 | M110: =SUM(M105:M108) -> 0 | O110: =SUM(O105:O108) -> 0 | Q110: =SUM(G110:O110) -> 0
A113: Total In-State Medicaid and CHIP Encounter Volumes | G113: =G100+G110 -> 0 | I113: =I100+I110 -> 0 | K113: =K100+K110 -> 0 | M113: =M100+M110 -> 0 | O113: =O100+O110 -> 0 | Q113: =Q102+Q110 -> 0
A116: Step 7: | B116: Enter your Out-of-State Medicaid and CHIP Encounter Volumes | T116: =IF(OR(U124="x",U125="x",U126="x",U127="x",U128="x",U129="x"),"You must complete Step 7. If you have no encounter volume, select N/A as the data source.","") -> You must complete Step 7. If you have no encounter volume, select N/A as the data source. | V116: x
V117: =IF(T117<>"","x","") -> 
B118: Note 1: Out-of-State encounter volume includes claims that were paid by a border State's (i.e. a state contiguous to Georgia) Medicaid program to an Eligible Professional for encounters which occurred at the Eligible Professional's practice location(s).
B120: Does the provider/practice need to include Out-of-State Medicaid volume in the numerator in order to meet the patient volume eligibility requirements? | U120: =IF(D120="","x","") -> x | V120: =IF(U120<>"","x","") -> x
D123: State Name | G123: Location 1 | I123: Location 2 | K123: Location 3 | M123: Location 4 | O123: Location 5
B124: Out-of-State Medicaid and CHIP Encounter Volumes | T124: =IF(OR(U124="x",U125="x",U126="x",U127="x",U128="x"),"You have entered Out-of-State Medicaid Encounter Volume. You must enter the corresponding State Name.","") ->  | U124: =IF(OR((AND(G124<>"",D124="")),(AND(G125<>"",D125="")),(AND(G126<>"",D126="")),(AND(G127<>"",D127="")),(AND(G128<>"",D128="")),(AND(G129<>"",D129="")),(AND(G130<>"",D130=""))),"x","") -> 
U125: =IF(OR((AND(I124<>"",D124="")),(AND(I125<>"",D125="")),(AND(I126<>"",D126="")),(AND(I127<>"",D127="")),(AND(I128<>"",D128="")),(AND(I129<>"",D129="")),(AND(I130<>"",D130=""))),"x","") -> 
U126: =IF(OR((AND(K124<>"",D124="")),(AND(K125<>"",D125="")),(AND(K126<>"",D126="")),(AND(K127<>"",D127="")),(AND(K128<>"",D128="")),(AND(K129<>"",D129="")),(AND(K130<>"",D130=""))),"x","") -> 
U127: =IF(OR((AND(M124<>"",D124="")),(AND(M125<>"",D125="")),(AND(M126<>"",D126="")),(AND(M127<>"",D127="")),(AND(M128<>"",D128="")),(AND(M129<>"",D129="")),(AND(M130<>"",D130=""))),"x","") -> 
U128: =IF(OR((AND(O124<>"",D124="")),(AND(O125<>"",D125="")),(AND(O126<>"",D126="")),(AND(O127<>"",D127="")),(AND(O128<>"",D128="")),(AND(O129<>"",D129="")),(AND(O130<>"",D130=""))),"x","") -> 
U129: =IF(D134="","x","") -> x
A132: Total Out-of-State Medicaid and CHIP Encounter Volumes | G132: =SUM(G124:G130) -> 0 | I132: =SUM(I124:I130) -> 0 | K132: =SUM(K124:K130) -> 0 | M132: =SUM(M124:M130) -> 0 | O132: =SUM(O124:O130) -> 0 | Q132: =SUM(G132:O132) -> 0
D133: Data Source
B134: Please specify the data source used to determine Out-of-State Medicaid and CHIP Encounter Volumes. The data source must be identifiable and auditable. | T134: =IF(OR(U129="x",U137="x"),"Enter Data Source. Only select N/A, if no out-of-state volume.","") -> Enter Data Source. Only select N/A, if no out-of-state volume. | V134: x
D136: If Other, specify data source not listed above.
U137: =IF(AND(D134="Other",D137=""),"x","") -> 
A141: Other Needy In-State and Out-of-State Individual Encounter Volume
A143: Step 8: | B143: Enter your Encounter Volume for those individuals who were furnished uncompensated care or for those individuals who are furnished services at either no cost or reduced cost based on a sliding scale determined by the individual's ability to pay. | G143: Location 1 | I143: Location 2 | K143: Location 3 | M143: Location 4 | O143: Location 5 | T143: =IF(OR(U143="x",U144="x",U145="x",U147="x",U148="x"),"You must complete Step 8. If you have no encounter volume, enter zero.","") -> You must complete Step 8. If you have no encounter volume, enter zero. | U143: =IF(G144="","x","") -> x | V143: x
Q144: =SUM(G144:O144) -> 0 | U144: =IF(U73=2,IF(AND(G144<>"",I144<>""),"","x"),"") -> 
U145: =IF(U73=3,IF(AND(G144<>"",I144<>"",K144<>""),"","x"),"") -> 
A147: Total Needy Individual Encounter Volume | G147: =IF($D$120="No",G113+G144,G113+G132+G144) -> 0 | I147: =IF($D$120="No",I113+I144,I113+I132+I144) -> 0 | K147: =IF($D$120="No",K113+K144,K113+K132+K144) -> 0 | M147: =IF($D$120="No",M113+M144,M113+M132+M144) -> 0 | O147: =IF($D$120="No",O113+O144,O113+O132+O144) -> 0 | Q147: =SUM(G147:O147) -> 0 | U147: =IF(U73=4,IF(AND(G144<>"",I144<>"",K144<>"",M144<>""),"","x"),"") -> 
A148: =IF(AND(D120="No",G132<>""),"The Out-of-State Medicaid encounter volume will only be included in the denominator of the patient volume calculator.","") ->  | U148: =IF(U73=5,IF(AND(G144<>"",I144<>"",K144<>"",M144<>"",O144<>""),"","x"),"") -> 
G151: Location 1 | I151: Location 2 | K151: Location 3 | M151: Location 4 | O151: Location 5 | U151: =IF(G152="","x","") -> x
A152: Step 9: | B152: Enter your Non-Needy Individual Encounter Volume | D152: Medicare | T152: =IF(OR(U151="x",U152="x",U153="x",U154="x",U155="x",U156="x",U157="x"),"You must complete Step 9.","") -> You must complete Step 9. | U152: =IF(U73=1,IF(AND(G152<>"",G153<>"",G154<>"",G157<>""),"","x"),"") ->  | V152: x
D153: Private Insurance | U153: =IF(U73=2,IF(AND(G152<>"",G153<>"",G154<>"",G157<>"",I152<>"",I153<>"",I154<>"",I157<>""),"","x"),"") -> 
D154: Other (i.e. cash) | U154: =IF(U73=3,IF(AND(G152<>"",G153<>"",G154<>"",G157<>"",I152<>"",I153<>"",I154<>"",I157<>"",K152<>"",K153<>"",K154<>"",K157<>""),"","x"),"") -> 
U155: =IF(U73=4,IF(AND(G152<>"",G153<>"",G154<>"",G157<>"",I152<>"",I153<>"",I154<>"",I157<>"",K152<>"",K153<>"",K154<>"",K157<>"",M152<>"",M153<>"",M154<>"",M157<>""),"","x"),"") -> 
D157: Out-of-State Non-Medicaid Encounter Volume
A160: Total Non-Needy Individual Encounter Volume | G160: =SUM(G152:G154)+G157 -> 0 | I160: =SUM(I152:I154)+I157 -> 0 | K160: =SUM(K152:K154)+K157 -> 0 | M160: =SUM(M152:M154)+M157 -> 0 | O160: =SUM(O152:O154)+O157 -> 0 | Q160: =SUM(G160:O160) -> 0
U163: =IF(U73=1,IF(AND(I165=0,K165=0,M165=0,O165=0),"","x"),"") -> 
A164: Total Encounter Volume | G164: Location 1 | I164: Location 2 | K164: Location 3 | M164: Location 4 | O164: Location 5 | U164: =IF(U73=2,IF(AND(K165=0,M165=0,O165=0),"","x"),"") -> 
B165: • This amount is the sum of the In-State and Out-of-State Medicaid and CHIP Encounter Volume plus Other Needy Individual Encounter Volume plus Non-Needy Individual Encounter Volume. | G165: =G160+G132+G144+G113 -> 0 | I165: =I160+I132+I144+I113 -> 0 | K165: =K160+K132+K144+K113 -> 0 | M165: =M160+M132+M144+M113 -> 0 | O165: =O160+O132+O144+O113 -> 0 | Q165: =Q113+Q132+Q144+Q160 -> 0 | U165: =IF(U73=3,IF(AND(M165=0,O165=0),"","x"),"") -> 
U166: =IF(U73=4,IF(O165=0,"","x"),"") -> 
B169: Summary: | U169: =COUNTIF(V:V,"x") -> 11
B170: In-State Medicaid and CHIP Encounter Volume | D170: =Q113 -> 0 | G170: =IF(OR(U163="x",U164="x",U165="x",U166="x"),"Error! You have entered encounter volume for more locations than indicated in Step 5. Please correct your calculation!","") ->  | V170: =IF(G170<>"","x","") -> 
I171: =IF($Q$62="Yes","Hospital-Based Eligible Professionals are NOT eligible to receive EHR Medicaid Incentive payments.","") -> 
B172: Out-of-State Medicaid and CHIP Encounter Volume | D172: =Q132 -> 0 | E172: =IF(AND(D120="No",Q132<>""),"The Out-of-State Medicaid encounter volume will only be included in the denominator of the patient volume calculator.","") -> 
B174: Individuals Furnished Uncompensated Care or Services at Either No Cost or Reduced Cost Encounter Volume | D174: =Q144 -> 0
I175: =IF(OR(AND($Q$49="Pediatrician",F189>=19.4444444444445),AND($Q$49<>"Pediatrician",$F$189>=29.4444444444445)),"This Percentage Does Meet the Medicaid EHR Incentive Program Patient Volume Requirement","This Percentage Does NOT Meet the Medicaid EHR Incentive Program Patient Volume Requirement") -> This Percentage Does NOT Meet the Medicaid EHR Incentive Program Patient Volume Requirement
B176: Total Needy Individual Encounter Volume | D176: =Q147 -> 0
B178: Total Encounter Volume | D178: =Q165 -> 0
D179: =IF(F189>100.000000000001,"Error, Cannot be higher than 100%, please recalculate","") -> 
B181: Patient Volume Calculation: | I181: =IF(U169<>0,"Review Column T for error messages. You must resolve all calculator errors above.","") -> Review Column T for error messages. You must resolve all calculator errors above.
B182: Total Needy Individual Encounter Volume (Numerator) | D182: =D176 -> 0
B184: Total Encounter Volume (Denominator) | D184: =D178 -> 0
A189: Medicaid Patient Volume: | F189: =IF(D184=0,0,(((D182)/D184)*100)) -> 0 | G189: % | I189: 1
A192: 1 The Medicaid Patient Volume calculation is rounded up or down to the nearest whole number. Amounts less than .5 are rounded down; amounts equal to or greater than .5 are rounded up.
B195: When applying to the Georgia Medicaid Incentive Payment Program, the information below should be entered as the patient volume information in the state of Georgia's Medical Assistance Provider Incentive Repository (MAPIR) System:
C197: Medicaid & CHIP Encounter Volume2 (Numerator) | F197: "Other Needy Individual" Encounter Volume3 (Numerator) | H197: Total Needy Encounter Volume4 (Total Numerator) | L197: Total Encounter Volume5 (Denominator) | S197: * The calculator must be uploaded to MAPIR in a PDF format until MAPIR has the capability to accept spreadsheets. Once MAPIR has the capability to accept spreadsheets, the calculator must be uploaded as a spreadsheet. See the instructions on the Instructions tab to properly create a PDF to upload into MAPIR.
B199: Location 1 | C199: =G113 -> 0 | F199: =G144 -> 0 | H199: =G147 -> 0 | L199: =G165 -> 0
B202: Location 2 | C202: =I113 -> 0 | F202: =I144 -> 0 | H202: =I147 -> 0 | L202: =I165 -> 0
B205: Location 3 | C205: =K113 -> 0 | F205: =K144 -> 0 | H205: =K147 -> 0 | L205: =K165 -> 0
B208: Location 4 | C208: =M113 -> 0 | F208: =M144 -> 0 | H208: =M147 -> 0 | L208: =M165 -> 0
B211: Location 5 | C211: =O113 -> 0 | F211: =O144 -> 0 | H211: =O147 -> 0 | L211: =O165 -> 0
A217: 2 The Medicaid & CHIP Encounter Volume is the sum of the "Needy Individual" Encounter Volume, which is the Medicaid, Medicaid CMO, and CHIP Encounter Volume.
A219: 3 The "Other Needy Individual" Encounter Volume represents encounters for individuals furnished uncompensated care or for individuals furnished services at either no cost or reduced cost based on a sliding scale.
A221: 4The Total Needy Encounter Volume is the sum of the "Needy Individual" and "Other needy Individual" Encounter Volume.
A223: 5 The Total Encounter Volume is the sum of all patient encounters from all payor sources.

Sheet Example -FQHC_RHC Individual (hidden)
A1: Georgia Department of Community Health
A2: Office of Information Technology
A3: Health Information Technology (HIT) Unit
A4: Medicaid Promoting Interoperability (PI) program (formerly EHR Incentive Program) for Meaningful Use
A5: Program Year 2018
A7: Calculation: FQHC/RHC - Individual Encounter Volume
A9: Contact Information: (This information populates from the information entered on the Contact Information tab.)
A10: Eligible Professional National Provider ID (NPI): | D10: 1111111111
A11: Eligible Professional Rendering Medicaid ID: | D11: 000000001A | T11: =IF(OR(D10="Please enter your NPI.",D11="Please enter your Rendering Medicaid ID.",D12="Please enter your Eligible Professional Name",D13="Please enter the name of the person completing this workbook.",D14="Please enter the phone number of the person completing this workbook.",D15="Please enter the email address of the person completing this workbook",D16="Please enter the date this workbook was completed."),"Please complete the Contact Information tab of this workbook.","") ->  | V11: =IF(T11<>"","x","") -> 
A12: Eligible Professional Name: | D12: Provider A
A13: Contact Person Completing This Workbook | D13: Susie Smith
A14: Contact Person Phone Number | D14: 555-555-5555
A15: Contact Person Email Address | D15: smith@aol.com
A16: Date Completed: | D16: 2018-01-20
A18: Eligible Professional Patient Volume Calculation Template
A20: Purple Shaded Cells Represent Data Entry | D20: For detailed information to assist in completing the Eligible Professional Patient Volume Calculation, see the Background Information tab.
D21: Background Information
A22: Instructions
A23: Step 1A: | B23: Enter the patient volume methodology being used for the 90-day period. | D23: * Medicaid patient volume can be calculated using one of the two following methods: | Q23: Prior Calendar Year | T23: =IF(Q23="","Select a patient volume methodology.","") ->  | V23: =IF(T23<>"","x","") -> 
D25: 1) Patient volume can be determined using a consecutive 90-day period within the prior calendar year 2017 (01/01/2017-12/31/2017);
D27: OR
D29: 2) Patient volume can be determined across a consecutive 90-day period in the last 12 months preceding the provider's attestation.
Q30: Start 90-day period | S30: End 90-day period | T30: Option 1: Calendar Year - Program Year 2018 Calculations, the 90 days starting date must fall on or after January 1, 2017.
A31: Step 1B: | B31: Enter the beginning date (mm/dd/yyyy) of a continuous 90-day period for your Medicaid Encounter Volume. | D31: (Note the 90-day period must be entirely in the previous calendar year and cannot overlap into the current year. The Medicaid encounter volume should include encounters with dates of service during the 90-day period.) | Q31: 2017-03-01 | S31: =IF(Q31>0,Q31+89,"") -> 2017-05-29
T34: =IF(AND(Q23="Prior Calendar Year",Q31=""),"Please select a 90-day period.","") ->  | V34: =IF(T34<>"","x","") -> 
A35: Step 1C: | B35: Enter the date of attestation. | D35: * This is the date the provider intends to electronically certify that the information entered on this calculator and any uploaded supporting documentation is true, accurate, and complete.
T36: =IF(AND(Q23="Recent 12 Months",Q36=""),"Please enter the date of attestation.","") ->  | V36: =IF(T36<>"","x","") -> 
Q38: Start 90-day period | S38: End 90-day period | T38: Option 2: The 90 days starting date must fall on or after 12 months prior to the date of attestation.
A39: Step 1D: | B39: Enter the beginning date (mm/dd/yyyy) of a continuous 90-day period for your Medicaid Encounter Volume. | D39: (Note the 90-day period must be during the 12 months preceding the date of attestation (Step 1C). | S39: =IF(Q39>0,Q39+89,"") -> 
D40: Earliest Start Date of 90-day period: | G40: =IF(Q23<>"Recent 12 Months","",IFERROR(EDATE(Q36,-12)-1,"")) -> 
D41: Latest Start Date of 90-day period: | G41: =IF(Q23<>"Recent 12 Months","",IF(Q36="","",Q36-89)) -> 
T42: =IF(AND(Q23="Most Recent 12 Months",Q39=""),"Please select your 90-day period.","") ->  | V42: =IF(T42<>"","x","") -> 
A45: Step 1E: | B45: Please select your payment year. | D45: Example: If this is the first year you will receive an incentive payment then select "1st Payment". If you have already received an incentive payment and this is the second year you will receive an incentive payment then select "2nd Payment ". | Q45: 1st Payment | T45: =IF(Q45="","Please select your payment year.","") -> 
A49: Step 2: | B49: Please select your provider type: | D49: =IF(OR(Q49="Obstetrician",Q49="Certified Nurse-Midwife"),"For Obstetricians or CNMs, include all encounters for the 90-day period that are associated with a global code.","") ->  | Q49: Physician | T49: =IF(Q49="","Please select a provider type.","") -> 
B50: Certified Nurse-Midwife
B51: Dentist
B52: Nurse Practitioner
B53: Obstetrician
B54: Pediatrician
B55: Physician
B56: Physician Assistant
B57: A) Primary provider in a clinic (for example, when there is a part-time physician and full-time PA, then DCH would consider the PA as the primary provider);
B58: B) Clinical or medical director at a clinical site of practice
B59: C) Owner of the RHC
A62: Step 3: | B62: Are your services performed predominantly in a hospital? | D62: An eligible professional is considered hospital-based if 90% or more of his or her services are performed in a hospital inpatient (Place Of Service code 21) or emergency room (Place Of Service code 23) setting. | Q62: No | T62: =IF(Q62="","Please confirm you are not a hospital-based provider.",IF($Q$62="Yes","Hospital-Based Eligible Professionals are NOT eligible to receive EHR Medicaid Incentive payments.","")) ->  | V62: =IF(T62<>"","x","") -> 
A69: Step 4: | B69: Enter your facility's Rendering Medicaid ID and National Provider ID (NPI) and enter the name of the facility. | D69: Medicaid ID | F69: NPI | I69: Medicaid Provider Name of Facility | T69: =IF(OR(D70="",F70="",I70=""),"You must complete Step 4.","") -> 
D70: 000000001A | F70: 1111111111 | I70: Provider A
A73: Step 5: | B73: Enter the number of locations for which you are reporting your Encounter Volume. | Q73: 2 | T73: =IF(Q73="","You must enter the number of locations you are reporting.","") ->  | U73: =Q73 -> 2 | V73: =IF(T73<>"","x","") -> 
B75: Enter the reporting location(s) address information. | D75: Street Address | I75: City | M75: State | O75: Zip Code | Q75: Rendering Medicaid ID
B76: Location 1 | D76: 1 Street | I76: Atlanta | M76: GA | O76: 30303 | Q76: 000000001A, B | T76: =IF(OR(U78="x",U76="x",U80="x",U82="x",U84="x"),"Enter address information for all locations.","") ->  | U76: =IF($U$73=1,IF(AND(D76<>"",I76<>"",M76<>"",O76<>"",Q76<>""),"","x"),"") -> 
B78: Location 2 | D78: 2 Street | I78: Macon | M78: GA | O78: 30265 | Q78: 0000000001D | U78: =IF($U$73=2,IF(AND(D76<>"",I76<>"",M76<>"",O76<>"",Q76<>"",D78<>"",I78<>"",M78<>"",O78<>"",Q78<>""),"","x"),"") -> 
B80: Location 3 | U80: =IF($U$73=3,IF(AND(D76<>"",I76<>"",M76<>"",O76<>"",Q76<>"",D78<>"",I78<>"",M78<>"",O78<>"",Q78<>"",D80<>"",I80<>"",M80<>"",O80<>"",Q80<>""),"","x"),"") -> 
B82: Location 4 | U82: =IF($U$73=4,IF(AND(D76<>"",I76<>"",M76<>"",O76<>"",Q76<>"",D78<>"",I78<>"",M78<>"",O78<>"",Q78<>"",D80<>"",I80<>"",M80<>"",O80<>"",Q80<>"",D82<>"",I82<>"",M82<>"",O82<>"",Q82<>""),"","x"),"") -> 
B84: Location 5 | U84: =IF($U$73=5,IF(AND(D76<>"",I76<>"",M76<>"",O76<>"",Q76<>"",D78<>"",I78<>"",M78<>"",O78<>"",Q78<>"",D80<>"",I80<>"",M80<>"",O80<>"",Q80<>"",D82<>"",I82<>"",M82<>"",O82<>"",Q82<>"",D84<>"",I84<>"",M84<>"",O84<>"",Q84<>""),"","x"),"") -> 
A88: "Needy Individual" Encounter Volume:
A89: “Needy Individual” encounter volume is comprised of claims from in-state and out-of-state Medicaid, CMO, and CHIP payor sources, individuals who were furnished uncompensated care or for those individuals who are furnished services at either no cost or reduced cost based on a sliding scale determined by the individual's ability to pay. Enter your needy individual encounter volume below in steps 6 through 8.
A93: Step 6: | B93: Enter your In-State Medicaid and CHIP Encounter Volume | D93: •One Encounter is defined as services rendered on any one day to an individual. Count all Needy Individual encounters during the 90-day period.
D95: For Obstetricians, patient volume should include each individual patient encounter that occurred during the specified 90-day period when those services were paid under global codes, regardless of the date of payment.
G99: Location 1 | I99: Location 2 | K99: Location 3 | M99: Location 4 | O99: Location 5
B100: Fee-for-Service Medicaid and CHIP Encounter Volume | G100: 100 | I100: 200 | T100: =IF(OR(U100="x",U101="x",U102="x",U103="x",U104="x",U105="x",U107="x"),"You must complete Step 6. If you have no enounter volume, enter zero.","") ->  | U100: =IF(U73=1,IF(AND(G100<>"",G105<>"",G107<>"",G108<>""),"","x"),"") -> 
U101: =IF(U73=2,IF(AND(G100<>"",G105<>"",G107<>"",G108<>"",I100<>"",I105<>"",I107<>"",I108<>""),"","x"),"") -> 
B102: Total Fee-for-Service Medicaid and CHIP Encounter Volume | Q102: =SUM(G100:O100) -> 300 | U102: =IF(U73=3,IF(AND(G100<>"",G105<>"",G107<>"",G108<>"",I100<>"",I105<>"",I107<>"",I108<>"",K100<>"",K105<>"",K107<>"",K108<>""),"","x"),"") -> 
U103: =IF(U73=4,IF(AND(G100<>"",G105<>"",G107<>"",G108<>"",I100<>"",I105<>"",I107<>"",I108<>"",K100<>"",K105<>"",K107<>"",K108<>"",M100<>"",M105<>"",M107<>"",M108<>""),"","x"),"") -> 
B104: Care Management Organization (CMO) Medicaid and CHIP Encounter Volume | U104: =IF(U73=5,IF(AND(G100<>"",G105<>"",G107<>"",G108<>"",I100<>"",I105<>"",I107<>"",I108<>"",K100<>"",K105<>"",K107<>"",K108<>"",M100<>"",M105<>"",M107<>"",M108<>"",O100<>"",O105<>"",O107<>"",O108<>""),"","x"),"") -> 
B105: Amerigroup Community Care | G105: 200 | I105: 0
B106: CareSource | G106: 100 | I106: 15
B107: Peach State Health Plan | G107: 0 | I107: 200
B108: Wellcare Health Plans, Inc. | G108: 0 | I108: 0
B110: Total Care Management Organization Encounter Volume | G110: =SUM(G105:G108) -> 300 | I110: =SUM(I105:I108) -> 215 | K110: =SUM(K105:K108) -> 0 | M110: =SUM(M105:M108) -> 0 | O110: =SUM(O105:O108) -> 0 | Q110: =SUM(G110:O110) -> 515
A113: Total In-State Medicaid and CHIP Encounter Volumes | G113: =G100+G110 -> 400 | I113: =I100+I110 -> 415 | K113: =K100+K110 -> 0 | M113: =M100+M110 -> 0 | O113: =O100+O110 -> 0 | Q113: =Q102+Q110 -> 815
A116: Step 7: | B116: Enter your Out-of-State Medicaid and CHIP Encounter Volumes | T116: =IF(OR(U124="x",U125="x",U126="x",U127="x",U128="x",U129="x"),"You must complete Step 7. If you have no encounter volume, select N/A as the data source.","") -> 
B118: Note 1: Out-of-State encounter volume includes claims that were paid by a border State's (i.e. a state contiguous to Georgia) Medicaid program to an Eligible Professional for encounters which occurred at the Eligible Professional's practice location(s).
B120: Does the provider/practice need to include Out-of-State Medicaid volume in the numerator in order to meet the patient volume eligibility requirements? | D120: No | U120: =IF(D120="","x","") ->  | V120: =IF(U120<>"","x","") -> 
D123: State Name | G123: Location 1 | I123: Location 2 | K123: Location 3 | M123: Location 4 | O123: Location 5
B124: Out-of-State Medicaid and CHIP Encounter Volumes | D124: South Carolina | I124: 300 | T124: =IF(OR(U124="x",U125="x",U126="x",U127="x",U128="x"),"You have entered Out-of-State Medicaid Encounter Volume. You must enter the corresponding State Name.","") ->  | U124: =IF(OR((AND(G124<>"",D124="")),(AND(G125<>"",D125="")),(AND(G126<>"",D126="")),(AND(G127<>"",D127="")),(AND(G128<>"",D128="")),(AND(G129<>"",D129="")),(AND(G130<>"",D130=""))),"x","") -> 
U125: =IF(OR((AND(I124<>"",D124="")),(AND(I125<>"",D125="")),(AND(I126<>"",D126="")),(AND(I127<>"",D127="")),(AND(I128<>"",D128="")),(AND(I129<>"",D129="")),(AND(I130<>"",D130=""))),"x","") -> 
U126: =IF(OR((AND(K124<>"",D124="")),(AND(K125<>"",D125="")),(AND(K126<>"",D126="")),(AND(K127<>"",D127="")),(AND(K128<>"",D128="")),(AND(K129<>"",D129="")),(AND(K130<>"",D130=""))),"x","") -> 
U127: =IF(OR((AND(M124<>"",D124="")),(AND(M125<>"",D125="")),(AND(M126<>"",D126="")),(AND(M127<>"",D127="")),(AND(M128<>"",D128="")),(AND(M129<>"",D129="")),(AND(M130<>"",D130=""))),"x","") ->  | V127: =IF(T127<>"","x","") -> 
U128: =IF(OR((AND(O124<>"",D124="")),(AND(O125<>"",D125="")),(AND(O126<>"",D126="")),(AND(O127<>"",D127="")),(AND(O128<>"",D128="")),(AND(O129<>"",D129="")),(AND(O130<>"",D130=""))),"x","") -> 
U129: =IF(D134="","x","") -> 
A132: Total Out-of-State Medicaid and CHIP Encounter Volumes | G132: =SUM(G124:G130) -> 0 | I132: =SUM(I124:I130) -> 300 | K132: =SUM(K124:K130) -> 0 | M132: =SUM(M124:M130) -> 0 | O132: =SUM(O124:O130) -> 0 | Q132: =SUM(G132:O132) -> 300
D133: Data Source
B134: Please specify the data source used to determine Out-of-State Medicaid and CHIP Encounter Volumes. The data source must be identifiable and auditable. | D134: Cash Receipts journals | T134: =IF(OR(U129="x",U137="x"),"Enter Data Source. Only select N/A, if no out-of-state volume.","") -> 
D136: If Other, specify data source not listed above.
U137: =IF(AND(D134="Other",D137=""),"x","") -> 
A141: Other Needy In-State and Out-of-State Individual Encounter Volume
A143: Step 8: | B143: Enter your Encounter Volume for those individuals who were furnished uncompensated care or for those individuals who are furnished services at either no cost or reduced cost based on a sliding scale determined by the individual's ability to pay. | G143: Location 1 | I143: Location 2 | K143: Location 3 | M143: Location 4 | O143: Location 5 | T143: =IF(OR(U143="x",U144="x",U145="x",U147="x",U148="x"),"You must complete Step 8. If you have no encounter volume, enter zero.","") ->  | U143: =IF(G144="","x","") -> 
G144: 100 | I144: 150 | Q144: =SUM(G144:O144) -> 250 | U144: =IF(U73=2,IF(AND(G144<>"",I144<>""),"","x"),"") -> 
U145: =IF(U73=3,IF(AND(G144<>"",I144<>"",K144<>""),"","x"),"") -> 
A147: Total Needy Individual Encounter Volume | G147: =IF(D120="No",G113+G144,G113+G132+G144) -> 500 | I147: =IF(F120="No",I113+I144,I113+I132+I144) -> 865 | K147: =IF(H120="No",K113+K144,K113+K132+K144) -> 0 | M147: =IF(J120="No",M113+M144,M113+M132+M144) -> 0 | O147: =IF(L120="No",O113+O144,O113+O132+O144) -> 0 | Q147: =SUM(G147:O147) -> 1365 | U147: =IF(U73=4,IF(AND(G144<>"",I144<>"",K144<>"",M144<>""),"","x"),"") -> 
U148: =IF(U73=5,IF(AND(G144<>"",I144<>"",K144<>"",M144<>"",O144<>""),"","x"),"") -> 
G151: Location 1 | I151: Location 2 | K151: Location 3 | M151: Location 4 | O151: Location 5 | U151: =IF(G152="","x","") -> 
A152: Step 9: | B152: Enter your Non-Needy Individual Encounter Volume | D152: Medicare | G152: 200 | I152: 200 | T152: =IF(OR(U151="x",U152="x",U153="x",U154="x",U155="x",U156="x",U157="x"),"You must complete Step 9.","") ->  | U152: =IF(U73=1,IF(AND(G152<>"",G153<>"",G154<>"",G157<>""),"","x"),"") -> 
D153: Private Insurance | G153: 60 | I153: 1000 | U153: =IF(U73=2,IF(AND(G152<>"",G153<>"",G154<>"",G157<>"",I152<>"",I153<>"",I154<>"",I157<>""),"","x"),"") -> 
D154: Other (i.e. cash) | G154: 20 | I154: 10 | U154: =IF(U73=3,IF(AND(G152<>"",G153<>"",G154<>"",G157<>"",I152<>"",I153<>"",I154<>"",I157<>"",K152<>"",K153<>"",K154<>"",K157<>""),"","x"),"") -> 
U155: =IF(U73=4,IF(AND(G152<>"",G153<>"",G154<>"",G157<>"",I152<>"",I153<>"",I154<>"",I157<>"",K152<>"",K153<>"",K154<>"",K157<>"",M152<>"",M153<>"",M154<>"",M157<>""),"","x"),"") -> 
D157: Out-of-State Non-Medicaid Encounter Volume | G157: 0 | I157: 200
A160: Total Non-Needy Individual Encounter Volume | G160: =SUM(G152:G154)+G157 -> 280 | I160: =SUM(I152:I154)+I157 -> 1410 | K160: =SUM(K152:K154)+K157 -> 0 | M160: =SUM(M152:M154)+M157 -> 0 | O160: =SUM(O152:O154)+O157 -> 0 | Q160: =SUM(G160:O160) -> 1690
U163: =IF(U73=1,IF(AND(I165=0,K165=0,M165=0,O165=0),"","x"),"") -> 
A164: Total Encounter Volume | G164: Location 1 | I164: Location 2 | K164: Location 3 | M164: Location 4 | O164: Location 5 | U164: =IF(U73=2,IF(AND(K165=0,M165=0,O165=0),"","x"),"") -> 
B165: • This amount is the sum of the In-State and Out-of-State Medicaid and CHIP Encounter Volume plus Other Needy Individual Encounter Volume plus Non-Needy Individual Encounter Volume. | G165: =G113+G132+G144+G160 -> 780 | I165: =I113+I132+I144+I160 -> 2275 | K165: =K113+K132+K144+K160 -> 0 | M165: =M113+M132+M144+M160 -> 0 | O165: =O113+O132+O144+O160 -> 0 | Q165: =Q113+Q132+Q144+Q160 -> 3055 | U165: =IF(U73=3,IF(AND(M165=0,O165=0),"","x"),"") -> 
U166: =IF(U73=4,IF(O165=0,"","x"),"") -> 
B169: Summary: | U169: =COUNTIF(V:V,"x") -> 0
B170: In-State Medicaid and CHIP Encounter Volume | D170: =Q113 -> 815 | G170: =IF(OR(U163="x",U164="x",U165="x",U166="x"),"Error! You have entered encounter volume for more locations than indicated in Step 5. Please correct your calculation!","") ->  | V170: =IF(G170<>"","x","") -> 
I171: =IF($Q$62="Yes","Hospital-Based Eligible Professionals are NOT eligible to receive EHR Medicaid Incentive payments.","") -> 
B172: Out-of-State Medicaid and CHIP Encounter Volume | D172: =Q132 -> 300
B174: Individuals Furnished Uncompensated Care or Services at Either No Cost or Reduced Cost Encounter Volume | D174: =Q144 -> 250
I175: =IF(OR(AND($Q$49="Pediatrician",F189>=19.4444444444445),AND($Q$49<>"Pediatrician",$F$189>=29.4444444444445)),"This Percentage Does Meet the Medicaid EHR Incentive Program Patient Volume Requirement","This Percentage Does NOT Meet the Medicaid EHR Incentive Program Patient Volume Requirement") -> This Percentage Does Meet the Medicaid EHR Incentive Program Patient Volume Requirement
B176: Total Needy Individual Encounter Volume | D176: =Q147 -> 1365
B178: Total Encounter Volume | D178: =Q165 -> 3055
D179: =IF(F189>100.000000000001,"Error, Cannot be higher than 100%, please recalculate","") -> 
B181: Patient Volume Calculation: | I181: =IF(U169<>0,"Review Column T for error messages. You must resolve all calculator errors above.","") -> 
B182: Total Needy Individual Encounter Volume (Numerator) | D182: =D176 -> 1365
B184: Total Encounter Volume (Denominator) | D184: =D178 -> 3055
A189: Medicaid Patient Volume: | F189: =IF(D184=0,0,(((D182)/D184)*100)) -> 44.68085106 | G189: % | I189: 1
A192: 1 The Medicaid Patient Volume calculation is rounded up or down to the nearest whole number. Amounts less than .5 are rounded down; amounts equal to or greater than .5 are rounded up.
B195: When applying to the Georgia Medicaid Incentive Payment Program, the information below should be entered as the patient volume information in the state of Georgia's Medical Assistance Provider Incentive Repository (MAPIR) System:
C197: Medicaid & CHIP Encounter Volume2 (Numerator) | F197: "Other Needy Individual" Encounter Volume3 (Numerator) | H197: Total Needy Encounter Volume4 (Total Numerator) | L197: Total Encounter Volume5 (Denominator) | S197: * The calculator must be uploaded to MAPIR in a PDF format until MAPIR has the capability to accept spreadsheets. Once MAPIR has the capability to accept spreadsheets, the calculator must be uploaded as a spreadsheet. See the instructions on the Instructions tab to properly create a PDF to upload into MAPIR.
B199: Location 1 | C199: =G113 -> 400 | F199: =G144 -> 100 | H199: =G147 -> 500 | L199: =G165 -> 780
B202: Location 2 | C202: =I113 -> 415 | F202: =I144 -> 150 | H202: =I147 -> 865 | L202: =I165 -> 2275
B205: Location 3 | C205: =K113 -> 0 | F205: =K144 -> 0 | H205: =K147 -> 0 | L205: =K165 -> 0
B208: Location 4 | C208: =M113 -> 0 | F208: =M144 -> 0 | H208: =M147 -> 0 | L208: =M165 -> 0
B211: Location 5 | C211: =O113 -> 0 | F211: =O144 -> 0 | H211: =O147 -> 0 | L211: =O165 -> 0
A217: 2 The Medicaid & CHIP Encounter Volume is the sum of the "Needy Individual" Encounter Volume, which is the Medicaid, Medicaid CMO, and CHIP Encounter Volume.
A219: 3 The "Other Needy Individual" Encounter Volume represents encounters for individuals furnished uncompensated care or for individuals furnished services at either no cost or reduced cost based on a sliding scale.
A221: 4The Total Needy Encounter Volume is the sum of the "Needy Individual" and "Other needy Individual" Encounter Volume.
A223: 5 The Total Encounter Volume is the sum of all patient encounters from all payor sources.

Sheet Calculation - FQHC_RHC Group (hidden)
A1: Georgia Department of Community Health
A2: Office of Information Technology
A3: Health Information Technology (HIT) Unit
A4: Medicaid Promoting Interoperability (PI) program (formerly EHR Incentive Program) for Meaningful Use
A5: Program Year 2018
A7: Calculation: FQHC/RHC - Group Encounter Volume
A9: Contact Information: (This information populates from the information entered on the Contact Information tab.)
A10: Contact Person Completing This Workbook | D10: =_cwb1 -> 0 | Q10: =IF(OR(D10="Please enter the name of the person completing this workbook.",D11="Please enter the phone number of the person completing this workbook.",D12="Please enter the email addresss of the person completing this workbook.",D13="Please enter the date this workbook was completed."),"Please complete the Contact Information tab of this workbook.","") ->  | S10: =IF(Q10<>"","x","") -> 
A11: Contact Person Phone Number | D11: =_cph1 -> 0
A12: Contact Person Email Address | D12: =_cem1 -> 0
A13: Date Completed: | D13: =date1 -> 00:00:00
A15: Eligible Professional Patient Volume Calculation Template
A17: Purple Shaded Cells Represent Data Entry | D17: For detailed information to assist in completing the Eligible Professional Patient Volume Calculation, see the Background Information tab.
D18: Background Information
A19: Instructions
A20: Step 1A: | B20: Enter the patient volume methodology being used for the 90-day period. | D20: * Medicaid patient volume can be calculated using one of the two following methods: | Q20: =IF(N20="","Select a patient volume methodology.","") -> Select a patient volume methodology. | S20: =IF(Q20<>"","x","") -> x
S21: =IF(Q21<>"","x","") -> 
D22: 1) Patient volume can be determined using a consecutive 90-day period within the prior calendar year 2017 (01/01/2017-12/31/2017);
D24: OR
D26: 2) Patient volume can be determined across a consecutive 90-day period in the last 12 months preceding the provider's attestation.
N27: Start 90-day period | P27: End 90-day period | Q27: Option 1: Calendar Year - Program Year 2018 Calculations, the 90 days starting date must fall on or after January 1, 2017.
A28: Step 1B: | B28: Enter the beginning date (mm/dd/yyyy) of a continuous 90-day period for your Medicaid Encounter Volume. | D28: (Note the 90-day period must be entirely in the previous calendar year and cannot overlap into the current year. The Medicaid encounter volume should include encounters with dates of service during the 90-day period.) | P28: =IF(N28>0,N28+89,"") -> 
Q31: =IF(AND(N20="Prior Calendar Year",N28=""),"Please select a 90-day period.","") ->  | S31: =IF(Q31<>"","x","") -> 
A32: Step 1C: | B32: Enter the date of attestation. | D32: * This is the date the provider intends to electronically certify that the information entered on this calculator and any uploaded supporting documentation is true, accurate, and complete.
Q33: =IF(AND(N20="Recent 12 Months",N33=""),"Please enter the date of attestation.","") ->  | S33: =IF(Q33<>"","x","") -> 
N35: Start 90-day period | P35: End 90-day period | Q35: Option 2: The 90 days starting date must fall on or after 12 months prior to the date of attestation.
A36: Step 1D: | B36: Enter the beginning date (mm/dd/yyyy) of a continuous 90-day period for your Medicaid Encounter Volume. | D36: (Note the 90-day period must be during the 12 months preceding the date of attestation (Step 1C). | P36: =IF(N36>0,N36+89,"") -> 
D37: Earliest Start Date of 90-day period: | I37: =IF(N20<>"Recent 12 Months","",IFERROR(EDATE(N33,-12)-1,"")) -> 
D38: Latest Start Date of 90-day period: | I38: =IF(N20<>"Recent 12 Months","",IF(N33="","",N33-89)) -> 
Q39: =IF(AND(N20="Recent 12 Months",N36=""),"Please select your 90-day period.","") ->  | S39: =IF(Q39<>"","x","") -> 
A41: Step 2: | B41: Select all Eligible Professional provider types included in the group encounter volume for whom you are seeking an incentive payment. | S41: =IF(Q41<>"","x","") -> 
B42: Certified Nurse-Midwife | Q42: =IF(COUNTA(C42:C50)<1,"Please select provider types.","") -> Please select provider types. | S42: =IF(Q42<>"","x","") -> x
B43: Dentist | S43: =IF(Q43<>"","x","") -> 
B44: Nurse Practitioner | S44: =IF(Q44<>"","x","") -> 
B45: Obstetrician
B46: Pediatrician | S46: =IF(Q46<>"","x","") -> 
B47: Physician | S47: =IF(Q47<>"","x","") -> 
B48: Physician Assistant - Primary Provider | D48: * Primary provider in a clinic | S48: =IF(Q48<>"","x","") -> 
B49: Physician Assistant - Medical Director | D49: * Clinical or medical director at a clinical site of practice
B50: Physician Assistant - Owner | D50: * Owner of the RHC
S52: =IF(Q52<>"","x","") -> 
A53: Step 3: | B53: An eligible professional is considered hospital-based if 90% or more of his or her services are performed in a hospital inpatient (Place Of Service code 21) or emergency room (Place Of Service code 23) setting. By confirming that Eligible Professionals for whom an incentive payment is sought are not hospital-based, you are attesting that those Eligible Professionals do not perform 90% or more of their services in a hospital setting. Are any of the providers for whom an incentive payment is sought considered hospital-based? | Q53: =IF(N53="","Please confirm no hospital-based group members.",IF(N53="Yes","For any providers in the group for which encounter volume is reported, you must select 'No' when asked if an incentive payment is being requested for those providers.","")) -> Please confirm no hospital-based group members. | S53: =IF(N53="","x","") -> x
S54: =IF(Q54<>"","x","") -> 
A59: Step 4A: | B59: Enter your Medicaid Payee ID or Group NPI for the group practice/clinic. | K59: Please select the ID you will be entering. | Q59: =IF(OR(COUNTIF(R59:R63,"x")>0,D87=""),"Please complete Step 4A.","") -> Please complete Step 4A. | R59: =IF(AND(N59="Medicaid Payee ID",D64=""),"x","") ->  | S59: x
R60: =IF(AND(N59="Group NPI",F64=""),"x","") -> 
D62: Medicaid Payee ID of Group Practice/Clinic
F63: Group NPI | R63: =IF(N59="","x","") -> x
C64: 1. | S64: =IF(Q64<>"","x","") -> 
C65: 2.
C66: 3.
C67: 4.
C68: 5.
C69: 6.
C70: 7.
C71: 8.
C72: 9.
C73: 10.
C74: 11.
C75: 12.
C76: 13.
C77: 14.
C78: 15.
C79: 16.
C80: 17.
C81: 18.
C82: 19.
C83: 20.
S84: =IF(Q84<>"","x","") -> 
D86: Name of Group Practice/Clinic | S86: =IF(Q86<>"","x","") -> 
B87: Enter the name of the group practice/clinic.
R88: =IF(D87="","x","") -> x
A90: Step 4B: | B90: Rendering Medicaid IDs and/or National Provider IDs (NPI) of the group practice/clinic members.
Q91: =IF(R91>0,"Please correct all errors on the Group Members tab.","") ->  | R91: =COUNTIF('FQHC Group Members'!T:T,"x") -> 0
B93: Enter the names of the individuals within the group practice/clinic on the Group Members tab. Select the button to the right to direct you to this tab.
A97: Step 4C: | B97: Enter the Name and Provider Type of other individuals providing services to Medicaid patients during the 90-day period specified in step 1.
Q98: =IF(AND('FQHC_RHC - Other Providers'!B14<>"",'FQHC_RHC - Other Providers'!D14<>""),"","You must complete step 4C. Please enter N/A in the Name and Provider Type on line 1 if there are no other individuals with encounter volume.") -> You must complete step 4C. Please enter N/A in the Name and Provider Type on line 1 if there are no other individuals with encounter volume. | S98: x
B102: * These individuals may not be Eligible Professionals but may include dieticians, registered nurses, etc., who render services billed by the group practice/clinic.
S110: =IF(Q110<>"","x","") -> 
A112: Step 5: | B112: Enter the Address Information for Step 5 on the Address and Encounter Volume tab. Select the button to the right to direct you to this tab.
Q120: =IF(AND(N115="Yes",N117<>"",N120=""),"You must enter the number of locations you are reporting.","") ->  | S120: =IF(Q120<>"","x","") -> 
S123: =IF(Q123<>"","x","") -> 
Q124: =IF(R124>0,"Please correct errors on FQHC Addr and Encounter Volume tab.","") ->  | R124: =COUNTIF('FQHC Addr and Encounter Volume'!BC:BC,"x") -> 0 | S124: =IF(R124>0,"x","") -> 
A128: "Needy Individual" Encounter Volume: | S128: =IF(Q128<>"","x","") -> 
A129: “Needy Individual” encounter volume is comprised of claims from in-state and out-of-state Medicaid, CMO, and CHIP payor sources, individuals who were furnished uncompensated care or for those individuals who are furnished services at either no cost or reduced cost based on a sliding scale determined by the individual's ability to pay. Enter your needy individual encounter volume below in steps 6 through 8.
A131: Step 6: | B131: In-State Medicaid and CHIP Encounter Volume for the Group Practice/Clinic | D131: •One Encounter is defined as services rendered on any one day to an individual. Count all Needy Individual encounters during the 90-day period. | S131: =IF(Q131<>"","x","") -> 
B132: Enter Encounter Volume for all providers affiliated with the Medicaid Payee ID entered in step 4B. | S132: =IF(Q132<>"","x","") -> 
D134: • If your Group includes an Obstetrician who routinely provides services paid under a global code, patient volume for the Obstetrician should include each individual patient encounter that occurred during the specified 90-day period when those services were paid under global codes, regardless of the date of payment.
F144: Totals will automatically populate when the Encounter Volume tab is completed.
B147: Fee-for-Service Medicaid and CHIP Encounter Volume | F147: =SUM('FQHC Addr and Encounter Volume'!L:L) -> 0 | S147: =IF(Q147<>"","x","") -> 
B150: Care Management Organization (CMO) Medicaid and CHIP Encounter Volume
B151: Amerigroup Community Care | F151: =SUM('FQHC Addr and Encounter Volume'!N:N) -> 0
B152: CareSource | F152: =SUM('FQHC Addr and Encounter Volume'!P:P) -> 0
B153: Peach State Health Plan | F153: =SUM('FQHC Addr and Encounter Volume'!R:R) -> 0
B154: Wellcare Health Plans, Inc. | F154: =SUM('FQHC Addr and Encounter Volume'!T:T) -> 0
B156: Total Care Management Organization Encounter Volume | F156: =SUM(F151:F154) -> 0
B158: Total In-State Medicaid and CHIP Encounter Volume | F158: =F147+F156 -> 0
S161: =IF(Q161<>"","x","") -> 
A162: Step 7: | B162: Out-of-State Medicaid and CHIP Encounter Volumes | S162: =IF(Q162<>"","x","") -> 
S163: =IF(Q163<>"","x","") -> 
B164: Note 1: Out-of-State encounter volume includes claims that were paid by a border State's (i.e. a state contiguous to Georgia) Medicaid program to an Eligible Professional for encounters which occurred at the Eligible Professional's practice location(s). | S164: =IF(Q164<>"","x","") -> 
B165: Does the provider/practice need to include Out-of-State Medicaid volume in the numerator in order to patient volume eligibility requirements? | R165: =IF(F165="","x","") -> x | S165: =IF(R165<>"","x","") -> x
S166: =IF(Q166<>"","x","") -> 
B167: Out-of-State Medicaid and CHIP Encounter Volumes | S167: =IF(Q167<>"","x","") -> 
B168: Enter Encounter Volume for all providers affiliated with the Medicaid Payee ID entered in step 4B. | S168: =IF(Q168<>"","x","") -> 
S169: =IF(Q169<>"","x","") -> 
B170: Total Out-of-State Medicaid and CHIP Encounter Volume | F170: =SUM('FQHC Addr and Encounter Volume'!AB:AB) -> 0
A173: "Other Needy Individual" Encounter Volume: | S173: =IF(Q173<>"","x","") -> 
A175: Step 8: | B175: Encounter Volume for those individuals who were furnished uncompensated care or for those individuals who are furnished services at either no cost or reduced cost based on a sliding scale determined by the individual's ability to pay. | F175: =SUM('FQHC Addr and Encounter Volume'!AI:AI) -> 0 | S175: =IF(Q175<>"","x","") -> 
S176: =IF(Q176<>"","x","") -> 
S177: =IF(Q177<>"","x","") -> 
A178: Total Needy Individual Encounter Volume | F178: =IF(F165="No",F158+F175,F158+F170+F175) -> 0
A179: =IF(AND(F165="No",F170<>""),"The Out-of-State Medicaid encounter volume will only be included in the denominator of the patient volume calculator.","") ->  | S179: =IF(Q179<>"","x","") -> 
S181: =IF(Q181<>"","x","") -> 
A182: Step 9: | B182: Total Non-Needy Individual Encounter Volume | F182: =SUM('FQHC Addr and Encounter Volume'!AU:AU) -> 0 | S182: =IF(Q182<>"","x","") -> 
B183: Enter Encounter Volume for all providers affiliated with the Medicaid Payee ID entered in step 4B. | S183: =IF(Q183<>"","x","") -> 
S184: =IF(Q184<>"","x","") -> 
S185: =IF(Q185<>"","x","") -> 
A186: Total Encounter Volume
B188: • This amount is the sum of Step 6, Step 7, Step 8, and Step 9. | F188: =F158+F170+F175+F182 -> 0 | S188: =IF(Q188<>"","x","") -> 
S189: =IF(Q189<>"","x","") -> 
R191: =COUNTIF(S:S,"x") -> 6 | S191: =IF(I191<>"","x","") -> 
B192: Summary:
B193: In-State Medicaid and CHIP Encounter Volume | D193: =F158 -> 0 | K193: =IF(N53="Yes","Note: This group contains some hospital-based providers. For any of these providers in the group for which encounter volume is reported, you must select 'No' when asked if an incentive payment is being requested for those providers.","") ->  | S193: =IF(Q193<>"","x","") -> 
S194: =IF(Q194<>"","x","") -> 
B195: Out-of-State Medicaid and CHIP Encounter Volume | D195: =F170 -> 0 | F195: =IF(AND(F165="No",F170<>""),"The Out-of-State Medicaid encounter volume will only be included in the denominator of the patient volume calculator.","") ->  | S195: =IF(Q195<>"","x","") -> 
S196: =IF(Q196<>"","x","") -> 
B197: Individuals Furnished Uncompensated Care or Services at Either No Cost or Reduced Cost Encounter Volume | D197: =F175 -> 0 | K197: =IF(AND(F211>=19.4444444444445,$F211<29.4444444444445),"This Percentage Does Meet the Medicaid EHR Incentive Program Patient Volume Requirement for Pediatricians but does NOT Meet the Requirement for the other provider types.",IF($F211>=29.4444444444445,"This Percentage Does Meet the Medicaid EHR Incentive Program Patient Volume Requirement","This Percentage Does NOT Meet the Medicaid EHR Incentive Program Patient Volume Requirement")) -> This Percentage Does NOT Meet the Medicaid EHR Incentive Program Patient Volume Requirement | S197: =IF(Q197<>"","x","") -> 
B199: Total Needy Individual Encounter Volume | D199: =F178 -> 0
B201: Total Encounter Volume | D201: =F188+D195 -> 0
D202: =IF(F211>100.000000000001,"Error, Cannot be higher than 100%, please recalculate","") -> 
B204: Patient Volume Calculation: | J204: =IF(R191<>0,"Review Column Q for error messages. You must resolve all calculator errors above.","") -> Review Column Q for error messages. You must resolve all calculator errors above.
B205: Total Needy Individual Encounter Volume (Numerator) | D205: =D199 -> 0
B207: Total Encounter Volume (Denominator) | D207: =D201 -> 0
A211: Medicaid Patient Volume: | F211: =IF(D207=0,0,(((D205)/D207)*100)) -> 0 | I211: % | K211: 1
A214: 1 The Medicaid Patient Volume calculation is rounded up or down to the nearest whole number. Amounts less than .5 are rounded down; amounts equal to or greater than .5 are rounded up.
B217: When applying to the Georgia Medicaid Incentive Payment Program, the information below should be entered as the patient volume information in the state of Georgia's Medical Assistance Provider Incentive Repository (MAPIR) System:
C219: Medicaid & CHIP Encounter Volume2 (Numerator) | F219: Other Needy Individual Encounter Volume3 (Numerator) | H219: Total Needy Encounter Volume4 (Total Numerator) | J219: Total Encounter Volume5 (Denominator) | Q219: * The calculator must be uploaded to MAPIR in a PDF format until MAPIR has the capability to accept spreadsheets. Once MAPIR has the capability to accept spreadsheets, the calculator must be uploaded as a spreadsheet. See the instructions on the Instructions tab to properly create a PDF to upload into MAPIR.
C221: =F158 -> 0 | F221: =F175 -> 0 | H221: =D205 -> 0 | J221: =D207 -> 0
A226: 2 The Medicaid & CHIP Encounter Volume is the sum of the "Needy Individual" Encounter Volume, which is the Medicaid, Medicaid CMO, and CHIP Encounter Volume.
A228: 3 The "Other Needy Individual" Encounter Volume represents encounters for individuals furnished uncompensated care or for individuals furnished services at either no cost or reduced cost based on a sliding scale.
A230: 4The Total Needy Encounter Volume is the sum of the "Needy Individual" and "Other Needy Individual" Encounter Volume.
A232: 5 The Total Encounter Volume is the sum of all patient encounters from all payor sources.

Sheet FQHC Group Members (hidden)
A1: Georgia Department of Community Health
A2: Office of Information Technology
A3: Health Information Technology (HIT) Unit
A4: Medicaid Promoting Interoperability (PI) program (formerly EHR Incentive Program) for Meaningful Use
A5: Program Year 2018
A7: Group Practice or Clinic Members
A9: All Medicaid IDs for providers of the group who provided services during the selected 90-day period must be listed, including providers who are no longer with the group. If a provider has more than one location letter, enter all letters associated with that provider's Medicaid Enterprise ID in the Medicaid Location Identifier column. Only list Eligible Professionals on this page. Other providers, such as physician assistants, dieticians, registered nurses, should be listed in Step 4C on the Calculation-Group tab.
B11: Medicaid Enterprise ID (First nine digits of the Medicaid ID.) | D11: Medicaid ID Location Identifier (Last Letter of Medicaid ID.) | L11: Is this provider applying for an Incentive Payment? | N11: If yes, which payment year is the provider applying for?
F13: NPI | H13: Medicaid Provider Name | J13: Provider Type | P13: Error Message 1 | Q13: Error Message 2 | R13: Error Message 3 | S13: Error Message 4
A14: Example: | B14: 012345678 | D14: A,B,C | F14: 1234567890
A16: 1 | P16: =IF(AND(OR(B16<>"",D16<>"",F16<>"",H16<>""),J16=""),"Please select a provider type."," ") ->  | Q16: =IF(AND(OR(B16<>"",D16<>"",F16<>"",H16<>""),L16=""),"Please indicate if applying for incentive payment."," ") ->  | R16: =IF(OR(AND(B16<>"",D16=""),AND(B16<>"",F16=""),AND(B16<>"",H16="")),"Please enter all of the group member's information."," ") ->  | S16: =IF(AND(L16="Yes",N16=""),"Please select the payment year."," ") ->  | T16: =IF(AND(P16=" ",Q16=" ",R16=" ",S16=" "),"","x") -> 
A17: 2 | P17: =IF(AND(OR(B17<>"",D17<>"",F17<>"",H17<>""),J17=""),"Please select a provider type."," ") ->  | Q17: =IF(AND(OR(B17<>"",D17<>"",F17<>"",H17<>""),L17=""),"Please indicate if applying for incentive payment."," ") ->  | R17: =IF(OR(AND(B17<>"",D17=""),AND(B17<>"",F17=""),AND(B17<>"",H17="")),"Please enter all of the group member's information."," ") ->  | S17: =IF(AND(L17="Yes",N17=""),"Please select the payment year."," ") ->  | T17: =IF(AND(P17=" ",Q17=" ",R17=" ",S17=" "),"","x") -> 
A18: 3 | P18: =IF(AND(OR(B18<>"",D18<>"",F18<>"",H18<>""),J18=""),"Please select a provider type."," ") ->  | Q18: =IF(AND(OR(B18<>"",D18<>"",F18<>"",H18<>""),L18=""),"Please indicate if applying for incentive payment."," ") ->  | R18: =IF(OR(AND(B18<>"",D18=""),AND(B18<>"",F18=""),AND(B18<>"",H18="")),"Please enter all of the group member's information."," ") ->  | S18: =IF(AND(L18="Yes",N18=""),"Please select the payment year."," ") -> 
A19: 4
A20: 5
A21: 6
A22: 7
A23: 8
A24: 9
A25: 10
A26: 11
A27: 12
A28: 13
A29: 14
A30: 15
A31: 16
A32: 17 | P32: =IF(AND(OR(B32<>"",D32<>"",F32<>"",H32<>""),J32=""),"Please select a provider type."," ") ->  | Q32: =IF(AND(OR(B32<>"",D32<>"",F32<>"",H32<>""),L32=""),"Please indicate if applying for incentive payment."," ") ->  | R32: =IF(OR(AND(B32<>"",D32=""),AND(B32<>"",F32=""),AND(B32<>"",H32="")),"Please enter all of the group member's information."," ") ->  | S32: =IF(AND(L32="Yes",N32=""),"Please select the payment year."," ") -> 
A33: 18
A34: 19
A35: 20
A36: 21
A37: 22
A38: 23
A39: 24
A40: 25
A41: 26
A42: 27
A43: 28
A44: 29
A45: 30
A46: 31
A47: 32
A48: 33
A49: 34
A50: 35
A51: 36
A52: 37
A53: 38
A54: 39
A55: 40
A56: 41
A57: 42
A58: 43
A59: 44
A60: 45
A61: 46
A62: 47
A63: 48
A64: 49
A65: 50
A66: 51
A67: 52
A68: 53
A69: 54
A70: 55
A71: 56
A72: 57
A73: 58
A74: 59
A75: 60
A76: 61
A77: 62
A78: 63
A79: 64
A80: 65
A81: 66 | T81: =IF(AND(P81=" ",Q81=" ",R81=" ",S81=" "),"","x") -> 
A82: 67
A83: 68
A84: 69
A85: 70
A86: 71
A87: 72
A88: 73
A89: 74
A90: 75
A91: 76
A92: 77
A93: 78
A94: 79
A95: 80
A96: 81 | P96: =IF(AND(OR(B96<>"",D96<>"",F96<>"",H96<>""),J96=""),"Please select a provider type."," ") ->  | Q96: =IF(AND(OR(B96<>"",D96<>"",F96<>"",H96<>""),L96=""),"Please indicate if applying for incentive payment."," ") ->  | R96: =IF(OR(AND(B96<>"",D96=""),AND(B96<>"",F96=""),AND(B96<>"",H96="")),"Please enter all of the group member's information."," ") ->  | S96: =IF(AND(L96="Yes",N96=""),"Please select the payment year."," ") -> 
A97: 82
A98: 83
A99: 84
A100: 85
A101: 86
A102: 87
A103: 88
A104: 89
A105: 90
A106: 91
A107: 92
A108: 93
A109: 94
A110: 95
A111: 96
A112: 97
A113: 98
A114: 99
A115: 100
A116: 101
A117: 102
A118: 103
A119: 104
A120: 105
A121: 106
A122: 107
A123: 108
A124: 109
A125: 110
A126: 111
A127: 112
A128: 113
A129: 114
A130: 115
A131: 116
A132: 117
A133: 118
A134: 119
A135: 120
A136: 121
A137: 122
A138: 123
A139: 124
A140: 125
A141: 126
A142: 127
A143: 128
A144: 129
A145: 130 | T145: =IF(AND(P145=" ",Q145=" ",R145=" ",S145=" "),"","x") -> 
A146: 131
A147: 132
A148: 133
A149: 134
A150: 135
A151: 136
A152: 137
A153: 138
A154: 139
A155: 140
A156: 141
A157: 142
A158: 143
A159: 144
A160: 145 | P160: =IF(AND(OR(B160<>"",D160<>"",F160<>"",H160<>""),J160=""),"Please select a provider type."," ") ->  | Q160: =IF(AND(OR(B160<>"",D160<>"",F160<>"",H160<>""),L160=""),"Please indicate if applying for incentive payment."," ") ->  | R160: =IF(OR(AND(B160<>"",D160=""),AND(B160<>"",F160=""),AND(B160<>"",H160="")),"Please enter all of the group member's information."," ") ->  | S160: =IF(AND(L160="Yes",N160=""),"Please select the payment year."," ") -> 
A161: 146
A162: 147
A163: 148
A164: 149
A165: 150
A166: 151
A167: 152
A168: 153
A169: 154
A170: 155
A171: 156
A172: 157
A173: 158
A174: 159
A175: 160
A176: 161
A177: 162
A178: 163
A179: 164
A180: 165
A181: 166
A182: 167
A183: 168
A184: 169
A185: 170
A186: 171
A187: 172
A188: 173
A189: 174
A190: 175
A191: 176
A192: 177
A193: 178
A194: 179
A195: 180
A196: 181
A197: 182
A198: 183
A199: 184
A200: 185
A201: 186
A202: 187
A203: 188
A204: 189
A205: 190
... 1560 more rows

Sheet FQHC_RHC - Other Providers (hidden)
A1: Georgia Department of Community Health | J1: ='Calculation - FQHC_RHC Group'!N59 -> 0
A2: Office of Information Technology
A3: Health Information Technology (HIT) Unit
A4: Medicaid Promoting Interoperability (PI) program (formerly EHR Incentive Program) for Meaningful Use
A5: Program Year 2018
A7: Group Members who are not Eligible Professionals
B10: Provider Name | D10: Provider Type
A13: Example: | B13: Bob Smith | D13: Physician Assistant
A14: 1
A15: 2
A16: 3
A17: 4
A18: 5
A19: 6
A20: 7
A21: 8
A22: 9
A23: 10
A24: 11
A25: 12
A26: 13
A27: 14
A28: 15
A29: 16
A30: 17
A31: 18
A32: 19
A33: 20
A34: 21
A35: 22
A36: 23
A37: 24
A38: 25
A39: 26
A40: 27
A41: 28
A42: 29
A43: 30
A44: 31
A45: 32
A46: 33
A47: 34
A48: 35
A49: 36
A50: 37
A51: 38
A52: 39
A53: 40
A54: 41
A55: 42
A56: 43
A57: 44
A58: 45
A59: 46
A60: 47
A61: 48
A62: 49
A63: 50
A64: 51
A65: 52
A66: 53
A67: 54
A68: 55
A69: 56
A70: 57
A71: 58
A72: 59
A73: 60
A74: 61
A75: 62
A76: 63
A77: 64
A78: 65
A79: 66
A80: 67
A81: 68
A82: 69
A83: 70
A84: 71
A85: 72
A86: 73
A87: 74
A88: 75
A89: 76
A90: 77
A91: 78
A92: 79
A93: 80
A94: 81
A95: 82
A96: 83
A97: 84
A98: 85
A99: 86
A100: 87
A101: 88
A102: 89
A103: 90
A104: 91
A105: 92
A106: 93
A107: 94
A108: 95
A109: 96
A110: 97
A111: 98
A112: 99
A113: 100
A114: 101
A115: 102
A116: 103
A117: 104
A118: 105
A119: 106
A120: 107
A121: 108
A122: 109
A123: 110
A124: 111
A125: 112
A126: 113
A127: 114
A128: 115
A129: 116
A130: 117
A131: 118
A132: 119
A133: 120
A134: 121
A135: 122
A136: 123
A137: 124
A138: 125
A139: 126
A140: 127
A141: 128
A142: 129
A143: 130
A144: 131
A145: 132
A146: 133
A147: 134
A148: 135
A149: 136
A150: 137
A151: 138
A152: 139
A153: 140
A154: 141
A155: 142
A156: 143
A157: 144
A158: 145
A159: 146
A160: 147
A161: 148
A162: 149
A163: 150
A164: 151
A165: 152
A166: 153
A167: 154
A168: 155
A169: 156
A170: 157
A171: 158
A172: 159
A173: 160
A174: 161
A175: 162
A176: 163
A177: 164
A178: 165
A179: 166
A180: 167
A181: 168
A182: 169
A183: 170
A184: 171
A185: 172
A186: 173
A187: 174
A188: 175
A189: 176
A190: 177
A191: 178
A192: 179
A193: 180
A194: 181
A195: 182
A196: 183
A197: 184
A198: 185
A199: 186
A200: 187
A201: 188
A202: 189
A203: 190
A204: 191
A205: 192
... 1558 more rows

Sheet FQHC Addr and Encounter Volume (hidden)
A1: Georgia Department of Community Health | BD1: South Carolina
A2: Office of Information Technology | BD2: North Carolina
A3: Health Information Technology (HIT) Unit
A4: Medicaid Promoting Interoperability (PI) program (formerly EHR Incentive Program) for Meaningful Use | BD4: Tennessee
A5: Program Year 2018 | BD5: Alabama
BD6: Florida
A7: Group Practice or Clinic Locations and Encounter Volume
B9: Enter Encounter Volume for all providers affiliated with the Medicaid Payee ID entered in step 4B.
D11: Step 5: Enter the address information for the additional locations for which you are reporting your Encounter Volume. | L11: Step 6: Enter your In-State Medicaid and CHIP Encounter Volume for the Group Practice/Clinic. | Z11: Step 7: Enter your Out-of-State Medicaid and CHIP Encounter Volumes associated with each GA location listed Note 1: Out-of-State encounter volume includes claims that were paid by a border State's (i.e. a state contiguous to Georgia) Medicaid program to an Eligible Professional for encounters which occurred at the Eligible Professional's practice location(s). | AI11: Step 8: "Other Needy Individual" Encounter Volume for those individuals who were furnished uncompensated care or for those individuals who are furnished services at either no cost or reduced cost based on a sliding scale determined by the individual's ability to pay. | AM11: Step 9: Enter your Non-Needy Individual Encounter Volume.
L12: Fee-for-Service Medicaid and CHIP Encounter Volumes | N12: Care Management Organization (CMO) Medicaid and CHIP Encounter Volumes | V12: Total Care Management Organization Encounter Volumes | X12: Total In-State Medicaid and CHIP Encounter Volumes | Z12: Out-of-State Medicaid Encounter Volume | AE12: Please specify the data source used to determine Out-of-State Medicaid Encounter Volume. The data source must be identifiable and auditable. | AI12: "Other Needy Individual" In-State and Out-of-State Encounter Volume | AU12: Total Non-Medicaid Encounter Volume
D13: Street Address | F13: City | H13: State | J13: Zip Code | N13: Amerigroup Community Care | P13: CareSource | R13: Peach State Health Plan | T13: Wellcare Health Plans, Inc. | Z13: State Name | AB13: Out-of-State Medicaid and CHIP Encounter Volumes | AE13: Data Source | AG13: Other Data Source | AM13: Medicare | AO13: Private Insurance | AQ13: Other (i.e. cash) | AS13: Out-of-State Non-Medicaid Encounter Volume | AX13: Error Message 1 | AY13: Error Message 2 | AZ13: Error Message 3 | BA13: Error Message 4
B15: Location 1 | V15: =SUM(N15:T15) -> 0 | X15: =L15+V15 -> 0 | AU15: =SUM(AM15:AS15) -> 0 | AX15: =IF(AND(OR(D15<>"",F15<>"",H15<>"",J15<>""),OR(L15="",N15="",R15="",P15="",T15="",AM15="",AO15="",AQ15="",AS15="",AI15="",)),"Please complete all steps. Enter zero if no volume.","") ->  | AY15: =IF(AND(AE15="Other",AG15=""),"Please enter Other Data Source.","") ->  | AZ15: =IF(AND(OR(D15="",F15="",H15="",J15=""),OR(L15<>"",N15<>"",R15<>"",T15<>"",AM15<>"",AO15<>"",AQ15<>"",AS15<>"",AI15<>"")),"Please complete address information.","") ->  | BA15: =IF(AND(AB15>0,Z15="",AE15=""),"Enter the State Name and select a Data Source for Step 7.","") ->  | BC15: =IF(OR(AX15<>"",AY15<>"",AZ15<>"",BA15<>""),"x","") -> 
B16: Location 2 | V16: =SUM(N16:T16) -> 0 | X16: =L16+V16 -> 0 | AU16: 0 | AX16: =IF(AND(OR(D16<>"",F16<>"",H16<>"",J16<>""),OR(L16="",N16="",R16="",P16="",T16="",AM16="",AO16="",AQ16="",AS16="",AI16="",)),"Please complete all steps. Enter zero if no volume.","") -> 
B17: Location 3 | V17: =SUM(N17:T17) -> 0 | X17: 0 | AU17: 0
B18: Location 4 | V18: =SUM(N18:T18) -> 0 | X18: 0 | AU18: 0
B19: Location 5 | V19: =SUM(N19:T19) -> 0 | X19: 0 | AU19: 0
B20: Location 6 | V20: =SUM(N20:T20) -> 0 | X20: 0 | AU20: 0
B21: Location 7 | V21: 0 | X21: 0 | AU21: 0
B22: Location 8 | V22: 0 | X22: 0 | AU22: 0
B23: Location 9 | V23: 0 | X23: 0 | AU23: 0
B24: Location 10 | V24: 0 | X24: 0 | AU24: 0
B25: Location 11 | V25: 0 | X25: 0 | AU25: 0
B26: Location 12 | V26: 0 | X26: 0 | AU26: 0
B27: Location 13 | V27: 0 | X27: 0 | AU27: 0
B28: Location 14 | V28: 0 | X28: 0 | AU28: 0
B29: Location 15 | V29: 0 | X29: 0 | AU29: 0
B30: Location 16 | V30: 0 | X30: 0 | AU30: 0
B31: Location 17 | V31: 0 | X31: 0 | AU31: 0
B32: Location 18 | V32: 0 | X32: 0 | AU32: 0
B33: Location 19 | V33: 0 | X33: 0 | AU33: 0
B34: Location 20 | V34: 0 | X34: 0 | AU34: 0
B35: Location 21 | V35: 0 | X35: 0 | AU35: 0
B36: Location 22 | V36: 0 | X36: 0 | AU36: 0
B37: Location 23 | V37: 0 | X37: 0 | AU37: 0
B38: Location 24 | V38: 0 | X38: 0 | AU38: 0
B39: Location 25 | V39: 0 | X39: 0 | AU39: 0
B40: Location 26 | V40: 0 | X40: 0 | AU40: 0
B41: Location 27 | V41: 0 | X41: 0 | AU41: 0
B42: Location 28 | V42: 0 | X42: 0 | AU42: 0 | BC42: =IF(OR(AX42<>"",AY42<>"",AZ42<>"",BA42<>""),"x","") -> 
B43: Location 29 | V43: 0 | X43: 0 | AU43: 0 | BC43: =IF(OR(AX43<>"",AY43<>"",AZ43<>"",BA43<>""),"x","") -> 
B44: Location 30 | V44: 0 | X44: 0 | AU44: 0
B45: Location 31 | V45: 0 | X45: 0 | AU45: 0
B46: Location 32 | V46: 0 | X46: 0 | AU46: 0
B47: Location 33 | V47: 0 | X47: 0 | AU47: 0
B48: Location 34 | V48: 0 | X48: 0 | AU48: 0
B49: Location 35 | V49: 0 | X49: 0 | AU49: 0
B50: Location 36 | V50: 0 | X50: 0 | AU50: 0
B51: Location 37 | V51: 0 | X51: 0 | AU51: 0
B52: Location 38 | V52: 0 | X52: 0 | AU52: 0
B53: Location 39 | V53: 0 | X53: 0 | AU53: 0
B54: Location 40 | V54: 0 | X54: 0 | AU54: 0
B55: Location 41 | V55: 0 | X55: 0 | AU55: 0
B56: Location 42 | V56: 0 | X56: 0 | AU56: 0
B57: Location 43 | V57: 0 | X57: 0 | AU57: 0
B58: Location 44 | V58: 0 | X58: 0 | AU58: 0
B59: Location 45 | V59: 0 | X59: 0 | AU59: 0
B60: Location 46 | V60: 0 | X60: 0 | AU60: 0
B61: Location 47 | V61: 0 | X61: 0 | AU61: 0
B62: Location 48 | V62: 0 | X62: 0 | AU62: 0
B63: Location 49 | V63: 0 | X63: 0 | AU63: 0
B64: Location 50 | V64: 0 | X64: 0 | AU64: 0
B65: Location 51 | V65: 0 | X65: 0 | AU65: 0
B66: Location 52 | V66: 0 | X66: 0 | AU66: 0
B67: Location 53 | V67: 0 | X67: 0 | AU67: 0
B68: Location 54 | V68: 0 | X68: 0 | AU68: 0
B69: Location 55 | V69: 0 | X69: 0 | AU69: 0
B70: Location 56 | V70: 0 | X70: 0 | AU70: 0
B71: Location 57 | V71: 0 | X71: 0 | AU71: 0
B72: Location 58 | V72: 0 | X72: 0 | AU72: 0
B73: Location 59 | V73: 0 | X73: 0 | AU73: 0
B74: Location 60 | V74: 0 | X74: 0 | AU74: 0

Sheet Example - FQHC_RHC Group (hidden)
A1: Georgia Department of Community Health
A2: Office of Information Technology
A3: Health Information Technology (HIT) Unit
A4: Medicaid Promoting Interoperability (PI) program (formerly EHR Incentive Program) for Meaningful Use
A5: Program Year 2018
A7: Calculation: FQHC/RHC - Group Encounter Volume
A9: Contact Information: (This information populates from the information entered on the Contact Information tab.)
A10: Contact Person Completing This Workbook | D10: Bob Smith | Q10: =IF(OR(D10="Please enter the name of the person completing this workbook.",D11="Please enter the phone number of the person completing this workbook.",D12="Please enter the email addresss of the person completing this workbook.",D13="Please enter the date this workbook was completed."),"Please complete the Contact Information tab of this workbook.","") ->  | S10: =IF(Q10<>"","x","") -> 
A11: Contact Person Phone Number | D11: 1234567890
A12: Contact Person Email Address | D12: XXXXX@email.com
A13: Date Completed: | D13: 2018-01-01
A15: Eligible Professional Patient Volume Calculation Template
A17: Purple Shaded Cells Represent Data Entry | D17: For detailed information to assist in completing the Eligible Professional Patient Volume Calculation, see the Background Information tab.
D18: Background Information
A19: Instructions
A20: Step 1A: | B20: Enter the patient volume methodology being used for the 90-day period. | D20: * Medicaid patient volume can be calculated using one of the two following methods: | N20: Recent 12 Months | Q20: =IF(N20="","Select a patient volume methodology.","") ->  | S20: =IF(Q20<>"","x","") -> 
S21: =IF(Q21<>"","x","") -> 
D22: 1) Patient volume can be determined using a consecutive 90-day period within the prior calendar year 2017 (01/01/2017-12/31/2017);
D24: OR
D26: 2) Patient volume can be determined across a consecutive 90-day period in the last 12 months preceding the provider's attestation.
N27: Start 90-day period | P27: End 90-day period | Q27: Option 1: Calendar Year - Program Year 2018 Calculations, the 90 days starting date must fall on or after January 1, 2017.
A28: Step 1B: | B28: Enter the beginning date (mm/dd/yyyy) of a continuous 90-day period for your Medicaid Encounter Volume. | D28: (Note the 90-day period must be entirely in the previous calendar year and cannot overlap into the current year. The Medicaid encounter volume should include encounters with dates of service during the 90-day period.) | P28: =IF(N28>0,N28+89,"") -> 
Q31: =IF(AND(N20="Prior Calendar Year",N28=""),"Please select a 90-day period.","") ->  | S31: =IF(Q31<>"","x","") -> 
A32: Step 1C: | B32: Enter the date of attestation. | D32: * This is the date the provider intends to electronically certify that the information entered on this calculator and any uploaded supporting documentation is true, accurate, and complete.
N33: 2018-01-01 | Q33: =IF(AND(N20="Recent 12 Months",N33=""),"Please enter the date of attestation.","") ->  | S33: =IF(Q33<>"","x","") -> 
N35: Start 90-day period | P35: End 90-day period | Q35: Option 2: The 90 days starting date must fall on or after 12 months prior to the date of attestation.
A36: Step 1D: | B36: Enter the beginning date (mm/dd/yyyy) of a continuous 90-day period for your Medicaid Encounter Volume. | D36: (Note the 90-day period must be during the 12 months preceding the date of attestation (Step 1C). | N36: 2017-02-01 | P36: =IF(N36>0,N36+89,"") -> 2017-05-01
D37: Earliest Start Date of 90-day period: | I37: =IF(N20<>"Recent 12 Months","",IFERROR(EDATE(N33,-12)-1,"")) -> 2016-12-31
D38: Latest Start Date of 90-day period: | I38: =IF(N20<>"Recent 12 Months","",IF(N33="","",N33-89)) -> 2017-10-04
Q39: =IF(AND(N20="Recent 12 Months",N36=""),"Please select your 90-day period.","") ->  | S39: =IF(Q39<>"","x","") -> 
A41: Step 2: | B41: Select all Eligible Professional provider types included in the group encounter volume for whom you are seeking an incentive payment. | S41: =IF(Q41<>"","x","") -> 
B42: Certified Nurse-Midwife | Q42: =IF(COUNTA(C42:C50)<1,"Please select provider types.","") ->  | S42: =IF(Q42<>"","x","") -> 
B43: Dentist | S43: =IF(Q43<>"","x","") -> 
B44: Nurse Practitioner | S44: =IF(Q44<>"","x","") -> 
B45: Obstetrician
B46: Pediatrician | C46: X | S46: =IF(Q46<>"","x","") -> 
B47: Physician | C47: X | S47: =IF(Q47<>"","x","") -> 
B48: Physician Assistant - Primary Provider | D48: * Primary provider in a clinic | S48: =IF(Q48<>"","x","") -> 
B49: Physician Assistant - Medical Director | D49: * Clinical or medical director at a clinical site of practice
B50: Physician Assistant - Owner | D50: * Owner of the RHC
S52: =IF(Q52<>"","x","") -> 
A53: Step 3: | B53: An eligible professional is considered hospital-based if 90% or more of his or her services are performed in a hospital inpatient (Place Of Service code 21) or emergency room (Place Of Service code 23) setting. By confirming that Eligible Professionals for whom an incentive payment is sought are not hospital-based, you are attesting that those Eligible Professionals do not perform 90% or more of their services in a hospital setting. Are any of the providers for whom an incentive payment is sought considered hospital-based? | N53: No | Q53: =IF(N53="","Please confirm no hospital-based group members.",IF(N53="Yes","For any providers in the group for which encounter volume is reported, you must select 'No' when asked if an incentive payment is being requested for those providers.","")) ->  | S53: =IF(N53="","x","") -> 
S54: =IF(Q54<>"","x","") -> 
A59: Step 4A: | B59: Enter your Medicaid Payee ID or Group NPI for the group practice/clinic. | K59: Please select the ID you will be entering. | N59: Medicaid Payee ID | Q59: =IF(OR(COUNTIF(R59:R63,"x")>0,D87=""),"Please complete Step 4A.","") ->  | R59: =IF(AND(N59="Medicaid Payee ID",D64=""),"x","") -> 
R60: =IF(AND(N59="Group NPI",F64=""),"x","") -> 
D62: Medicaid Payee ID of Group Practice/Clinic
F63: Group NPI | R63: =IF(N59="","x","") -> 
C64: 1. | D64: 300000000B | S64: =IF(Q64<>"","x","") -> 
C65: 2.
C66: 3.
C67: 4.
C68: 5.
C69: 6.
C70: 7.
C71: 8.
C72: 9.
C73: 10.
C74: 11.
C75: 12.
C76: 13.
C77: 14.
C78: 15.
C79: 16.
C80: 17.
C81: 18.
C82: 19.
C83: 20.
S84: =IF(Q84<>"","x","") -> 
D86: Name of Group Practice/Clinic | S86: =IF(Q86<>"","x","") -> 
B87: Enter the name of the group practice/clinic. | D87: FQHC Facility Name
R88: =IF(D87="","x","") -> 
A90: Step 4B: | B90: Rendering Medicaid IDs and/or National Provider IDs (NPI) of the group practice/clinic members.
Q91: =IF(R91>0,"Please correct all errors on the Group Members tab.","") ->  | R91: =COUNTIF('Group Members'!T:T,"x") -> 0
B93: Enter the names of the individuals within the group practice/clinic on the Group Members tab. Select the button to the right to direct you to this tab.
A97: Step 4C: | B97: Enter the Name and Provider Type of other individuals providing services to Medicaid patients during the 90-day period specified in step 1.
Q98: =IF(AND('FQHC_RHC - Other Providers'!B13<>"",'FQHC_RHC - Other Providers'!D13<>""),"","You must complete step 4C. Please enter N/A in the Name and Provider Type on line 1 if there are no other individuals with encounter volume.") -> 
B102: * These individuals may not be Eligible Professionals but may include dieticians, registered nurses, etc., who render services billed by the group practice/clinic.
S110: =IF(Q110<>"","x","") -> 
A112: Step 5: | B112: Enter the Address Information for Step 5 on the Address and Encounter Volume tab. Select the button to the right to direct you to this tab.
Q120: =IF(AND(N115="Yes",N117<>"",N120=""),"You must enter the number of locations you are reporting.","") ->  | S120: =IF(Q120<>"","x","") -> 
S123: =IF(Q123<>"","x","") -> 
Q124: =IF(R124>0,"Please correct errors on FQHC Addr and Encounter Volume tab.","") ->  | R124: =COUNTIF('FQHC Addr and Encounter Volume'!BC:BC,"x") -> 0 | S124: =IF(R124>0,"x","") -> 
A128: "Needy Individual" Encounter Volume: | S128: =IF(Q128<>"","x","") -> 
A129: “Needy Individual” encounter volume is comprised of claims from in-state and out-of-state Medicaid, CMO, and CHIP payor sources, individuals who were furnished uncompensated care or for those individuals who are furnished services at either no cost or reduced cost based on a sliding scale determined by the individual's ability to pay. Enter your needy individual encounter volume below in steps 6 through 8.
A131: Step 6: | B131: In-State Medicaid and CHIP Encounter Volume for the Group Practice/Clinic | D131: •One Encounter is defined as services rendered on any one day to an individual. Count all Needy Individual encounters during the 90-day period. | S131: =IF(Q131<>"","x","") -> 
B132: Enter Encounter Volume for all providers affiliated with the Medicaid Payee ID entered in step 4B. | S132: =IF(Q132<>"","x","") -> 
D134: • If your Group includes an Obstetrician who routinely provides services paid under a global code, patient volume for the Obstetrician should include each individual patient encounter that occurred during the specified 90-day period when those services were paid under global codes, regardless of the date of payment.
F144: Totals will automatically populate when the Encounter Volume tab is completed.
B147: Fee-for-Service Medicaid and CHIP Encounter Volume | F147: =SUM('Example - FQHC Addr and Enc Vol'!L:L) -> 200 | S147: =IF(Q147<>"","x","") -> 
B150: Care Management Organization (CMO) Medicaid and CHIP Encounter Volume
B151: Amerigroup Community Care | F151: =SUM('Example - FQHC Addr and Enc Vol'!N:N) -> 0
B152: CareSource | F152: =SUM('Example - FQHC Addr and Enc Vol'!P:P) -> 40
B153: Peach State Health Plan | F153: =SUM('Example - FQHC Addr and Enc Vol'!R:R) -> 40
B154: Wellcare Health Plans, Inc. | F154: =SUM('Example - FQHC Addr and Enc Vol'!T:T) -> 50
B156: Total Care Management Organization Encounter Volume | F156: =SUM(F151:F154) -> 130
B158: Total In-State Medicaid and CHIP Encounter Volume | F158: =F147+F156 -> 330
S161: =IF(Q161<>"","x","") -> 
A162: Step 7: | B162: Out-of-State Medicaid and CHIP Encounter Volumes | S162: =IF(Q162<>"","x","") -> 
S163: =IF(Q163<>"","x","") -> 
B164: Note 1: Out-of-State encounter volume includes claims that were paid by a border State's (i.e. a state contiguous to Georgia) Medicaid program to an Eligible Professional for encounters which occurred at the Eligible Professional's practice location(s). | S164: =IF(Q164<>"","x","") -> 
B165: Does the provider/practice need to include Out-of-State Medicaid volume in the numerator in order to patient volume eligibility requirements? | F165: No | R165: =IF(F165="","x","") ->  | S165: =IF(R165<>"","x","") -> 
S166: =IF(Q166<>"","x","") -> 
B167: Out-of-State Medicaid and CHIP Encounter Volumes | S167: =IF(Q167<>"","x","") -> 
B168: Enter Encounter Volume for all providers affiliated with the Medicaid Payee ID entered in step 4B. | S168: =IF(Q168<>"","x","") -> 
S169: =IF(Q169<>"","x","") -> 
B170: Total Out-of-State Medicaid and CHIP Encounter Volume | F170: =SUM('FQHC Addr and Encounter Volume'!AB:AB) -> 0
A173: "Other Needy Individual" Encounter Volume: | S173: =IF(Q173<>"","x","") -> 
A175: Step 8: | B175: Encounter Volume for those individuals who were furnished uncompensated care or for those individuals who are furnished services at either no cost or reduced cost based on a sliding scale determined by the individual's ability to pay. | F175: =SUM('Example - FQHC Addr and Enc Vol'!AI:AI) -> 500 | S175: =IF(Q175<>"","x","") -> 
S176: =IF(Q176<>"","x","") -> 
S177: =IF(Q177<>"","x","") -> 
A178: Total Needy Individual Encounter Volume | F178: =IF(F165="No",F158+F175,F158+F170+F175) -> 830
S179: =IF(Q179<>"","x","") -> 
S181: =IF(Q181<>"","x","") -> 
A182: Step 9: | B182: Total Non-Needy Individual Encounter Volume | F182: =SUM('Example - FQHC Addr and Enc Vol'!AU:AU) -> 170 | S182: =IF(Q182<>"","x","") -> 
B183: Enter Encounter Volume for all providers affiliated with the Medicaid Payee ID entered in step 4B. | S183: =IF(Q183<>"","x","") -> 
S184: =IF(Q184<>"","x","") -> 
S185: =IF(Q185<>"","x","") -> 
A186: Total Encounter Volume
B188: • This amount is the sum of Step 6, Step 7, Step 8, and Step 9. | F188: =F158+F170+F175+F182 -> 1000 | S188: =IF(Q188<>"","x","") -> 
S189: =IF(Q189<>"","x","") -> 
R191: =COUNTIF(S:S,"x") -> 0 | S191: =IF(I191<>"","x","") -> 
B192: Summary:
B193: In-State Medicaid and CHIP Encounter Volume | D193: =F158 -> 330 | K193: =IF(N53="Yes","Note: This group contains some hospital-based providers. For any of these providers in the group for which encounter volume is reported, you must select 'No' when asked if an incentive payment is being requested for those providers.","") ->  | S193: =IF(Q193<>"","x","") -> 
S194: =IF(Q194<>"","x","") -> 
B195: Out-of-State Medicaid and CHIP Encounter Volume | D195: =F170 -> 0 | S195: =IF(Q195<>"","x","") -> 
S196: =IF(Q196<>"","x","") -> 
B197: Individuals Furnished Uncompensated Care or Services at Either No Cost or Reduced Cost Encounter Volume | D197: =F175 -> 500 | K197: =IF(AND(F211>=19.4444444444445,$F211<29.4444444444445),"This Percentage Does Meet the Medicaid EHR Incentive Program Patient Volume Requirement for Pediatricians but does NOT Meet the Requirement for the other provider types.",IF($F211>=29.4444444444445,"This Percentage Does Meet the Medicaid EHR Incentive Program Patient Volume Requirement","This Percentage Does NOT Meet the Medicaid EHR Incentive Program Patient Volume Requirement")) -> This Percentage Does Meet the Medicaid EHR Incentive Program Patient Volume Requirement | S197: =IF(Q197<>"","x","") -> 
B199: Total Needy Individual Encounter Volume | D199: =F178 -> 830
B201: Total Encounter Volume | D201: =F188+D195 -> 1000
D202: =IF(F211>100.000000000001,"Error, Cannot be higher than 100%, please recalculate","") -> 
B204: Patient Volume Calculation: | J204: =IF(R191<>0,"Review Column Q for error messages. You must resolve all calculator errors above.","") -> 
B205: Total Needy Individual Encounter Volume (Numerator) | D205: =D199 -> 830
B207: Total Encounter Volume (Denominator) | D207: =D201 -> 1000
A211: Medicaid Patient Volume: | F211: =IF(D207=0,0,(((D205)/D207)*100)) -> 83 | I211: % | K211: 1
A214: 1 The Medicaid Patient Volume calculation is rounded up or down to the nearest whole number. Amounts less than .5 are rounded down; amounts equal to or greater than .5 are rounded up.
B217: When applying to the Georgia Medicaid Incentive Payment Program, the information below should be entered as the patient volume information in the state of Georgia's Medical Assistance Provider Incentive Repository (MAPIR) System:
C219: Medicaid & CHIP Encounter Volume2 (Numerator) | F219: Other Needy Individual Encounter Volume3 (Numerator) | H219: Total Needy Encounter Volume4 (Total Numerator) | J219: Total Encounter Volume5 (Denominator) | Q219: * The calculator must be uploaded to MAPIR in a PDF format until MAPIR has the capability to accept spreadsheets. Once MAPIR has the capability to accept spreadsheets, the calculator must be uploaded as a spreadsheet. See the instructions on the Instructions tab to properly create a PDF to upload into MAPIR.
C221: =F158 -> 330 | F221: =F175 -> 500 | H221: =D205 -> 830 | J221: =D207 -> 1000
A226: 2 The Medicaid & CHIP Encounter Volume is the sum of the "Needy Individual" Encounter Volume, which is the Medicaid, Medicaid CMO, and CHIP Encounter Volume.
A228: 3 The "Other Needy Individual" Encounter Volume represents encounters for individuals furnished uncompensated care or for individuals furnished services at either no cost or reduced cost based on a sliding scale.
A230: 4The Total Needy Encounter Volume is the sum of the "Needy Individual" and "Other Needy Individual" Encounter Volume.
A232: 5 The Total Encounter Volume is the sum of all patient encounters from all payor sources.

Sheet Example - FQHC Group Members (hidden)
A1: Georgia Department of Community Health
A2: Office of Information Technology
A3: Health Information Technology (HIT) Unit
A4: Medicaid Promoting Interoperability (PI) program (formerly EHR Incentive Program) for Meaningful Use
A5: Program Year 2018
A7: Group Practice or Clinic Members
A9: All Medicaid IDs for providers of the group who provided services during the selected 90-day period must be listed, including providers who are no longer with the group. If a provider has more than one location letter, enter all letters associated with that provider's Medicaid Enterprise ID in the Medicaid Location Identifier column. Only list Eligible Professionals on this page. Other providers, such as physician assistants, dieticians, registered nurses, should be listed in Step 4C on the Calculation-Group tab.
B11: Medicaid Enterprise ID (First nine digits of the Medicaid ID.) | D11: Medicaid ID Location Identifier (Last Letter of Medicaid ID.) | L11: Is this provider applying for an Incentive Payment? | N11: If yes, which payment year is the provider applying for?
F13: NPI | H13: Medicaid Provider Name | J13: Provider Type | P13: Error Message 1 | Q13: Error Message 2 | R13: Error Message 3 | S13: Error Message 4
A14: Example: | B14: 012345678 | D14: A,B,C | F14: 1234567890
A16: 1 | B16: 111111111 | D16: B,C,E | F16: 1111111111 | H16: Provider A | J16: Physician | L16: Yes | N16: 1st Payment | P16: =IF(AND(OR(B16<>"",D16<>"",F16<>"",H16<>""),J16=""),"Please select a provider type."," ") ->  | Q16: =IF(AND(OR(B16<>"",D16<>"",F16<>"",H16<>""),L16=""),"Please indicate if applying for incentive payment."," ") ->  | R16: =IF(OR(AND(B16<>"",D16=""),AND(B16<>"",F16=""),AND(B16<>"",H16="")),"Please enter all of the group member's information."," ") ->  | S16: =IF(AND(L16="Yes",N16=""),"Please select the payment year."," ") ->  | T16: =IF(AND(P16=" ",Q16=" ",R16=" ",S16=" "),"","x") -> 
A17: 2 | B17: 222222222 | D17: A,C,D | F17: 2222222222 | H17: Provider B | J17: Pediatrician | L17: Yes | N17: 1st Payment | P17: =IF(AND(OR(B17<>"",D17<>"",F17<>"",H17<>""),J17=""),"Please select a provider type."," ") ->  | Q17: =IF(AND(OR(B17<>"",D17<>"",F17<>"",H17<>""),L17=""),"Please indicate if applying for incentive payment."," ") ->  | R17: =IF(OR(AND(B17<>"",D17=""),AND(B17<>"",F17=""),AND(B17<>"",H17="")),"Please enter all of the group member's information."," ") ->  | S17: =IF(AND(L17="Yes",N17=""),"Please select the payment year."," ") ->  | T17: =IF(AND(P17=" ",Q17=" ",R17=" ",S17=" "),"","x") -> 
A18: 3 | B18: 333333333 | D18: A,B,C | F18: 3333333333 | H18: Provider C | J18: Physician Assistant | L18: No | P18: =IF(AND(OR(B18<>"",D18<>"",F18<>"",H18<>""),J18=""),"Please select a provider type."," ") ->  | Q18: =IF(AND(OR(B18<>"",D18<>"",F18<>"",H18<>""),L18=""),"Please indicate if applying for incentive payment."," ") ->  | R18: =IF(OR(AND(B18<>"",D18=""),AND(B18<>"",F18=""),AND(B18<>"",H18="")),"Please enter all of the group member's information."," ") ->  | S18: =IF(AND(L18="Yes",N18=""),"Please select the payment year."," ") -> 
A19: 4
A20: 5
A21: 6
A22: 7
A23: 8
A24: 9
A25: 10
A26: 11
A27: 12
A28: 13
A29: 14
A30: 15
A31: 16
A32: 17
A33: 18
A34: 19
A35: 20
A36: 21
A37: 22
A38: 23
A39: 24
A40: 25
A41: 26
A42: 27
A43: 28
A44: 29
A45: 30
A46: 31
A47: 32
A48: 33
A49: 34
A50: 35
A51: 36
A52: 37
A53: 38
A54: 39
A55: 40
A56: 41
A57: 42
A58: 43
A59: 44
A60: 45
A61: 46
A62: 47
A63: 48
A64: 49
A65: 50
A66: 51
A67: 52
A68: 53
A69: 54
A70: 55
A71: 56
A72: 57
A73: 58
A74: 59
A75: 60
A76: 61
A77: 62
A78: 63
A79: 64
A80: 65
A81: 66 | T81: =IF(AND(P81=" ",Q81=" ",R81=" ",S81=" "),"","x") -> 
A82: 67 | P82: =IF(AND(OR(B82<>"",D82<>"",F82<>"",H82<>""),J82=""),"Please select a provider type."," ") ->  | Q82: =IF(AND(OR(B82<>"",D82<>"",F82<>"",H82<>""),L82=""),"Please indicate if applying for incentive payment."," ") ->  | R82: =IF(OR(AND(B82<>"",D82=""),AND(B82<>"",F82=""),AND(B82<>"",H82="")),"Please enter all of the group member's information."," ") ->  | S82: =IF(AND(L82="Yes",N82=""),"Please select the payment year."," ") -> 
A83: 68
A84: 69
A85: 70
A86: 71
A87: 72
A88: 73
A89: 74
A90: 75
A91: 76
A92: 77
A93: 78
A94: 79
A95: 80
A96: 81
A97: 82
A98: 83
A99: 84
A100: 85
A101: 86
A102: 87
A103: 88
A104: 89
A105: 90
A106: 91
A107: 92
A108: 93
A109: 94
A110: 95
A111: 96
A112: 97
A113: 98
A114: 99
A115: 100
A116: 101
A117: 102
A118: 103
A119: 104
A120: 105
A121: 106
A122: 107
A123: 108
A124: 109
A125: 110
A126: 111
A127: 112
A128: 113
A129: 114
A130: 115
A131: 116
A132: 117
A133: 118
A134: 119
A135: 120
A136: 121
A137: 122
A138: 123
A139: 124
A140: 125
A141: 126
A142: 127
A143: 128
A144: 129
A145: 130 | T145: =IF(AND(P145=" ",Q145=" ",R145=" ",S145=" "),"","x") -> 
A146: 131 | P146: =IF(AND(OR(B146<>"",D146<>"",F146<>"",H146<>""),J146=""),"Please select a provider type."," ") ->  | Q146: =IF(AND(OR(B146<>"",D146<>"",F146<>"",H146<>""),L146=""),"Please indicate if applying for incentive payment."," ") ->  | R146: =IF(OR(AND(B146<>"",D146=""),AND(B146<>"",F146=""),AND(B146<>"",H146="")),"Please enter all of the group member's information."," ") ->  | S146: =IF(AND(L146="Yes",N146=""),"Please select the payment year."," ") -> 
A147: 132
A148: 133
A149: 134
A150: 135
A151: 136
A152: 137
A153: 138
A154: 139
A155: 140
A156: 141
A157: 142
A158: 143
A159: 144
A160: 145
A161: 146
A162: 147
A163: 148
A164: 149
A165: 150
A166: 151
A167: 152
A168: 153
A169: 154
A170: 155
A171: 156
A172: 157
A173: 158
A174: 159
A175: 160
A176: 161
A177: 162
A178: 163
A179: 164
A180: 165
A181: 166
A182: 167
A183: 168
A184: 169
A185: 170
A186: 171
A187: 172
A188: 173
A189: 174
A190: 175
A191: 176
A192: 177
A193: 178
A194: 179
A195: 180
A196: 181
A197: 182
A198: 183
A199: 184
A200: 185
A201: 186
A202: 187
A203: 188
A204: 189
A205: 190
... 1560 more rows

Sheet Example - FQHC Addr and Enc Vol (hidden)
A1: Georgia Department of Community Health
A2: Office of Information Technology
A3: Health Information Technology (HIT) Unit
A4: Medicaid Incentive Program for Adoption, Implementation, Upgrade, or Meaningful Use of EHR | B4: Medicaid Promoting Interoperability (PI) program (formerly EHR Incentive Program) for Meaningful Use
A5: Program Year 2018
A7: Group Practice or Clinic Locations and Encounter Volume
B9: Enter Encounter Volume for all providers affiliated with the Medicaid Payee ID entered in step 4B.
D11: Step 5: Enter the address information for the additional locations for which you are reporting your Encounter Volume. | L11: Step 6: Enter your In-State Medicaid and CHIP Encounter Volume for the Group Practice/Clinic. | Z11: Step 7: Enter your Out-of-State Medicaid and CHIP Encounter Volumes associated with each GA location listed- Only include Out-of-State Medicaid Encounter Volume if it is required to meet the Medicaid EHR Incentive Program Patient Volume Requirement. Note 1: Out-of-State encounter volume includes claims that were paid by a border State's (i.e. a state contiguous to Georgia) Medicaid program to an Eligible Professional for encounters which occurred at the Eligible Professional's practice location(s). | AI11: Step 8: "Other Needy Individual" Encounter Volume for those individuals who were furnished uncompensated care or for those individuals who are furnished services at either no cost or reduced cost based on a sliding scale determined by the individual's ability to pay. | AM11: Step 9: Enter your Non-Needy Individual Encounter Volume.
L12: Fee-for-Service Medicaid and CHIP Encounter Volumes | N12: Care Management Organization (CMO) Medicaid and CHIP Encounter Volumes | V12: Total Care Management Organization Encounter Volumes | X12: Total In-State Medicaid and CHIP Encounter Volumes | Z12: Out-of-State Medicaid Encounter Volume | AE12: Please specify the data source used to determine Out-of-State Medicaid Encounter Volume. The data source must be identifiable and auditable. | AI12: "Other Needy Individual" In-State and Out-of-State Encounter Volume - Only include Out-of-State Other Needy Encounter Volume if Out-of-State Encounter Volume is listed in Step 7. | AU12: Total Non-Medicaid Encounter Volume
D13: Street Address | F13: City | H13: State | J13: Zip Code | N13: Amerigroup Community Care | P13: CareSource | R13: Peach State Health Plan | T13: Wellcare Health Plans, Inc. | Z13: State Name | AB13: Out-of-State Medicaid and CHIP Encounter Volumes | AE13: Data Source | AG13: Other Data Source | AM13: Medicare | AO13: Private Insurance | AQ13: Other (i.e. cash) | AS13: Out-of-State Non-Medicaid Encounter Volume | AX13: Error Message 1 | AY13: Error Message 2 | AZ13: Error Message 3
B15: Location 1 | D15: 1 Street | F15: Atlanta | H15: GA | J15: 30303 | L15: 100 | N15: 0 | P15: 15 | R15: 10 | T15: 20 | V15: =SUM(N15:T15) -> 45 | X15: =L15+V15 -> 145 | AI15: 200 | AM15: 20 | AO15: 20 | AQ15: 20 | AS15: 0 | AU15: =SUM(AM15:AS15) -> 60 | AX15: =IF(AND(OR(D15<>"",F15<>"",H15<>"",J15<>""),OR(L15="",N15="",R15="",T15="",AM15="",AO15="",AQ15="",AS15="",AI15="",)),"Please complete all steps. Enter zero if no volume.","") ->  | AY15: =IF(AND(AE15="Other",AG15=""),"Please enter Other Data Source.","") ->  | AZ15: =IF(AND(OR(D15="",F15="",H15="",J15=""),OR(L15<>"",N15<>"",R15<>"",T15<>"",AM15<>"",AO15<>"",AQ15<>"",AS15<>"",AI15<>"")),"Please complete address information.","") ->  | BB15: =IF(OR(AX15<>"",AY15<>"",AZ15<>""),"x","") -> 
B16: Location 2 | D16: 2 Street | F16: Atlanta | H16: GA | J16: 30303 | L16: 50 | N16: 0 | P16: 25 | R16: 5 | T16: 20 | V16: =SUM(N16:T16) -> 50 | X16: =L16+V16 -> 100 | AI16: 200 | AM16: 10 | AO16: 20 | AQ16: 20 | AS16: 0 | AU16: 50 | BB16: =IF(OR(AX16<>"",AY16<>"",AZ16<>""),"x","") -> 
B17: Location 3 | D17: 3 Street | F17: Atlanta | H17: GA | J17: 30303 | L17: 50 | N17: 0 | P17: 0 | R17: 25 | T17: 10 | V17: =SUM(N17:T17) -> 35 | X17: 85 | AI17: 100 | AM17: 20 | AO17: 20 | AQ17: 20 | AS17: 0 | AU17: 60
B18: Location 4 | V18: =SUM(N18:T18) -> 0 | X18: 0 | AU18: 0
B19: Location 5 | V19: =SUM(N19:T19) -> 0 | X19: 0 | AU19: 0
B20: Location 6 | V20: =SUM(N20:T20) -> 0 | X20: 0 | AU20: 0
B21: Location 7 | V21: 0 | X21: 0 | AU21: 0
B22: Location 8 | V22: 0 | X22: 0 | AU22: 0
B23: Location 9 | V23: 0 | X23: 0 | AU23: 0
B24: Location 10 | V24: 0 | X24: 0 | AU24: 0
B25: Location 11 | V25: 0 | X25: 0 | AU25: 0
B26: Location 12 | V26: 0 | X26: 0 | AU26: 0
B27: Location 13 | V27: 0 | X27: 0 | AU27: 0
B28: Location 14 | V28: 0 | X28: 0 | AU28: 0
B29: Location 15 | V29: 0 | X29: 0 | AU29: 0
B30: Location 16 | V30: 0 | X30: 0 | AU30: 0
B31: Location 17 | V31: 0 | X31: 0 | AU31: 0
B32: Location 18 | V32: 0 | X32: 0 | AU32: 0
B33: Location 19 | V33: 0 | X33: 0 | AU33: 0
B34: Location 20 | V34: 0 | X34: 0 | AU34: 0
B35: Location 21 | V35: 0 | X35: 0 | AU35: 0
B36: Location 22 | V36: 0 | X36: 0 | AU36: 0
B37: Location 23 | V37: 0 | X37: 0 | AU37: 0
B38: Location 24 | V38: 0 | X38: 0 | AU38: 0
B39: Location 25 | V39: 0 | X39: 0 | AU39: 0
B40: Location 26 | V40: 0 | X40: 0 | AU40: 0
B41: Location 27 | V41: 0 | X41: 0 | AU41: 0
B42: Location 28 | V42: 0 | X42: 0 | AU42: 0
B43: Location 29 | V43: 0 | X43: 0 | AU43: 0
B44: Location 30 | V44: 0 | X44: 0 | AU44: 0
B45: Location 31 | V45: 0 | X45: 0 | AU45: 0
B46: Location 32 | V46: 0 | X46: 0 | AU46: 0
B47: Location 33 | V47: 0 | X47: 0 | AU47: 0 | AX47: =IF(AND(OR(D47<>"",F47<>"",H47<>"",J47<>""),OR(L47="",N47="",R47="",T47="",AM47="",AO47="",AQ47="",AS47="",AI47="",)),"Please complete all steps. Enter zero if no volume.","") ->  | AY47: =IF(AND(AE47="Other",AG47=""),"Please enter Other Data Source.","") ->  | AZ47: =IF(AND(OR(D47="",F47="",H47="",J47=""),OR(L47<>"",N47<>"",R47<>"",T47<>"",AM47<>"",AO47<>"",AQ47<>"",AS47<>"",AI47<>"")),"Please complete address information.","") -> 
B48: Location 34 | V48: 0 | X48: 0 | AU48: 0
B49: Location 35 | V49: 0 | X49: 0 | AU49: 0
B50: Location 36 | V50: 0 | X50: 0 | AU50: 0
B51: Location 37 | V51: 0 | X51: 0 | AU51: 0
B52: Location 38 | V52: 0 | X52: 0 | AU52: 0
B53: Location 39 | V53: 0 | X53: 0 | AU53: 0
B54: Location 40 | V54: 0 | X54: 0 | AU54: 0
B55: Location 41 | V55: 0 | X55: 0 | AU55: 0
B56: Location 42 | V56: 0 | X56: 0 | AU56: 0
B57: Location 43 | V57: 0 | X57: 0 | AU57: 0
B58: Location 44 | V58: 0 | X58: 0 | AU58: 0
B59: Location 45 | V59: 0 | X59: 0 | AU59: 0
B60: Location 46 | V60: 0 | X60: 0 | AU60: 0
B61: Location 47 | V61: 0 | X61: 0 | AU61: 0
B62: Location 48 | V62: 0 | X62: 0 | AU62: 0
B63: Location 49 | V63: 0 | X63: 0 | AU63: 0
B64: Location 50 | V64: 0 | X64: 0 | AU64: 0
B65: Location 51 | V65: 0 | X65: 0 | AU65: 0
B66: Location 52 | V66: 0 | X66: 0 | AU66: 0
B67: Location 53 | V67: 0 | X67: 0 | AU67: 0
B68: Location 54 | V68: 0 | X68: 0 | AU68: 0
B69: Location 55 | V69: 0 | X69: 0 | AU69: 0
B70: Location 56 | V70: 0 | X70: 0 | AU70: 0
B71: Location 57 | V71: 0 | X71: 0 | AU71: 0
B72: Location 58 | V72: 0 | X72: 0 | AU72: 0
B73: Location 59 | V73: 0 | X73: 0 | AU73: 0
B74: Location 60 | V74: 0 | X74: 0 | AU74: 0

Sheet Calculation - Group Combo (hidden)
A1: Georgia Department of Community Health | T1: county_name | U1: blended_chip_factor
A2: Office of Information Technology | T2: NULL | U2: 0
A3: Health Information Technology (HIT) Unit
A4: Medicaid Promoting Interoperability (PI) program (formerly EHR Incentive Program) for Meaningful Use | T4: All County | U4: 0.0186
A5: Program Year 2018 | T5: Appling | U5: 0.0107
T6: Atkinson | U6: 0.0083
A7: Calculation: Groups with FQHC/RHC locations and non-FQHC/RHC locations | T7: Bacon | U7: 0.0281
T8: Baker | U8: 0.0086
A9: Contact Information: (This information populates from the information entered on the Contact Information tab.) | T9: Baldwin | U9: 0.0185
A10: Contact Person Completing This Workbook | D10: =_cwb1 -> 0 | Q10: =IF(OR(D10="Please enter the name of the person completing this workbook.",D11="Please enter the phone number of the person completing this workbook.",D12="Please enter the email addresss of the person completing this workbook.",D13="Please enter the date this workbook was completed."),"Please complete the Contact Information tab of this workbook.","") ->  | S10: =IF(Q10<>"","x","") ->  | T10: Banks | U10: 0.0433
A11: Contact Person Phone Number | D11: =_cph1 -> 0 | T11: Barrow | U11: 0.0626
A12: Contact Person Email Address | D12: =_cem1 -> 0 | T12: Bartow | U12: 0.0537
A13: Date Completed: | D13: =date1 -> 00:00:00 | T13: Ben Hill | U13: 0.0349
T14: Berrien | U14: 0.032
A15: Eligible Professional Patient Volume Calculation Template | T15: Bibb | U15: 0.0262
T16: Bleckley | U16: 0.0527
A17: Purple Shaded Cells Represent Data Entry | D17: For detailed information to assist in completing the Eligible Professional Patient Volume Calculation, see the Background Information tab. | T17: Brantley | U17: 0.0466
D18: Background Information | T18: Brooks | U18: 0.0069
A19: Instructions | T19: Bryan | U19: 0.0491
A20: Step 1A: | B20: Enter the patient volume methodology being used for the 90-day period. | D20: * Medicaid patient volume can be calculated using one of the two following methods: | Q20: =IF(N20="","Select a patient volume methodology.","") -> Select a patient volume methodology. | S20: =IF(Q20<>"","x","") -> x | T20: Bulloch | U20: 0.0295
S21: =IF(Q21<>"","x","") ->  | T21: Burke | U21: 0.0264
D22: 1) Patient volume can be determined using a consecutive 90-day period within the prior calendar year 2017 (01/01/2017-12/31/2017); | T22: Butts | U22: 0.0285
T23: Calhoun | U23: 0.0229
D24: OR | T24: Camden | U24: 0.0339
T25: Candler | U25: 0.015
D26: 2) Patient volume can be determined across a consecutive 90-day period in the last 12 months preceding the provider's attestation. | T26: Carroll | U26: 0.0405
N27: Start 90-day period | P27: End 90-day period | Q27: Option 1: Calendar Year - Program Year 2018 Calculations, the 90 days starting date must fall on or after January 1, 2017. | T27: Catoosa | U27: 0.0476
A28: Step 1B: | B28: Enter the beginning date (mm/dd/yyyy) of a continuous 90-day period for your Medicaid Encounter Volume. | D28: (Note the 90-day period must be entirely in the previous calendar year and cannot overlap into the current year. The Medicaid encounter volume should include encounters with dates of service during the 90-day period.) | P28: =IF(N28>0,N28+89,"") ->  | T28: Charlton | U28: 0.0102
T29: Chatham | U29: 0.0299
T30: Chattahooche | U30: 0.0811
Q31: =IF(AND(N20="Prior Calendar Year",N28=""),"Please select a 90-day period.","") ->  | S31: =IF(Q31<>"","x","") ->  | T31: Chattooga | U31: 0.0451
A32: Step 1C: | B32: Enter the date of attestation. | D32: * This is the date the provider intends to electronically certify that the information entered on this calculator and any uploaded supporting documentation is true, accurate, and complete. | T32: Cherokee | U32: 0.1101
Q33: =IF(AND(N20="Recent 12 Months",N33=""),"Please enter the date of attestation.","") ->  | S33: =IF(Q33<>"","x","") ->  | T33: Clarke | U33: 0.0275
T34: Clay | U34: 0.0017
N35: Start 90-day period | P35: End 90-day period | Q35: Option 2: The 90 days starting date must fall on or after 12 months prior to the date of attestation. | T35: Clayton | U35: 0.0358
A36: Step 1D: | B36: Enter the beginning date (mm/dd/yyyy) of a continuous 90-day period for your Medicaid Encounter Volume. | D36: (Note the 90-day period must be during the 12 months preceding the date of attestation (Step 1C). | P36: =IF(N36>0,N36+89,"") ->  | T36: Clinch | U36: 0.0212
D37: Earliest Start Date of 90-day period: | I37: =IF(N20<>"Recent 12 Months","",IFERROR(EDATE(N33,-12)-1,"")) ->  | T37: Cobb | U37: 0.0543
D38: Latest Start Date of 90-day period: | I38: =IF(N20<>"Recent 12 Months","",IF(N33="","",N33-89)) ->  | T38: Coffee | U38: 0.0303
Q39: =IF(AND(N20="Recent 12 Months",N36=""),"Please select your 90-day period.","") ->  | S39: =IF(Q39<>"","x","") ->  | T39: Colquitt | U39: 0.0201
T40: Columbia | U40: 0.0846
A41: Step 2: | B41: Select all Eligible Professional provider types included in the group encounter volume for whom you are seeking an incentive payment. | S41: =IF(Q41<>"","x","") ->  | T41: Cook | U41: 0.0364
B42: Certified Nurse-Midwife | Q42: =IF(COUNTA(C42:C50)<1,"Please select provider types.","") -> Please select provider types. | S42: =IF(Q42<>"","x","") -> x | T42: Coweta | U42: 0.0399
B43: Dentist | R43: =I208 -> 0 | S43: =IF(AND(OR(C48="X",C49="X",C50="X"),R43=0),"x","") ->  | T43: Crawford | U43: 0.0745
B44: Nurse Practitioner | S44: =IF(Q44<>"","x","") ->  | T44: Crisp | U44: 0.0215
B45: Obstetrician | T45: Dade | U45: 0.056
B46: Pediatrician | Q46: =IF(S43="x","Provider Type Physician Assistant has been selected but no FQHC/RHC volume has been reported.","") ->  | S46: =IF(Q46<>"","x","") ->  | T46: Dawson | U46: 0.1244
B47: Physician | S47: =IF(Q47<>"","x","") ->  | T47: Decatur | U47: 0.0378
B48: Physician Assistant - Primary Provider | D48: * Primary provider in a clinic | I48: Only if FQHC/RHC | S48: =IF(Q48<>"","x","") ->  | T48: DeKalb | U48: 0.0371
B49: Physician Assistant - Medical Director | D49: * Clinical or medical director at a clinical site of practice | I49: Only if FQHC/RHC | T49: Dodge | U49: 0.031
B50: Physician Assistant - Owner | D50: * Owner of the RHC | I50: Only if FQHC/RHC | T50: Dooly | U50: 0.081
T51: Dougherty | U51: 0.0203
S52: =IF(Q52<>"","x","") ->  | T52: Douglas | U52: 0.073
A53: Step 3: | B53: An eligible professional is considered hospital-based if 90% or more of his or her services are performed in a hospital inpatient (Place Of Service code 21) or emergency room (Place Of Service code 23) setting. By confirming that Eligible Professionals for whom an incentive payment is sought are not hospital-based, you are attesting that those Eligible Professionals do not perform 90% or more of their services in a hospital setting. Are any of the providers for whom an incentive payment is sought considered hospital-based? | Q53: =IF(N53="","Please confirm no hospital-based group members.",IF(N53="Yes","For any providers in the group for which encounter volume is reported, you must select 'No' when asked if an incentive payment is being requested for those providers.","")) -> Please confirm no hospital-based group members. | S53: =IF(N53="","x","") -> x | T53: Early | U53: 0.0386
S54: =IF(Q54<>"","x","") ->  | T54: Echols | U54: 0.0265
T55: Effingham | U55: 0.0451
T56: Elbert | U56: 0.0169
T57: Emanuel | U57: 0.045
T58: Evans | U58: 0.024
A59: Step 4A: | B59: Enter your Medicaid Payee ID or Group NPI for the group practice/clinic. | K59: Please select the ID you will be entering. | Q59: =IF(OR(COUNTIF(R59:R63,"x")>0,D87=""),"Please complete Step 4A.","") -> Please complete Step 4A. | R59: =IF(AND(N59="Medicaid Payee ID",D64=""),"x","") ->  | S59: x | T59: Fannin | U59: 0.0651
R60: =IF(AND(N59="Group NPI",F64=""),"x","") ->  | T60: Fayette | U60: 0.0547
T61: Floyd | U61: 0.0328
D62: Medicaid Payee ID of Group Practice/Clinic | T62: Forsyth | U62: 0.0861
F63: Group NPI | R63: =IF(N59="","x","") -> x | T63: Franklin | U63: 0.0263
C64: 1. | S64: =IF(Q64<>"","x","") ->  | T64: Fulton | U64: 0.03
C65: 2. | T65: Gilmer | U65: 0.0615
C66: 3. | T66: Glascock | U66: 0.0357
C67: 4. | T67: Glynn | U67: 0.0268
C68: 5. | T68: Gordon | U68: 0.0518
C69: 6. | T69: Grady | U69: 0.0541
C70: 7. | T70: Greene | U70: 0.0463
C71: 8. | T71: Gwinnett | U71: 0.0853
C72: 9. | T72: Habersham | U72: 0.0595
C73: 10. | T73: Hall | U73: 0.0554
C74: 11. | T74: Hancock | U74: 0.0219
C75: 12. | T75: Haralson | U75: 0.0323
C76: 13. | T76: Harris | U76: 0.0149
C77: 14. | T77: Hart | U77: 0.0535
C78: 15. | T78: Heard | U78: 0.0156
C79: 16. | T79: Henry | U79: 0.0509
C80: 17. | T80: Houston | U80: 0.0278
C81: 18. | T81: Irwin | U81: 0.0443
C82: 19. | T82: Jackson | U82: 0.0683
C83: 20. | T83: Jasper | U83: 0.0416
S84: =IF(Q84<>"","x","") ->  | T84: Jeff Davis | U84: 0.0418
T85: Jefferson | U85: 0.0507
D86: Name of Group Practice/Clinic | S86: =IF(Q86<>"","x","") ->  | T86: Jenkins | U86: 0.0329
B87: Enter the name of the group practice/clinic. | T87: Johnson | U87: 0.0295
R88: =IF(D87="","x","") -> x | T88: Jones | U88: 0.0747
T89: Lamar | U89: 0.0482
A90: Step 4B: | B90: Rendering Medicaid IDs and/or National Provider IDs (NPI) of the group practice/clinic members. | T90: Lanier | U90: 0.0133
Q91: =IF(R91>0,"Please correct all errors on the Group Members tab.","") ->  | R91: =COUNTIF('Group Combo - Group Members'!T:T,"x") -> 0 | T91: Laurens | U91: 0.0313
T92: Lee | U92: 0.0705
B93: Enter the names of the individuals within the group practice/clinic on the Group Members tab. Select the button to the right to direct you to this tab. | T93: Liberty | U93: 0.037
T94: Lincoln | U94: 0.0455
T95: Long | U95: 0.0163
T96: Lowndes | U96: 0.0343
A97: Step 4C: | B97: Enter the Name and Provider Type of other individuals providing services to Medicaid patients during the 90-day period specified in step 1. | T97: Lumpkin | U97: 0.039
Q98: =IF(AND('Group Combo - Other Providers'!B14<>"",'Group Combo - Other Providers'!D14<>""),"","You must complete step 4C. Please enter N/A in the Name and Provider Type on line 1 if there are no other individuals with encounter volume.") -> You must complete step 4C. Please enter N/A in the Name and Provider Type on line 1 if there are no other individuals with encounter volume. | S98: x | T98: Macon | U98: 0.0177
T99: Madison | U99: 0.0399
T100: Marion | U100: 0.0238
T101: McDuffie | U101: 0.0238
B102: * These individuals may not be Eligible Professionals but may include dieticians, registered nurses, etc., who render services billed by the group practice/clinic. | T102: McIntosh | U102: 0.0189
T103: Meriwether | U103: 0.0078
T104: Miller | U104: 0.0362
T105: Mitchell | U105: 0.0369
T106: Monroe | U106: 0.0475
T107: Montgomery | U107: 0.005
T108: Morgan | U108: 0.0485
T109: Murray | U109: 0.0427
S110: =IF(Q110<>"","x","") ->  | T110: Muscogee | U110: 0.0222
T111: N/A | U111: 0.0832
A112: Step 5: | B112: Enter the Address Information for Step 5 on the Address and Encounter Volume tab. Select the button to the right to direct you to this tab. | T112: Newton | U112: 0.0367
T113: Oconee | U113: 0.0968
T114: Oglethorpe | U114: 0.0186
T115: OOS | U115: 0.0316
T116: OOS Over50 | U116: 0.0287
T117: OOSEmerg | U117: 0.0139
T118: Paulding | U118: 0.0628
T119: Peach | U119: 0.0228
Q120: =IF(AND(N115="Yes",N117<>"",N120=""),"You must enter the number of locations you are reporting.","") ->  | S120: =IF(Q120<>"","x","") ->  | T120: Pickens | U120: 0.0303
T121: Pierce | U121: 0.0456
T122: Pike | U122: 0.0851
S123: =IF(Q123<>"","x","") ->  | T123: Polk | U123: 0.031
Q124: =IF(R124>0,"Please correct errors on FQHC Addr and Encounter Volume tab.","") ->  | R124: =COUNTIF('Group Combo - Addr and Enc Vol'!BE:BE,"x") -> 0 | S124: =IF(R124>0,"x","") ->  | T124: Pulaski | U124: 0.0207
T125: Putnam | U125: 0.0364
T126: Quitman | U126: 0.0374
T127: Rabun | U127: 0.0635
A128: "Needy Individual" Encounter Volume: | S128: =IF(Q128<>"","x","") ->  | T128: Randolph | U128: 0.0225
A129: “Needy Individual” encounter volume is comprised of claims from in-state and out-of-state Medicaid, CMO, and CHIP payor sources, individuals who were furnished uncompensated care or for those individuals who are furnished services at either no cost or reduced cost based on a sliding scale determined by the individual's ability to pay. Enter your needy individual encounter volume below in steps 6 through 8. | T129: Richmond | U129: 0.0234
T130: Rockdale | U130: 0.0511
A131: Step 6: | B131: In-State Medicaid and CHIP Encounter Volume for the Group Practice/Clinic | D131: •One Encounter is defined as services rendered on any one day to an individual. Count all Needy Individual encounters during the 90-day period. | S131: =IF(Q131<>"","x","") ->  | T131: Schley | U131: 0.0187
B132: Enter Encounter Volume for all providers affiliated with the Medicaid Payee ID entered in step 4B. | S132: =IF(Q132<>"","x","") ->  | T132: Screven | U132: 0.0166
T133: Seminole | U133: 0.0283
D134: • If your Group includes an Obstetrician who routinely provides services paid under a global code, patient volume for the Obstetrician should include each individual patient encounter that occurred during the specified 90-day period when those services were paid under global codes, regardless of the date of payment. | T134: Spalding | U134: 0.0164
T135: Stephens | U135: 0.0445
T136: Stewart | U136: 0.0269
T137: Sumter | U137: 0.0269
T138: Talbot | U138: 0
T139: Taliaferro | U139: 0
T140: Tattnall | U140: 0.0195
T141: Taylor | U141: 0.0139
T142: Telfair | U142: 0.0438
T143: Terrell | U143: 0.022
F144: Totals will automatically populate when the Encounter Volume tab is completed. | T144: Thomas | U144: 0.024
T145: Tift | U145: 0.03
F146: Non-FQHC/RHC locations | I146: FQHC/RHC locations | K146: Total | T146: Toombs | U146: 0.0308
T147: Towns | U147: 0.0449
B148: Fee-for-Service Medicaid and CHIP Encounter Volume | F148: =SUMIF('Group Combo - Addr and Enc Vol'!L:L,"Not a FQHC/RHC",'Group Combo - Addr and Enc Vol'!N:N) -> 0 | I148: =SUMIF('Group Combo - Addr and Enc Vol'!L:L,"FQHC/RHC",'Group Combo - Addr and Enc Vol'!N:N) -> 0 | K148: =F148+I148 -> 0 | S148: =IF(Q148<>"","x","") ->  | T148: Treutlen | U148: 0.1383
T149: Troup | U149: 0.0302
T150: Turner | U150: 0.063
B151: Care Management Organization (CMO) Medicaid and CHIP Encounter Volume | T151: Twiggs | U151: 0.0141
B152: Amerigroup Community Care | F152: =SUMIF('Group Combo - Addr and Enc Vol'!L:L,"Not a FQHC/RHC",'Group Combo - Addr and Enc Vol'!P:P) -> 0 | I152: =SUMIF('Group Combo - Addr and Enc Vol'!L:L,"FQHC/RHC",'Group Combo - Addr and Enc Vol'!P:P) -> 0 | K152: =+F152+I152 -> 0 | T152: Union | U152: 0.0414
B153: CareSource | F153: =SUMIF('Group Combo - Addr and Enc Vol'!L:L,"Not a FQHC/RHC",'Group Combo - Addr and Enc Vol'!R:R) -> 0 | I153: =SUMIF('Group Combo - Addr and Enc Vol'!L:L,"FQHC/RHC",'Group Combo - Addr and Enc Vol'!R:R) -> 0 | K153: =+F153+I153 -> 0 | T153: Upson | U153: 0.0305
B154: Peach State Health Plan | F154: =SUMIF('Group Combo - Addr and Enc Vol'!L:L,"Not a FQHC/RHC",'Group Combo - Addr and Enc Vol'!T:T) -> 0 | I154: =SUMIF('Group Combo - Addr and Enc Vol'!L:L,"FQHC/RHC",'Group Combo - Addr and Enc Vol'!T:T) -> 0 | K154: =+F154+I154 -> 0 | T154: Walker | U154: 0.0189
B155: Wellcare Health Plans, Inc. | F155: =SUMIF('Group Combo - Addr and Enc Vol'!L:L,"Not a FQHC/RHC",'Group Combo - Addr and Enc Vol'!V:V) -> 0 | I155: =SUMIF('Group Combo - Addr and Enc Vol'!L:L,"FQHC/RHC",'Group Combo - Addr and Enc Vol'!V:V) -> 0 | K155: =+F155+I155 -> 0 | T155: Walton | U155: 0.0537
T156: Ware | U156: 0.0258
B157: Total Care Management Organization Encounter Volume | F157: =SUM(F152:F155) -> 0 | I157: =SUM(I152:I155) -> 0 | K157: =F157+I157 -> 0 | T157: Warren | U157: 0.0045
T158: Washington | U158: 0.0372
B159: Total In-State Medicaid and CHIP Encounter Volume | F159: =F148+F157 -> 0 | I159: =I148+I157 -> 0 | K159: =F159+I159 -> 0 | T159: Wayne | U159: 0.0316
T160: Webster | U160: 0
T161: Wheeler | U161: 0.0183
S162: =IF(Q162<>"","x","") ->  | T162: White | U162: 0.1039
A163: Step 7: | B163: Out-of-State Medicaid and CHIP Encounter Volumes | S163: =IF(Q166<>"","x","") -> x | T163: Whitfield | U163: 0.073
S164: =IF(Q164<>"","x","") ->  | T164: Wilcox | U164: 0.0688
B165: Note 1: Out-of-State encounter volume includes claims that were paid by a border State's (i.e. a state contiguous to Georgia) Medicaid program to an Eligible Professional for encounters which occurred at the Eligible Professional's practice location(s). | S165: =IF(Q165<>"","x","") ->  | T165: Wilkes | U165: 0.0265
B166: Does the provider/practice need to include Out-of-State Medicaid volume in the numerator in order to patient volume eligibility requirements? | Q166: =IF(F166="","Please complete Step 7.","") -> Please complete Step 7. | R166: =IF(F166="","x","") -> x | S166: =IF(R166<>"","x","") -> x | T166: Wilkinson | U166: 0.0282
S167: =IF(Q167<>"","x","") ->  | T167: Worth | U167: 0.041
B168: Out-of-State Medicaid and CHIP Encounter Volumes | S168: =IF(Q168<>"","x","") -> 
B169: Enter Encounter Volume for all providers affiliated with the Medicaid Payee ID entered in step 4B. | S169: =IF(Q169<>"","x","") -> 
S170: =IF(Q170<>"","x","") -> 
B171: Total Out-of-State Medicaid and CHIP Encounter Volume | F171: =SUMIF('Group Combo - Addr and Enc Vol'!L:L,"Not a FQHC/RHC",'Group Combo - Addr and Enc Vol'!AD:AD) -> 0 | I171: =SUMIF('Group Combo - Addr and Enc Vol'!L:L,"FQHC/RHC",'Group Combo - Addr and Enc Vol'!AD:AD) -> 0 | K171: =F171+I171 -> 0
A174: "Other Needy Individual" Encounter Volume: | S174: =IF(Q174<>"","x","") -> 
A176: Step 8: | B176: Encounter Volume for those individuals who were furnished uncompensated care or for those individuals who are furnished services at either no cost or reduced cost based on a sliding scale determined by the individual's ability to pay. | I176: =SUMIF('Group Combo - Addr and Enc Vol'!L:L,"FQHC/RHC",'Group Combo - Addr and Enc Vol'!AK:AK) -> 0 | K176: =I176 -> 0 | S176: =IF(Q176<>"","x","") -> 
A178: CHIP Encounter Volume Adjustment: | S178: =IF(Q178<>"","x","") -> 
A179: Step 9A: | B179: Due to the difficulty in distinguishing CHIP volume from Medicaid volume, the Georgia Department of Community Health has created a factor to adjust the Medicaid and CHIP Encounter Volumes based on the predominant Georgia county. (Only applicable for the non-FQHC/RHC locations.)
A183: Step 9B: | B183: This calculator will prompt you to select a CHIP factor. A CHIP Factor has been calculated for each county in Georgia. If you are reporting Encounter Volume for more than one county, select the one Georgia county where the majority of your Medicaid and CHIP Encounter Volume was performed during the selected 90-day period for your non-FQHC/RHC locations. This CHIP factor will reduce the combined Medicaid and CHIP Encounter Volume by a percentage representative of CHIP services for that county from your non-FQHC/RHC locations.
D187: Select the Predominant County for CHIP Factor:
Q188: =IF(F187="","Please Complete Step 9B","") -> Please Complete Step 9B | R188: =IF(F187="","x","") -> x | S188: =IF(R188<>"","x","") -> x
D190: Medicaid and CHIP Encounter Volume Subtotal | F190: =IF(F166="No",F159,F159+F171) -> 0
D191: CHIP Factor | F191: =IF(ISNA(VLOOKUP(F187,T:U,2,0))=TRUE,0,VLOOKUP(F187,T:U,2,0)) -> 0 | H191: If the CHIP adjustment is less than 0.01%, no CHIP factor will be shown.
B193: CHIP Encounter Volume Adjustment | F193: =ROUNDDOWN(F190*F191,0) -> 0
B196: Total Adjusted Medicaid Encounter Volume | F196: =F190-F193 -> 0
A199: Adjusted Numerator | F199: =F196 -> 0 | I199: =IF(F166="Yes",I171+I159+I176,I159+I171) -> 0 | K199: =F199+I199 -> 0
A202: Step 10: | B202: Total Non-Medicaid or Non-Needy Encounter Volume | F202: =SUMIF('Group Combo - Addr and Enc Vol'!L:L,"Not a FQHC/RHC",'Group Combo - Addr and Enc Vol'!AW:AW) -> 0 | I202: =SUMIF('Group Combo - Addr and Enc Vol'!L:L,"FQHC/RHC",'Group Combo - Addr and Enc Vol'!AW:AW) -> 0 | K202: =F202+I202 -> 0 | S202: =IF(Q202<>"","x","") -> 
B203: Enter Encounter Volume for all providers affiliated with the Medicaid Payee ID entered in step 4B. | S203: =IF(Q203<>"","x","") -> 
S204: =IF(Q204<>"","x","") -> 
S205: =IF(Q205<>"","x","") -> 
A206: Total Encounter Volume
B208: • This amount is the sum of Step 6, Step 7, Step 8, Step 9, and Step 10. | F208: =F159+F171+F202 -> 0 | I208: =I159+I171+I176+I202 -> 0 | K208: =F208+I208 -> 0 | S208: =IF(Q208<>"","x","") -> 
S209: =IF(Q209<>"","x","") -> 
R211: =COUNTIF(S:S,"x") -> 8 | S211: =IF(I211<>"","x","") -> 
B212: Summary:
B213: In-State Medicaid and CHIP Encounter Volume | D213: =K159 -> 0 | K213: =IF(N53="Yes","Note: This group contains some hospital-based providers. For any of these providers in the group for which encounter volume is reported, you must select 'No' when asked if an incentive payment is being requested for those providers.","") ->  | S213: =IF(Q213<>"","x","") -> 
S214: =IF(Q214<>"","x","") -> 
B215: Out-of-State Medicaid and CHIP Encounter Volume | D215: =K171 -> 0 | F215: =IF(AND(F166="No",F171<>""),"The Out-of-State Medicaid encounter volume will only be included in the denominator of the patient volume calculator.","") ->  | S215: =IF(Q215<>"","x","") -> 
S216: =IF(Q216<>"","x","") -> 
B217: Individuals Furnished Uncompensated Care or Services at Either No Cost or Reduced Cost Encounter Volume | D217: =K176 -> 0 | K217: =IF(AND(F231>=19.4444444444445,$F231<29.4444444444445),"This Percentage Does Meet the Medicaid EHR Incentive Program Patient Volume Requirement for Pediatricians but does NOT Meet the Requirement for the other provider types.",IF($F231>=29.4444444444445,"This Percentage Does Meet the Medicaid EHR Incentive Program Patient Volume Requirement","This Percentage Does NOT Meet the Medicaid EHR Incentive Program Patient Volume Requirement")) -> This Percentage Does NOT Meet the Medicaid EHR Incentive Program Patient Volume Requirement | S217: =IF(Q217<>"","x","") -> 
B219: Medicaid Encounter Volume Net of CHIP Adjustment | D219: =IF(F166="Yes",F196+I171+I159,I159+F196) -> 0
B221: Total Encounter Volume | D221: =K208 -> 0
D222: =IF(F231>100.000000000001,"Error, Cannot be higher than 100%, please recalculate","") -> 
... 12 more rows

Sheet Group Combo - Group Members (hidden)
A1: Georgia Department of Community Health
A2: Office of Information Technology
A3: Health Information Technology (HIT) Unit
A4: Medicaid Promoting Interoperability (PI) program (formerly EHR Incentive Program) for Meaningful Use
A5: Program Year 2018
A7: Group Practice or Clinic Members
A9: All Medicaid IDs for providers of the group who provided services during the selected 90-day period must be listed, including providers who are no longer with the group. If a provider has more than one location letter, enter all letters associated with that provider's Medicaid Enterprise ID in the Medicaid Location Identifier column. Only list Eligible Professionals on this page. Other providers, such as physician assistants, dieticians, registered nurses, should be listed in Step 4C on the Calculation-Group tab.
B11: Medicaid Enterprise ID (First nine digits of the Medicaid ID.) | D11: Medicaid ID Location Identifier (Last Letter of Medicaid ID.) | L11: Is this provider applying for an Incentive Payment? | N11: If yes, which payment year is the provider applying for?
F13: NPI | H13: Medicaid Provider Name | J13: Provider Type | P13: Error Message 1 | Q13: Error Message 2 | R13: Error Message 3 | S13: Error Message 4
A14: Example: | B14: 012345678 | D14: A,B,C | F14: 1234567890
A16: 1 | P16: =IF(AND(OR(B16<>"",D16<>"",F16<>"",H16<>""),J16=""),"Please select a provider type."," ") ->  | Q16: =IF(AND(OR(B16<>"",D16<>"",F16<>"",H16<>""),L16=""),"Please indicate if applying for incentive payment."," ") ->  | R16: =IF(OR(AND(B16<>"",D16=""),AND(B16<>"",F16=""),AND(B16<>"",H16="")),"Please enter all of the group member's information."," ") ->  | S16: =IF(AND(L16="Yes",N16=""),"Please select the payment year."," ") ->  | T16: =IF(AND(P16=" ",Q16=" ",R16=" ",S16=" "),"","x") -> 
A17: 2 | P17: =IF(AND(OR(B17<>"",D17<>"",F17<>"",H17<>""),J17=""),"Please select a provider type."," ") ->  | Q17: =IF(AND(OR(B17<>"",D17<>"",F17<>"",H17<>""),L17=""),"Please indicate if applying for incentive payment."," ") ->  | R17: =IF(OR(AND(B17<>"",D17=""),AND(B17<>"",F17=""),AND(B17<>"",H17="")),"Please enter all of the group member's information."," ") ->  | S17: =IF(AND(L17="Yes",N17=""),"Please select the payment year."," ") ->  | T17: =IF(AND(P17=" ",Q17=" ",R17=" ",S17=" "),"","x") -> 
A18: 3 | P18: =IF(AND(OR(B18<>"",D18<>"",F18<>"",H18<>""),J18=""),"Please select a provider type."," ") ->  | Q18: =IF(AND(OR(B18<>"",D18<>"",F18<>"",H18<>""),L18=""),"Please indicate if applying for incentive payment."," ") ->  | R18: =IF(OR(AND(B18<>"",D18=""),AND(B18<>"",F18=""),AND(B18<>"",H18="")),"Please enter all of the group member's information."," ") ->  | S18: =IF(AND(L18="Yes",N18=""),"Please select the payment year."," ") -> 
A19: 4
A20: 5
A21: 6
A22: 7
A23: 8
A24: 9
A25: 10
A26: 11
A27: 12
A28: 13
A29: 14
A30: 15
A31: 16
A32: 17
A33: 18
A34: 19
A35: 20
A36: 21
A37: 22
A38: 23
A39: 24
A40: 25
A41: 26
A42: 27
A43: 28
A44: 29
A45: 30
A46: 31
A47: 32
A48: 33
A49: 34
A50: 35
A51: 36
A52: 37
A53: 38
A54: 39
A55: 40
A56: 41
A57: 42
A58: 43
A59: 44
A60: 45
A61: 46
A62: 47
A63: 48
A64: 49
A65: 50
A66: 51
A67: 52
A68: 53
A69: 54
A70: 55
A71: 56
A72: 57
A73: 58
A74: 59
A75: 60
A76: 61
A77: 62
A78: 63
A79: 64
A80: 65
A81: 66 | T81: =IF(AND(P81=" ",Q81=" ",R81=" ",S81=" "),"","x") -> 
A82: 67 | P82: =IF(AND(OR(B82<>"",D82<>"",F82<>"",H82<>""),J82=""),"Please select a provider type."," ") ->  | Q82: =IF(AND(OR(B82<>"",D82<>"",F82<>"",H82<>""),L82=""),"Please indicate if applying for incentive payment."," ") ->  | R82: =IF(OR(AND(B82<>"",D82=""),AND(B82<>"",F82=""),AND(B82<>"",H82="")),"Please enter all of the group member's information."," ") ->  | S82: =IF(AND(L82="Yes",N82=""),"Please select the payment year."," ") -> 
A83: 68
A84: 69
A85: 70
A86: 71
A87: 72
A88: 73
A89: 74
A90: 75
A91: 76
A92: 77
A93: 78
A94: 79
A95: 80
A96: 81
A97: 82
A98: 83
A99: 84
A100: 85
A101: 86
A102: 87
A103: 88
A104: 89
A105: 90
A106: 91
A107: 92
A108: 93
A109: 94
A110: 95
A111: 96
A112: 97
A113: 98
A114: 99
A115: 100
A116: 101
A117: 102
A118: 103
A119: 104
A120: 105
A121: 106
A122: 107
A123: 108
A124: 109
A125: 110
A126: 111
A127: 112
A128: 113
A129: 114
A130: 115
A131: 116
A132: 117
A133: 118
A134: 119
A135: 120
A136: 121
A137: 122
A138: 123
A139: 124
A140: 125
A141: 126
A142: 127
A143: 128
A144: 129
A145: 130 | T145: =IF(AND(P145=" ",Q145=" ",R145=" ",S145=" "),"","x") -> 
A146: 131 | P146: =IF(AND(OR(B146<>"",D146<>"",F146<>"",H146<>""),J146=""),"Please select a provider type."," ") ->  | Q146: =IF(AND(OR(B146<>"",D146<>"",F146<>"",H146<>""),L146=""),"Please indicate if applying for incentive payment."," ") ->  | R146: =IF(OR(AND(B146<>"",D146=""),AND(B146<>"",F146=""),AND(B146<>"",H146="")),"Please enter all of the group member's information."," ") ->  | S146: =IF(AND(L146="Yes",N146=""),"Please select the payment year."," ") -> 
A147: 132
A148: 133
A149: 134
A150: 135
A151: 136
A152: 137
A153: 138
A154: 139
A155: 140
A156: 141
A157: 142
A158: 143
A159: 144
A160: 145
A161: 146
A162: 147
A163: 148
A164: 149
A165: 150
A166: 151
A167: 152
A168: 153
A169: 154
A170: 155
A171: 156
A172: 157
A173: 158
A174: 159
A175: 160
A176: 161
A177: 162
A178: 163
A179: 164
A180: 165
A181: 166
A182: 167
A183: 168
A184: 169
A185: 170
A186: 171
A187: 172
A188: 173
A189: 174
A190: 175
A191: 176
A192: 177
A193: 178
A194: 179
A195: 180
A196: 181
A197: 182
A198: 183
A199: 184
A200: 185
A201: 186
A202: 187
A203: 188
A204: 189
A205: 190
... 1560 more rows

Sheet Group Combo - Other Providers (hidden)
A1: Georgia Department of Community Health | J1: ='Calculation - FQHC_RHC Group'!N59 -> 0
A2: Office of Information Technology
A3: Health Information Technology (HIT) Unit
A4: Medicaid Promoting Interoperability (PI) program (formerly EHR Incentive Program) for Meaningful Use
A5: Program Year 2018
A7: Group Members who are not Eligible Professionals
B10: Provider Name | D10: Provider Type
A13: Example: | B13: Bob Smith | D13: Physician Assistant
A14: 1
A15: 2
A16: 3
A17: 4
A18: 5
A19: 6
A20: 7
A21: 8
A22: 9
A23: 10
A24: 11
A25: 12
A26: 13
A27: 14
A28: 15
A29: 16
A30: 17
A31: 18
A32: 19
A33: 20
A34: 21
A35: 22
A36: 23
A37: 24
A38: 25
A39: 26
A40: 27
A41: 28
A42: 29
A43: 30
A44: 31
A45: 32
A46: 33
A47: 34
A48: 35
A49: 36
A50: 37
A51: 38
A52: 39
A53: 40
A54: 41
A55: 42
A56: 43
A57: 44
A58: 45
A59: 46
A60: 47
A61: 48
A62: 49
A63: 50
A64: 51
A65: 52
A66: 53
A67: 54
A68: 55
A69: 56
A70: 57
A71: 58
A72: 59
A73: 60
A74: 61
A75: 62
A76: 63
A77: 64
A78: 65
A79: 66
A80: 67
A81: 68
A82: 69
A83: 70
A84: 71
A85: 72
A86: 73
A87: 74
A88: 75
A89: 76
A90: 77
A91: 78
A92: 79
A93: 80
A94: 81
A95: 82
A96: 83
A97: 84
A98: 85
A99: 86
A100: 87
A101: 88
A102: 89
A103: 90
A104: 91
A105: 92
A106: 93
A107: 94
A108: 95
A109: 96
A110: 97
A111: 98
A112: 99
A113: 100
A114: 101
A115: 102
A116: 103
A117: 104
A118: 105
A119: 106
A120: 107
A121: 108
A122: 109
A123: 110
A124: 111
A125: 112
A126: 113
A127: 114
A128: 115
A129: 116
A130: 117
A131: 118
A132: 119
A133: 120
A134: 121
A135: 122
A136: 123
A137: 124
A138: 125
A139: 126
A140: 127
A141: 128
A142: 129
A143: 130
A144: 131
A145: 132
A146: 133
A147: 134
A148: 135
A149: 136
A150: 137
A151: 138
A152: 139
A153: 140
A154: 141
A155: 142
A156: 143
A157: 144
A158: 145
A159: 146
A160: 147
A161: 148
A162: 149
A163: 150
A164: 151
A165: 152
A166: 153
A167: 154
A168: 155
A169: 156
A170: 157
A171: 158
A172: 159
A173: 160
A174: 161
A175: 162
A176: 163
A177: 164
A178: 165
A179: 166
A180: 167
A181: 168
A182: 169
A183: 170
A184: 171
A185: 172
A186: 173
A187: 174
A188: 175
A189: 176
A190: 177
A191: 178
A192: 179
A193: 180
A194: 181
A195: 182
A196: 183
A197: 184
A198: 185
A199: 186
A200: 187
A201: 188
A202: 189
A203: 190
A204: 191
A205: 192
... 1558 more rows

Sheet Group Combo - Addr and Enc Vol (hidden)
A1: Georgia Department of Community Health | BF1: South Carolina | BM1: FQHC/RHC
A2: Office of Information Technology | BF2: North Carolina | BM2: Not a FQHC/RHC
A3: Health Information Technology (HIT) Unit
A4: Medicaid Promoting Interoperability (PI) program (formerly EHR Incentive Program) for Meaningful Use | BF4: Tennessee
A5: Program Year 2018 | BF5: Alabama
BF6: Florida
A7: Group Practice or Clinic Locations and Encounter Volume
B9: Enter Encounter Volume for all providers affiliated with the Medicaid Payee ID entered in step 4B.
D11: Step 5: Enter the address information for the locations for which you are reporting your Encounter Volume and identify if the location is an FQHC/RHC or a non-FQHC/RHC location. | N11: Step 6: Enter your In-State Medicaid and CHIP Encounter Volume for the Group Practice/Clinic. | AB11: Step 7: Enter your Out-of-State Medicaid and CHIP Encounter Volumes associated with each GA location listed Note 1: Out-of-State encounter volume includes claims that were paid by a border State's (i.e. a state contiguous to Georgia) Medicaid program to an Eligible Professional for encounters which occurred at the Eligible Professional's practice location(s). | AK11: Step 8: For your FQHC/RHC locations only enter your "Other Needy Individual" Encounter Volume for those individuals who were furnished uncompensated care or for those individuals who are furnished services at either no cost or reduced cost based on a sliding scale determined by the individual's ability to pay. | AO11: Step 9: Enter your Non-Medicaid for you non-FQHC/RHC locations and your Non-Needy Individual Encounter Volume for your FQHC/RHC locations.
L12: Non-FQHC/RHC Location or FQHC/RHC Location | N12: Fee-for-Service Medicaid and CHIP Encounter Volumes | P12: Care Management Organization (CMO) Medicaid and CHIP Encounter Volumes | X12: Total Care Management Organization Encounter Volumes | Z12: Total In-State Medicaid and CHIP Encounter Volumes | AB12: Out-of-State Medicaid Encounter Volume | AG12: Please specify the data source used to determine Out-of-State Medicaid Encounter Volume. The data source must be identifiable and auditable. | AK12: "Other Needy Individual" In-State and Out-of-State Encounter Volume | AW12: Total Non-Medicaid Encounter Volume
D13: Street Address | F13: City | H13: State | J13: Zip Code | P13: Amerigroup Community Care | R13: CareSource | T13: Peach State Health Plan | V13: Wellcare Health Plans, Inc. | AB13: State Name | AD13: Out-of-State Medicaid and CHIP Encounter Volumes | AG13: Data Source | AI13: Other Data Source | AO13: Medicare | AQ13: Private Insurance | AS13: Other (i.e. cash) | AU13: Out-of-State Non-Medicaid Encounter Volume | AZ13: Error Message 1 | BA13: Error Message 2 | BB13: Error Message 3 | BC13: Error Message 4 | BD13: Error Message 5
B15: Location 1 | X15: =SUM(P15:V15) -> 0 | Z15: =N15+X15 -> 0 | AW15: =SUM(AO15:AU15) -> 0 | AZ15: =IF(L15="FQHC/RHC",IF(AND(OR(D15<>"",F15<>"",H15<>"",J15<>""),OR(N15="",P15="",R15="",T15="",V15="",AO15="",AQ15="",AS15="",AU15="",AK15="",)),"Please complete all steps. Enter zero if no volume.",""),IF(AND(OR(D15<>"",F15<>"",H15<>"",J15<>""),OR(N15="",P15="",R15="",T15="",V15="",AO15="",AQ15="",AS15="",AU15="",)),"Please complete all steps. Enter zero if no volume.","")) ->  | BA15: =IF(AND(AG15="Other",AI15=""),"Please enter Other Data Source.","") ->  | BB15: =IF(AND(OR(D15="",F15="",H15="",J15=""),OR(N15<>"",P15<>"",T15<>"",V15<>"",AO15<>"",AQ15<>"",AS15<>"",AU15<>"",AK15<>"")),"Please complete address information.","") ->  | BC15: =IF(AND(AD15>0,AB15="",AG15=""),"Enter the State Name and select a Data Source for Step 7.","") ->  | BD15: =IF(AND(D15<>"",L15=""),"Please indicate if location is FQHC/RHC or not a FQHC/RHC.","") ->  | BE15: =IF(OR(AZ15<>"",BA15<>"",BB15<>"",BC15<>"",BD15<>""),"x","") -> 
B16: Location 2 | X16: =SUM(P16:V16) -> 0 | Z16: =N16+X16 -> 0 | AW16: 0 | AZ16: =IF(L16="FQHC/RHC",IF(AND(OR(D16<>"",F16<>"",H16<>"",J16<>""),OR(N16="",P16="",R16="",T16="",V16="",AO16="",AQ16="",AS16="",AU16="",AK16="",)),"Please complete all steps. Enter zero if no volume.",""),IF(AND(OR(D16<>"",F16<>"",H16<>"",J16<>""),OR(N16="",P16="",R16="",T16="",V16="",AO16="",AQ16="",AS16="",AU16="",)),"Please complete all steps. Enter zero if no volume.","")) ->  | BD16: =IF(AND(D16<>"",L16=""),"Please indicate if location is FQHC/RHC or not a FQHC/RHC.","") ->  | BE16: =IF(OR(AZ16<>"",BA16<>"",BB16<>"",BC16<>"",BD16<>""),"x","") -> 
B17: Location 3 | X17: =SUM(P17:V17) -> 0 | Z17: 0 | AW17: 0
B18: Location 4 | X18: =SUM(P18:V18) -> 0 | Z18: 0 | AW18: 0
B19: Location 5 | X19: =SUM(P19:V19) -> 0 | Z19: 0 | AW19: 0
B20: Location 6 | X20: =SUM(P20:V20) -> 0 | Z20: 0 | AW20: 0
B21: Location 7 | X21: 0 | Z21: 0 | AW21: 0
B22: Location 8 | X22: 0 | Z22: 0 | AW22: 0
B23: Location 9 | X23: 0 | Z23: 0 | AW23: 0
B24: Location 10 | X24: 0 | Z24: 0 | AW24: 0
B25: Location 11 | X25: 0 | Z25: 0 | AW25: 0
B26: Location 12 | X26: 0 | Z26: 0 | AW26: 0
B27: Location 13 | X27: 0 | Z27: 0 | AW27: 0
B28: Location 14 | X28: 0 | Z28: 0 | AW28: 0
B29: Location 15 | X29: 0 | Z29: 0 | AW29: 0
B30: Location 16 | X30: 0 | Z30: 0 | AW30: 0
B31: Location 17 | X31: 0 | Z31: 0 | AW31: 0
B32: Location 18 | X32: 0 | Z32: 0 | AW32: 0
B33: Location 19 | X33: 0 | Z33: 0 | AW33: 0
B34: Location 20 | X34: 0 | Z34: 0 | AW34: 0
B35: Location 21 | X35: 0 | Z35: 0 | AW35: 0
B36: Location 22 | X36: 0 | Z36: 0 | AW36: 0
B37: Location 23 | X37: 0 | Z37: 0 | AW37: 0
B38: Location 24 | X38: 0 | Z38: 0 | AW38: 0
B39: Location 25 | X39: 0 | Z39: 0 | AW39: 0
B40: Location 26 | X40: 0 | Z40: 0 | AW40: 0
B41: Location 27 | X41: 0 | Z41: 0 | AW41: 0
B42: Location 28 | X42: 0 | Z42: 0 | AW42: 0
B43: Location 29 | X43: 0 | Z43: 0 | AW43: 0
B44: Location 30 | X44: 0 | Z44: 0 | AW44: 0
B45: Location 31 | X45: 0 | Z45: 0 | AW45: 0
B46: Location 32 | X46: 0 | Z46: 0 | AW46: 0
B47: Location 33 | X47: 0 | Z47: 0 | AW47: 0
B48: Location 34 | X48: 0 | Z48: 0 | AW48: 0
B49: Location 35 | X49: 0 | Z49: 0 | AW49: 0
B50: Location 36 | X50: 0 | Z50: 0 | AW50: 0
B51: Location 37 | X51: 0 | Z51: 0 | AW51: 0
B52: Location 38 | X52: 0 | Z52: 0 | AW52: 0
B53: Location 39 | X53: 0 | Z53: 0 | AW53: 0
B54: Location 40 | X54: 0 | Z54: 0 | AW54: 0
B55: Location 41 | X55: 0 | Z55: 0 | AW55: 0
B56: Location 42 | X56: 0 | Z56: 0 | AW56: 0
B57: Location 43 | X57: 0 | Z57: 0 | AW57: 0
B58: Location 44 | X58: 0 | Z58: 0 | AW58: 0
B59: Location 45 | X59: 0 | Z59: 0 | AW59: 0
B60: Location 46 | X60: 0 | Z60: 0 | AW60: 0
B61: Location 47 | X61: 0 | Z61: 0 | AW61: 0
B62: Location 48 | X62: 0 | Z62: 0 | AW62: 0
B63: Location 49 | X63: 0 | Z63: 0 | AW63: 0
B64: Location 50 | X64: 0 | Z64: 0 | AW64: 0
B65: Location 51 | X65: 0 | Z65: 0 | AW65: 0
B66: Location 52 | X66: 0 | Z66: 0 | AW66: 0
B67: Location 53 | X67: 0 | Z67: 0 | AW67: 0
B68: Location 54 | X68: 0 | Z68: 0 | AW68: 0
B69: Location 55 | X69: 0 | Z69: 0 | AW69: 0
B70: Location 56 | X70: 0 | Z70: 0 | AW70: 0
B71: Location 57 | X71: 0 | Z71: 0 | AW71: 0
B72: Location 58 | X72: 0 | Z72: 0 | AW72: 0
B73: Location 59 | X73: 0 | Z73: 0 | AW73: 0
B74: Location 60 | X74: 0 | Z74: 0 | AW74: 0

Sheet Example - Group Combo (hidden)
A1: Georgia Department of Community Health | T1: county_name | U1: blended_chip_factor
A2: Office of Information Technology | T2: NULL | U2: 0
A3: Health Information Technology (HIT) Unit
A4: Medicaid Promoting Interoperability (PI) program (formerly EHR Incentive Program) for Meaningful Use | T4: All County | U4: 0.018567
A5: Program Year 2018 | T5: Appling | U5: 0.010663
T6: Atkinson | U6: 0.008301
A7: Calculation: Groups with FQHC/RHC locations and non-FQHC/RHC locations | T7: Bacon | U7: 0.028123
T8: Baker | U8: 0.00862
A9: Contact Information: (This information populates from the information entered on the Contact Information tab.) | T9: Baldwin | U9: 0.01853
A10: Contact Person Completing This Workbook | D10: Bob Smith | Q10: =IF(OR(D10="Please enter the name of the person completing this workbook.",D11="Please enter the phone number of the person completing this workbook.",D12="Please enter the email addresss of the person completing this workbook.",D13="Please enter the date this workbook was completed."),"Please complete the Contact Information tab of this workbook.","") ->  | S10: =IF(Q10<>"","x","") ->  | T10: Banks | U10: 0.043331
A11: Contact Person Phone Number | D11: (XXX)-XXX-XXXX | T11: Barrow | U11: 0.062647
A12: Contact Person Email Address | D12: XXXXX@email.com | T12: Bartow | U12: 0.053684
A13: Date Completed: | D13: 2018-02-01 | T13: Ben Hill | U13: 0.034879
T14: Berrien | U14: 0.031972
A15: Eligible Professional Patient Volume Calculation Template | T15: Bibb | U15: 0.026218
T16: Bleckley | U16: 0.052742
A17: Purple Shaded Cells Represent Data Entry | D17: For detailed information to assist in completing the Eligible Professional Patient Volume Calculation, see the Background Information tab. | T17: Brantley | U17: 0.04664
D18: Background Information | T18: Brooks | U18: 0.006934
A19: Instructions | T19: Bryan | U19: 0.049054
A20: Step 1A: | B20: Enter the patient volume methodology being used for the 90-day period. | D20: * Medicaid patient volume can be calculated using one of the two following methods: | N20: Prior Calendar Year | Q20: =IF(N20="","Select a patient volume methodology.","") ->  | S20: =IF(Q20<>"","x","") ->  | T20: Bulloch | U20: 0.029528
S21: =IF(Q21<>"","x","") ->  | T21: Burke | U21: 0.026371
D22: 1) Patient volume can be determined using a consecutive 90-day period within the prior calendar year 2017 (01/01/2017-12/31/2017); | T22: Butts | U22: 0.02847
T23: Calhoun | U23: 0.022934
D24: OR | T24: Camden | U24: 0.033945
T25: Candler | U25: 0.014983
D26: 2) Patient volume can be determined across a consecutive 90-day period in the last 12 months preceding the provider's attestation. | T26: Carroll | U26: 0.04054
N27: Start 90-day period | P27: End 90-day period | Q27: Option 1: Calendar Year - Program Year 2018 Calculations, the 90 days starting date must fall on or after January 1, 2017. | T27: Catoosa | U27: 0.047554
A28: Step 1B: | B28: Enter the beginning date (mm/dd/yyyy) of a continuous 90-day period for your Medicaid Encounter Volume. | D28: (Note the 90-day period must be entirely in the previous calendar year and cannot overlap into the current year. The Medicaid encounter volume should include encounters with dates of service during the 90-day period.) | N28: 2017-02-01 | P28: =IF(N28>0,N28+89,"") -> 2017-05-01 | T28: Charlton | U28: 0.010197
T29: Chatham | U29: 0.029918
T30: Chattahooche | U30: 0.081092
Q31: =IF(AND(N20="Prior Calendar Year",N28=""),"Please select a 90-day period.","") ->  | S31: =IF(Q31<>"","x","") ->  | T31: Chattooga | U31: 0.045058
A32: Step 1C: | B32: Enter the date of attestation. | D32: * This is the date the provider intends to electronically certify that the information entered on this calculator and any uploaded supporting documentation is true, accurate, and complete. | T32: Cherokee | U32: 0.110073
Q33: =IF(AND(N20="Recent 12 Months",N33=""),"Please enter the date of attestation.","") ->  | S33: =IF(Q33<>"","x","") ->  | T33: Clarke | U33: 0.027523
T34: Clay | U34: 0.00174
N35: Start 90-day period | P35: End 90-day period | Q35: Option 2: The 90 days starting date must fall on or after 12 months prior to the date of attestation. | T35: Clayton | U35: 0.035828
A36: Step 1D: | B36: Enter the beginning date (mm/dd/yyyy) of a continuous 90-day period for your Medicaid Encounter Volume. | D36: (Note the 90-day period must be during the 12 months preceding the date of attestation (Step 1C). | P36: =IF(N36>0,N36+89,"") ->  | T36: Clinch | U36: 0.021235
D37: Earliest Start Date of 90-day period: | I37: =IF(N20<>"Recent 12 Months","",IFERROR(EDATE(N33,-12)-1,"")) ->  | T37: Cobb | U37: 0.054262
D38: Latest Start Date of 90-day period: | I38: =IF(N20<>"Recent 12 Months","",IF(N33="","",N33-89)) ->  | T38: Coffee | U38: 0.030251
Q39: =IF(AND(N20="Recent 12 Months",N36=""),"Please select your 90-day period.","") ->  | S39: =IF(Q39<>"","x","") ->  | T39: Colquitt | U39: 0.020134
T40: Columbia | U40: 0.084627
A41: Step 2: | B41: Select all Eligible Professional provider types included in the group encounter volume for whom you are seeking an incentive payment. | S41: =IF(Q41<>"","x","") ->  | T41: Cook | U41: 0.03635
B42: Certified Nurse-Midwife | Q42: =IF(COUNTA(C42:C50)<1,"Please select provider types.","") ->  | S42: =IF(Q42<>"","x","") ->  | T42: Coweta | U42: 0.039901
B43: Dentist | S43: =IF(Q43<>"","x","") ->  | T43: Crawford | U43: 0.074493
B44: Nurse Practitioner | C44: X | S44: =IF(Q44<>"","x","") ->  | T44: Crisp | U44: 0.021461
B45: Obstetrician | T45: Dade | U45: 0.055963
B46: Pediatrician | S46: =IF(Q46<>"","x","") ->  | T46: Dawson | U46: 0.124426
B47: Physician | C47: X | S47: =IF(Q47<>"","x","") ->  | T47: Decatur | U47: 0.037765
B48: Physician Assistant - Primary Provider | D48: * Primary provider in a clinic | S48: =IF(Q48<>"","x","") ->  | T48: DeKalb | U48: 0.037124
B49: Physician Assistant - Medical Director | D49: * Clinical or medical director at a clinical site of practice | T49: Dodge | U49: 0.031009
B50: Physician Assistant - Owner | D50: * Owner of the RHC | T50: Dooly | U50: 0.08104
T51: Dougherty | U51: 0.020288
S52: =IF(Q52<>"","x","") ->  | T52: Douglas | U52: 0.072975
A53: Step 3: | B53: An eligible professional is considered hospital-based if 90% or more of his or her services are performed in a hospital inpatient (Place Of Service code 21) or emergency room (Place Of Service code 23) setting. By confirming that Eligible Professionals for whom an incentive payment is sought are not hospital-based, you are attesting that those Eligible Professionals do not perform 90% or more of their services in a hospital setting. Are any of the providers for whom an incentive payment is sought considered hospital-based? | N53: No | Q53: =IF(N53="","Please confirm no hospital-based group members.",IF(N53="Yes","For any providers in the group for which encounter volume is reported, you must select 'No' when asked if an incentive payment is being requested for those providers.","")) ->  | S53: =IF(N53="","x","") ->  | T53: Early | U53: 0.038599
S54: =IF(Q54<>"","x","") ->  | T54: Echols | U54: 0.026548
T55: Effingham | U55: 0.045148
T56: Elbert | U56: 0.016868
T57: Emanuel | U57: 0.044965
T58: Evans | U58: 0.024017
A59: Step 4A: | B59: Enter your Medicaid Payee ID or Group NPI for the group practice/clinic. | K59: Please select the ID you will be entering. | N59: Medicaid Payee ID | Q59: =IF(OR(COUNTIF(R59:R63,"x")>0,D87=""),"Please complete Step 4A.","") ->  | R59: =IF(AND(N59="Medicaid Payee ID",D64=""),"x","") ->  | T59: Fannin | U59: 0.065103
R60: =IF(AND(N59="Group NPI",F64=""),"x","") ->  | T60: Fayette | U60: 0.05465
T61: Floyd | U61: 0.032775
D62: Medicaid Payee ID of Group Practice/Clinic | T62: Forsyth | U62: 0.086148
F63: Group NPI | R63: =IF(N59="","x","") ->  | T63: Franklin | U63: 0.026275
C64: 1. | D64: 2222222222 | S64: =IF(Q64<>"","x","") ->  | T64: Fulton | U64: 0.029979
C65: 2. | T65: Gilmer | U65: 0.061479
C66: 3. | T66: Glascock | U66: 0.035714
C67: 4. | T67: Glynn | U67: 0.026797
C68: 5. | T68: Gordon | U68: 0.051818
C69: 6. | T69: Grady | U69: 0.054121
C70: 7. | T70: Greene | U70: 0.046253
C71: 8. | T71: Gwinnett | U71: 0.085254
C72: 9. | T72: Habersham | U72: 0.059451
C73: 10. | T73: Hall | U73: 0.055395
C74: 11. | T74: Hancock | U74: 0.021923
C75: 12. | T75: Haralson | U75: 0.032264
C76: 13. | T76: Harris | U76: 0.014909
C77: 14. | T77: Hart | U77: 0.053526
C78: 15. | T78: Heard | U78: 0.015613
C79: 16. | T79: Henry | U79: 0.050888
C80: 17. | T80: Houston | U80: 0.027762
C81: 18. | T81: Irwin | U81: 0.044306
C82: 19. | T82: Jackson | U82: 0.068303
C83: 20. | T83: Jasper | U83: 0.041615
S84: =IF(Q84<>"","x","") ->  | T84: Jeff Davis | U84: 0.041793
T85: Jefferson | U85: 0.050681
D86: Name of Group Practice/Clinic | S86: =IF(Q86<>"","x","") ->  | T86: Jenkins | U86: 0.032896
B87: Enter the name of the group practice/clinic. | D87: Group Name | T87: Johnson | U87: 0.029473
R88: =IF(D87="","x","") ->  | T88: Jones | U88: 0.074657
T89: Lamar | U89: 0.048159
A90: Step 4B: | B90: Rendering Medicaid IDs and/or National Provider IDs (NPI) of the group practice/clinic members. | T90: Lanier | U90: 0.013327
Q91: =IF(R91>0,"Please correct all errors on the Group Members tab.","") ->  | R91: =COUNTIF('Example - Grp Combo - Group Mem'!T:T,"x") -> 0 | T91: Laurens | U91: 0.031329
T92: Lee | U92: 0.070504
B93: Enter the names of the individuals within the group practice/clinic on the Group Members tab. Select the button to the right to direct you to this tab. | T93: Liberty | U93: 0.036977
T94: Lincoln | U94: 0.045481
T95: Long | U95: 0.016326
T96: Lowndes | U96: 0.034283
A97: Step 4C: | B97: Enter the Name and Provider Type of other individuals providing services to Medicaid patients during the 90-day period specified in step 1. | T97: Lumpkin | U97: 0.039012
T98: Macon | U98: 0.017679
T99: Madison | U99: 0.03988
T100: Marion | U100: 0.023756
T101: McDuffie | U101: 0.02376
B102: * These individuals may not be Eligible Professionals but may include dieticians, registered nurses, etc., who render services billed by the group practice/clinic. | T102: McIntosh | U102: 0.018916
T103: Meriwether | U103: 0.007791
T104: Miller | U104: 0.036168
T105: Mitchell | U105: 0.036878
T106: Monroe | U106: 0.047535
T107: Montgomery | U107: 0.004979
T108: Morgan | U108: 0.048506
T109: Murray | U109: 0.042655
S110: =IF(Q110<>"","x","") ->  | T110: Muscogee | U110: 0.02222
T111: N/A | U111: 0.083173
A112: Step 5: | B112: Enter the Address Information for Step 5 on the Address and Encounter Volume tab. Select the button to the right to direct you to this tab. | T112: Newton | U112: 0.036746
T113: Oconee | U113: 0.096752
T114: Oglethorpe | U114: 0.018552
T115: OOS | U115: 0.031554
T116: OOS Over50 | U116: 0.028668
T117: OOSEmerg | U117: 0.0139
T118: Paulding | U118: 0.062846
T119: Peach | U119: 0.022753
Q120: =IF(AND(N115="Yes",N117<>"",N120=""),"You must enter the number of locations you are reporting.","") ->  | S120: =IF(Q120<>"","x","") ->  | T120: Pickens | U120: 0.030271
T121: Pierce | U121: 0.045578
T122: Pike | U122: 0.085076
S123: =IF(Q123<>"","x","") ->  | T123: Polk | U123: 0.031018
Q124: =IF(R124>0,"Please correct errors on FQHC Addr and Encounter Volume tab.","") ->  | R124: =COUNTIF('Example - Grp Combo - Addr Enc'!BE:BE,"x") -> 0 | S124: =IF(R124>0,"x","") ->  | T124: Pulaski | U124: 0.020654
T125: Putnam | U125: 0.036385
T126: Quitman | U126: 0.037395
T127: Rabun | U127: 0.063482
A128: "Needy Individual" Encounter Volume: | S128: =IF(Q128<>"","x","") ->  | T128: Randolph | U128: 0.02245
A129: “Needy Individual” encounter volume is comprised of claims from in-state and out-of-state Medicaid, CMO, and CHIP payor sources, individuals who were furnished uncompensated care or for those individuals who are furnished services at either no cost or reduced cost based on a sliding scale determined by the individual's ability to pay. Enter your needy individual encounter volume below in steps 6 through 8. | T129: Richmond | U129: 0.02339
T130: Rockdale | U130: 0.051101
A131: Step 6: | B131: In-State Medicaid and CHIP Encounter Volume for the Group Practice/Clinic | D131: •One Encounter is defined as services rendered on any one day to an individual. Count all Needy Individual encounters during the 90-day period. | S131: =IF(Q131<>"","x","") ->  | T131: Schley | U131: 0.018738
B132: Enter Encounter Volume for all providers affiliated with the Medicaid Payee ID entered in step 4B. | S132: =IF(Q132<>"","x","") ->  | T132: Screven | U132: 0.016612
T133: Seminole | U133: 0.028264
D134: • If your Group includes an Obstetrician who routinely provides services paid under a global code, patient volume for the Obstetrician should include each individual patient encounter that occurred during the specified 90-day period when those services were paid under global codes, regardless of the date of payment. | T134: Spalding | U134: 0.016359
T135: Stephens | U135: 0.044547
T136: Stewart | U136: 0.026851
T137: Sumter | U137: 0.026941
T138: Talbot | U138: 0
T139: Taliaferro | U139: 0
T140: Tattnall | U140: 0.019507
T141: Taylor | U141: 0.013868
T142: Telfair | U142: 0.04383
T143: Terrell | U143: 0.022018
F144: Totals will automatically populate when the Encounter Volume tab is completed. | T144: Thomas | U144: 0.023988
T145: Tift | U145: 0.029978
F146: Non-FQHC/RHC locations | I146: FQHC/RHC locations | K146: Total | T146: Toombs | U146: 0.030755
T147: Towns | U147: 0.044949
B148: Fee-for-Service Medicaid and CHIP Encounter Volume | F148: =SUMIF('Example - Grp Combo - Addr Enc'!L:L,"Not a FQHC/RHC",'Example - Grp Combo - Addr Enc'!N:N) -> 5000 | I148: =SUMIF('Example - Grp Combo - Addr Enc'!L:L,"FQHC/RHC",'Example - Grp Combo - Addr Enc'!N:N) -> 6000 | K148: =F148+I148 -> 11000 | S148: =IF(Q148<>"","x","") ->  | T148: Treutlen | U148: 0.138277
T149: Troup | U149: 0.030217
T150: Turner | U150: 0.063026
B151: Care Management Organization (CMO) Medicaid and CHIP Encounter Volume | T151: Twiggs | U151: 0.014051
B152: Amerigroup Community Care | F152: =SUMIF('Example - Grp Combo - Addr Enc'!L:L,"Not a FQHC/RHC",'Example - Grp Combo - Addr Enc'!P:P) -> 500 | I152: =SUMIF('Example - Grp Combo - Addr Enc'!L:L,"FQHC/RHC",'Example - Grp Combo - Addr Enc'!P:P) -> 9 | K152: =+F152+I152 -> 509 | T152: Union | U152: 0.041371
B153: CareSource | F153: =SUMIF('Example - Grp Combo - Addr Enc'!L:L,"Not a FQHC/RHC",'Example - Grp Combo - Addr Enc'!R:R) -> 250 | I153: =SUMIF('Example - Grp Combo - Addr Enc'!L:L,"FQHC/RHC",'Example - Grp Combo - Addr Enc'!R:R) -> 0 | K153: =+F153+I153 -> 250 | T153: Upson | U153: 0.030524
B154: Peach State Health Plan | F154: =SUMIF('Example - Grp Combo - Addr Enc'!L:L,"Not a FQHC/RHC",'Example - Grp Combo - Addr Enc'!T:T) -> 600 | I154: =SUMIF('Example - Grp Combo - Addr Enc'!L:L,"FQHC/RHC",'Example - Grp Combo - Addr Enc'!T:T) -> 8 | K154: =+F154+I154 -> 608 | T154: Walker | U154: 0.018938
B155: Wellcare Health Plans, Inc. | F155: =SUMIF('Example - Grp Combo - Addr Enc'!L:L,"Not a FQHC/RHC",'Example - Grp Combo - Addr Enc'!V:V) -> 3 | I155: =SUMIF('Example - Grp Combo - Addr Enc'!L:L,"FQHC/RHC",'Example - Grp Combo - Addr Enc'!V:V) -> 5 | K155: =+F155+I155 -> 8 | T155: Walton | U155: 0.053707
T156: Ware | U156: 0.02577
B157: Total Care Management Organization Encounter Volume | F157: =SUM(F152:F155) -> 1353 | I157: =SUM(I152:I155) -> 22 | K157: =F157+I157 -> 1375 | T157: Warren | U157: 0.004545
T158: Washington | U158: 0.03718
B159: Total In-State Medicaid and CHIP Encounter Volume | F159: =F148+F157 -> 6353 | I159: =I148+I157 -> 6022 | K159: =F159+I159 -> 12375 | T159: Wayne | U159: 0.031636
T160: Webster | U160: 0
T161: Wheeler | U161: 0.018348
S162: =IF(Q162<>"","x","") ->  | T162: White | U162: 0.103922
A163: Step 7: | B163: Out-of-State Medicaid and CHIP Encounter Volumes | S163: =IF(Q163<>"","x","") ->  | T163: Whitfield | U163: 0.072988
S164: =IF(Q164<>"","x","") ->  | T164: Wilcox | U164: 0.068839
B165: Note 1: Out-of-State encounter volume includes claims that were paid by a border State's (i.e. a state contiguous to Georgia) Medicaid program to an Eligible Professional for encounters which occurred at the Eligible Professional's practice location(s). | S165: =IF(Q165<>"","x","") ->  | T165: Wilkes | U165: 0.026519
B166: Does the provider/practice need to include Out-of-State Medicaid volume in the numerator in order to patient volume eligibility requirements? | F166: Yes | R166: =IF(F166="","x","") ->  | S166: =IF(R166<>"","x","") ->  | T166: Wilkinson | U166: 0.028206
S167: =IF(Q167<>"","x","") ->  | T167: Worth | U167: 0.040963
B168: Out-of-State Medicaid and CHIP Encounter Volumes | S168: =IF(Q168<>"","x","") -> 
B169: Enter Encounter Volume for all providers affiliated with the Medicaid Payee ID entered in step 4B. | S169: =IF(Q169<>"","x","") -> 
S170: =IF(Q170<>"","x","") -> 
B171: Total Out-of-State Medicaid and CHIP Encounter Volume | F171: =SUMIF('Example - Grp Combo - Addr Enc'!L:L,"Not a FQHC/RHC",'Example - Grp Combo - Addr Enc'!AD:AD) -> 500 | I171: =SUMIF('Example - Grp Combo - Addr Enc'!L:L,"FQHC/RHC",'Example - Grp Combo - Addr Enc'!AD:AD) -> 60 | K171: =F171+I171 -> 560
A174: "Other Needy Individual" Encounter Volume: | S174: =IF(Q174<>"","x","") -> 
A176: Step 8: | B176: Encounter Volume for those individuals who were furnished uncompensated care or for those individuals who are furnished services at either no cost or reduced cost based on a sliding scale determined by the individual's ability to pay. | I176: =SUMIF('Example - Grp Combo - Addr Enc'!L:L,"FQHC/RHC",'Example - Grp Combo - Addr Enc'!AK:AK) -> 888 | K176: =I176 -> 888 | S176: =IF(Q176<>"","x","") -> 
A178: CHIP Encounter Volume Adjustment: | S178: =IF(Q178<>"","x","") -> 
A179: Step 9A: | B179: Due to the difficulty in distinguishing CHIP volume from Medicaid volume, the Georgia Department of Community Health has created a factor to adjust the Medicaid and CHIP Encounter Volumes based on the predominant Georgia county. (Only applicable for the non-FQHC/RHC locations.)
A183: Step 9B: | B183: This calculator will prompt you to select a CHIP factor. A CHIP Factor has been calculated for each county in Georgia. If you are reporting Encounter Volume for more than one county, select the one Georgia county where the majority of your Medicaid and CHIP Encounter Volume was performed during the selected 90-day period for your non-FQHC/RHC locations. This CHIP factor will reduce the combined Medicaid and CHIP Encounter Volume by a percentage representative of CHIP services for that county from your non-FQHC/RHC locations.
D187: Select the Predominant County for CHIP Factor: | F187: FULTON
D190: Medicaid and CHIP Encounter Volume Subtotal | F190: =IF(F166="No",F159,F159+F171) -> 6853
D191: CHIP Factor | F191: =IF(ISNA(VLOOKUP(F187,T:U,2,0))=TRUE,0,VLOOKUP(F187,T:U,2,0)) -> 0.029979 | H191: If the CHIP adjustment is less than 0.01%, no CHIP factor will be shown.
B193: CHIP Encounter Volume Adjustment | F193: =ROUNDDOWN(F190*F191,0) -> 205
B196: Total Adjusted Medicaid Encounter Volume | F196: =F190-F193 -> 6648
A199: Adjusted Numerator | F199: =F196 -> 6648 | I199: =IF(F166="Yes",I171+I159+I176,I159+I171) -> 6970 | K199: =F199+I199 -> 13618
A202: Step 10: | B202: Total Non-Medicaid or Non-Needy Encounter Volume | F202: =SUMIF('Example - Grp Combo - Addr Enc'!L:L,"Not a FQHC/RHC",'Example - Grp Combo - Addr Enc'!AW:AW) -> 800 | I202: =SUMIF('Example - Grp Combo - Addr Enc'!L:L,"FQHC/RHC",'Example - Grp Combo - Addr Enc'!AW:AW) -> 9000 | K202: =F202+I202 -> 9800 | S202: =IF(Q202<>"","x","") -> 
B203: Enter Encounter Volume for all providers affiliated with the Medicaid Payee ID entered in step 4B. | S203: =IF(Q203<>"","x","") -> 
S204: =IF(Q204<>"","x","") -> 
S205: =IF(Q205<>"","x","") -> 
A206: Total Encounter Volume
B208: • This amount is the sum of Step 6, Step 7, Step 8, Step 9, and Step 10. | F208: =F159+F171+F202 -> 7653 | I208: =I159+I171+I176+I202 -> 15970 | K208: =F208+I208 -> 23623 | S208: =IF(Q208<>"","x","") -> 
S209: =IF(Q209<>"","x","") -> 
R211: =COUNTIF(S:S,"x") -> 0 | S211: =IF(I211<>"","x","") -> 
B212: Summary:
B213: In-State Medicaid and CHIP Encounter Volume | D213: =K159 -> 12375 | K213: =IF(N53="Yes","Note: This group contains some hospital-based providers. For any of these providers in the group for which encounter volume is reported, you must select 'No' when asked if an incentive payment is being requested for those providers.","") ->  | S213: =IF(Q213<>"","x","") -> 
S214: =IF(Q214<>"","x","") -> 
B215: Out-of-State Medicaid and CHIP Encounter Volume | D215: =K171 -> 560 | F215: =IF(AND(F166="No",F171<>""),"The Out-of-State Medicaid encounter volume will only be included in the denominator of the patient volume calculator.","") ->  | S215: =IF(Q215<>"","x","") -> 
S216: =IF(Q216<>"","x","") -> 
B217: Individuals Furnished Uncompensated Care or Services at Either No Cost or Reduced Cost Encounter Volume | D217: =K176 -> 888 | K217: =IF(AND(F231>=19.4444444444445,$F231<29.4444444444445),"This Percentage Does Meet the Medicaid EHR Incentive Program Patient Volume Requirement for Pediatricians but does NOT Meet the Requirement for the other provider types.",IF($F231>=29.4444444444445,"This Percentage Does Meet the Medicaid EHR Incentive Program Patient Volume Requirement","This Percentage Does NOT Meet the Medicaid EHR Incentive Program Patient Volume Requirement")) -> This Percentage Does Meet the Medicaid EHR Incentive Program Patient Volume Requirement | S217: =IF(Q217<>"","x","") -> 
B219: Medicaid Encounter Volume Net of CHIP Adjustment | D219: =IF(F166="Yes",F196+I171+I159,I159+F196) -> 12730
B221: Total Encounter Volume | D221: =K208 -> 23623
D222: =IF(F231>100.000000000001,"Error, Cannot be higher than 100%, please recalculate","") -> 
B224: Patient Volume Calculation: | J224: =IF(R211<>0,"Review Column Q for error messages. You must resolve all calculator errors above.","") -> 
... 11 more rows

Sheet Example - Grp Combo - Group Mem (hidden)
A1: Georgia Department of Community Health
A2: Office of Information Technology
A3: Health Information Technology (HIT) Unit
A4: Medicaid Promoting Interoperability (PI) program (formerly EHR Incentive Program) for Meaningful Use
A5: Program Year 2018
A7: Group Practice or Clinic Members
A9: All Medicaid IDs for providers of the group who provided services during the selected 90-day period must be listed, including providers who are no longer with the group. If a provider has more than one location letter, enter all letters associated with that provider's Medicaid Enterprise ID in the Medicaid Location Identifier column. Only list Eligible Professionals on this page. Other providers, such as physician assistants, dieticians, registered nurses, should be listed in Step 4C on the Calculation-Group tab.
B11: Medicaid Enterprise ID (First nine digits of the Medicaid ID.) | D11: Medicaid ID Location Identifier (Last Letter of Medicaid ID.) | L11: Is this provider applying for an Incentive Payment? | N11: If yes, which payment year is the provider applying for?
F13: NPI | H13: Medicaid Provider Name | J13: Provider Type | P13: Error Message 1 | Q13: Error Message 2 | R13: Error Message 3 | S13: Error Message 4
A14: Example: | B14: 012345678 | D14: A,B,C | F14: 1234567890
A16: 1 | B16: 111111111 | D16: B,C,E | F16: 1111111111 | H16: Provider A | J16: Physician | L16: Yes | N16: 1st Payment | P16: =IF(AND(OR(B16<>"",D16<>"",F16<>"",H16<>""),J16=""),"Please select a provider type."," ") ->  | Q16: =IF(AND(OR(B16<>"",D16<>"",F16<>"",H16<>""),L16=""),"Please indicate if applying for incentive payment."," ") ->  | R16: =IF(OR(AND(B16<>"",D16=""),AND(B16<>"",F16=""),AND(B16<>"",H16="")),"Please enter all of the group member's information."," ") ->  | S16: =IF(AND(L16="Yes",N16=""),"Please select the payment year."," ") ->  | T16: =IF(AND(P16=" ",Q16=" ",R16=" ",S16=" "),"","x") -> 
A17: 2 | B17: 222222222 | D17: A,C,D | F17: 2222222222 | H17: Provider B | J17: Pediatrician | L17: Yes | N17: 1st Payment | P17: =IF(AND(OR(B17<>"",D17<>"",F17<>"",H17<>""),J17=""),"Please select a provider type."," ") ->  | Q17: =IF(AND(OR(B17<>"",D17<>"",F17<>"",H17<>""),L17=""),"Please indicate if applying for incentive payment."," ") ->  | R17: =IF(OR(AND(B17<>"",D17=""),AND(B17<>"",F17=""),AND(B17<>"",H17="")),"Please enter all of the group member's information."," ") ->  | S17: =IF(AND(L17="Yes",N17=""),"Please select the payment year."," ") ->  | T17: =IF(AND(P17=" ",Q17=" ",R17=" ",S17=" "),"","x") -> 
A18: 3 | B18: 333333333 | D18: A,B,C | F18: 3333333333 | H18: Provider C | J18: Physician Assistant | L18: No | P18: =IF(AND(OR(B18<>"",D18<>"",F18<>"",H18<>""),J18=""),"Please select a provider type."," ") ->  | Q18: =IF(AND(OR(B18<>"",D18<>"",F18<>"",H18<>""),L18=""),"Please indicate if applying for incentive payment."," ") ->  | R18: =IF(OR(AND(B18<>"",D18=""),AND(B18<>"",F18=""),AND(B18<>"",H18="")),"Please enter all of the group member's information."," ") ->  | S18: =IF(AND(L18="Yes",N18=""),"Please select the payment year."," ") -> 
A19: 4
A20: 5
A21: 6
A22: 7
A23: 8
A24: 9
A25: 10
A26: 11
A27: 12
A28: 13
A29: 14
A30: 15
A31: 16
A32: 17
A33: 18
A34: 19
A35: 20
A36: 21
A37: 22
A38: 23
A39: 24
A40: 25
A41: 26
A42: 27
A43: 28
A44: 29
A45: 30
A46: 31
A47: 32
A48: 33
A49: 34
A50: 35
A51: 36
A52: 37
A53: 38
A54: 39
A55: 40
A56: 41
A57: 42
A58: 43
A59: 44
A60: 45
A61: 46
A62: 47
A63: 48
A64: 49
A65: 50
A66: 51
A67: 52
A68: 53
A69: 54
A70: 55
A71: 56
A72: 57
A73: 58
A74: 59
A75: 60
A76: 61
A77: 62
A78: 63
A79: 64
A80: 65
A81: 66 | T81: =IF(AND(P81=" ",Q81=" ",R81=" ",S81=" "),"","x") -> 
A82: 67 | P82: =IF(AND(OR(B82<>"",D82<>"",F82<>"",H82<>""),J82=""),"Please select a provider type."," ") ->  | Q82: =IF(AND(OR(B82<>"",D82<>"",F82<>"",H82<>""),L82=""),"Please indicate if applying for incentive payment."," ") ->  | R82: =IF(OR(AND(B82<>"",D82=""),AND(B82<>"",F82=""),AND(B82<>"",H82="")),"Please enter all of the group member's information."," ") ->  | S82: =IF(AND(L82="Yes",N82=""),"Please select the payment year."," ") -> 
A83: 68
A84: 69
A85: 70
A86: 71
A87: 72
A88: 73
A89: 74
A90: 75
A91: 76
A92: 77
A93: 78
A94: 79
A95: 80
A96: 81
A97: 82
A98: 83
A99: 84
A100: 85
A101: 86
A102: 87
A103: 88
A104: 89
A105: 90
A106: 91
A107: 92
A108: 93
A109: 94
A110: 95
A111: 96
A112: 97
A113: 98
A114: 99
A115: 100
A116: 101
A117: 102
A118: 103
A119: 104
A120: 105
A121: 106
A122: 107
A123: 108
A124: 109
A125: 110
A126: 111
A127: 112
A128: 113
A129: 114
A130: 115
A131: 116
A132: 117
